{"text_format":"1","workbook":"xlsx","n_sheets":4,"sheets":["Data","مكتب مدير الإدارة","شئون الطلبة والامتحانات","الشئون الإدارية"],"not_rendered":{"charts":0,"images":0,"macros":1,"external_links":0,"defined_names":0,"comments":1,"pivot_tables":0},"unopened":[],"bounds":{"document_bytes":16777216,"sheet_cells":100000,"rows_first":2000,"rows_last":500,"rows_between":2000,"halvings":0,"cell_chars":16384,"cell_head_chars":4096},"cells_cut":0,"cells_raw":0,"read":"whole","date_system":"1900"}

{"sheet":"Data","index":0,"n_rows":3004,"n_cols":45,"rows_kept":3004,"cut":false,"hidden":false,"merged":[[0,4,0,5],[0,6,0,8],[0,21,0,23],[0,39,0,44]]}
[null,null,null,null,null,null,"تاريخ الميلاد",null,null,"تاريخ الميلاد",{"$f":"60*365.25","v":21915},null,null,null,null,null,null,null,null,null,{"$f":"TODAY()","v":"2020-11-28"},"سنوات الخبرة",null,null,null,null,null,null,null,null,null,null,null,null,null,null,null,null,null,"المؤهل الأعلى"]
["الرقم التسلسلي","القسم / التوجيه","المرحلة","كود الموظف","الرقم القومي","اسم الموظف","\" يوم \"","\" شهر \"","\" سنة \"","تاريخ الميلاد","تاريخ المعاش","محافظة الميلاد","النوع","الديانة","الجنسية","الحالة الاجتماعية","محافظة العنوان","العنوان","رقم التليفون","المجموعة النوعية","تاريخ التعيين","\" يوم \"","\" شهر \"","\" سنة \"","الموقف من العمل","تاريخ استلام العمل","\" العجز \"","رقم القرار","تاريخ القرار","الدرجة المالية","رقم القرار","تاريخ القرار","مادة التدريس","الوظيفة على الكادر","نوع المؤهل","اسم المؤهل","جهة الحصول على المؤهل","تقدير المؤهل","تاريخ الحصول عليه","\" نوع المؤهل \"","\" اسم المؤهل \"","\" جهة الحصول عليه \"","\" التقدير \"","\" تاريخ الحصول \"","\" الزيادة \""]
["الرقم التسلسلي","القسم / التوجيه",{"$f":"C1&\" \"&C2","v":" المرحلة"},"كود الموظف",{"$f":"E1&\" \"&E2","v":" الرقم القومي"},{"$f":"E1&\" \"&F2","v":" اسم الموظف"},{"$f":"G1&\" \"&G2","v":"تاريخ الميلاد \" يوم \""},{"$f":"G1&\" \"&H2","v":"تاريخ الميلاد \" شهر \""},{"$f":"G1&\" \"&I2","v":"تاريخ الميلاد \" سنة \""},{"$f":"J2","v":"تاريخ الميلاد"},{"$f":"K2","v":"تاريخ المعاش"},{"$f":"L2","v":"محافظة الميلاد"},"النوع","الديانة","الجنسية","الحالة الاجتماعية","محافظة العنوان",{"$f":"Q1&\" \"&R2","v":" العنوان"},{"$f":"S1&\" \"&S2","v":" رقم التليفون"},{"$f":"T1&\" \"&T2","v":" المجموعة النوعية"},{"$f":"U2","v":"تاريخ التعيين"},{"$f":"V1&\" \"&V2","v":"سنوات الخبرة \" يوم \""},{"$f":"V1&\" \"&W2","v":"سنوات الخبرة \" شهر \""},{"$f":"V1&\" \"&X2","v":"سنوات الخبرة \" سنة \""},{"$f":"Y1&\" \"&Y2","v":" الموقف من العمل"},{"$f":"Y1&\" \"&Z2","v":" تاريخ استلام العمل"},{"$f":"AA1&\" \"&AA2","v":" \" العجز \""},{"$f":"AA1&\" \"&AB2","v":" رقم القرار"},{"$f":"AC1&\" \"&AC2","v":" تاريخ القرار"},{"$f":"AC1&\" \"&AD2","v":" الدرجة المالية"},{"$f":"AE1&\" \"&AE2","v":" رقم القرار"},{"$f":"AE1&\" \"&AF2","v":" تاريخ القرار"},{"$f":"AG1&\" \"&AG2","v":" مادة التدريس"},{"$f":"AG1&\" \"&AH2","v":" الوظيفة على الكادر"},{"$f":"AI1&\" \"&AI2","v":" نوع المؤهل"},{"$f":"AI1&\" \"&AJ2","v":" اسم المؤهل"},{"$f":"AK1&\" \"&AK2","v":" جهة الحصول على المؤهل"},{"$f":"AK1&\" \"&AL2","v":" تقدير المؤهل"},{"$f":"AM1&\" \"&AM2","v":" تاريخ الحصول عليه"},{"$f":"AN1&\" \"&AN2","v":"المؤهل الأعلى \" نوع المؤهل \""},{"$f":"AN1&\" \"&AO2","v":"المؤهل الأعلى \" اسم المؤهل \""},{"$f":"AN1&\" \"&AP2","v":"المؤهل الأعلى \" جهة الحصول عليه \""},{"$f":"AN1&\" \"&AQ2","v":"المؤهل الأعلى \" التقدير \""},{"$f":"AN1&\" \"&AR2","v":"المؤهل الأعلى \" تاريخ الحصول \""},{"$f":"AN1&\" \"&AS2","v":"المؤهل الأعلى \" الزيادة \""}]
[1,"شئون الطلبة والامتحانات","ابتدائي",123456,27108131600318,"محمد محمد الدسوقي 1",{"$f":"RIGHT(LEFT(E4,7),2)","v":"13"},{"$f":"RIGHT(LEFT(E4,5),2)","v":"08"},{"$f":"IF(E4=\"\",\"\",IF(ISODD(MID(E4,1,1)),MID(E4,2,2)+2000,MID(E4,2,2)+1900))","v":1971},{"$f":"IF(E4=\"\",\"\",DATE(I4,H4,G4))","v":"1971-08-13"},{"$f":"IF(E4=\"\",\"\",($K$1+J4)-1)","v":"2031-08-12"},{"$f":"Kh_Date_Sex_Province($E4,3)","v":"الغربية"},{"$f":"IF(E4=\"\",\"\",IF(ISODD(MID(E4,13,1)),\"ذكر\",\"أنثى\"))","v":"ذكر"},"مسلم","مصري","متزوج + 3",{"$f":"IF(F4=\"\",\"\",\"الغربية\")","v":"الغربية"},"محلة منوف مركز طنطا","01000111000","المجموعة النوعية لوظائف كادر المعلم","1996-12-28",{"$f":"IF(U4=\"\",\"\",DATEDIF(U4,$U$1,\"md\"))","v":0},{"$f":"IF(U4=\"\",\"\",DATEDIF(U4,$U$1,\"ym\"))","v":11},{"$f":"IF(U4=\"\",\"\",DATEDIF(U4,$U$1,\"y\"))","v":23},"منتدب داخل الوزارة",null,"معلم خبير","5109","2018-10-18","ــــــــــ","ــــــــــ","ــــــــــ","اللغة العربية","معلم فصل ابتدائي","عليا","بكالوريوس تربية","جامعة طنطا","مقبول",null,"بدون","بدون","بدون","بدون","بدون","بدون"]
[2,"شئون الطلبة والامتحانات","ابتدائي",123456,27108131600318,"محمد محمد الدسوقي 2",{"$f":"RIGHT(LEFT(E5,7),2)","v":"13"},{"$f":"RIGHT(LEFT(E5,5),2)","v":"08"},{"$f":"IF(E5=\"\",\"\",IF(ISODD(MID(E5,1,1)),MID(E5,2,2)+2000,MID(E5,2,2)+1900))","v":1971},{"$f":"IF(E5=\"\",\"\",DATE(I5,H5,G5))","v":"1971-08-13"},{"$f":"IF(E5=\"\",\"\",($K$1+J5)-1)","v":"2031-08-12"},{"$f":"Kh_Date_Sex_Province($E5,3)","v":"الغربية"},{"$f":"IF(E5=\"\",\"\",IF(ISODD(MID(E5,13,1)),\"ذكر\",\"أنثى\"))","v":"ذكر"},"مسلم","مصري","متزوج + 3",{"$f":"IF(F5=\"\",\"\",\"الغربية\")","v":"الغربية"},"سبطاس مركز طنطا","01000111001","المجموعة النوعية لوظائف كادر المعلم","1997-07-03",{"$f":"IF(U5=\"\",\"\",DATEDIF(U5,$U$1,\"md\"))","v":25},{"$f":"IF(U5=\"\",\"\",DATEDIF(U5,$U$1,\"ym\"))","v":4},{"$f":"IF(U5=\"\",\"\",DATEDIF(U5,$U$1,\"y\"))","v":23},"منتدب داخل الوزارة","2002-02-07","معلم خبير","5109","2018-10-18","ــــــــــ","ــــــــــ","ــــــــــ","حاسب آلي متفرغ","معلم الحاسب الآلي","عليا","بكالوريوس تربية","جامعة طنطا","مقبول","2000-11-01","بدون","بدون","بدون","بدون","بدون","بدون"]
[3,"مكتب مدير الإدارة","ابتدائي",123456,27108131600318,"محمد محمد الدسوقي 3",{"$f":"RIGHT(LEFT(E6,7),2)","v":"13"},{"$f":"RIGHT(LEFT(E6,5),2)","v":"08"},{"$f":"IF(E6=\"\",\"\",IF(ISODD(MID(E6,1,1)),MID(E6,2,2)+2000,MID(E6,2,2)+1900))","v":1971},{"$f":"IF(E6=\"\",\"\",DATE(I6,H6,G6))","v":"1971-08-13"},"2031-08-12",{"$f":"Kh_Date_Sex_Province($E6,3)","v":"الغربية"},{"$f":"IF(E6=\"\",\"\",IF(ISODD(MID(E6,13,1)),\"ذكر\",\"أنثى\"))","v":"ذكر"},"مسلم","مصري","متزوج + 3","الغربية","منشأة الأوقاف مركز طنطا","01000111002","المجموعة النوعية لوظائف كادر المعلم","2000-03-20",8,8,20,"منتدب داخل الوزارة","2005-04-19","معلم أول أ","6210","2014-10-20","ــــــــــ","ــــــــــ","ــــــــــ","اللغة العربية والتربية الاسلامية","مدرس ابتدائي","عليا","ليسانس آداب وتربية","جامعة طنطا","جيد جدا","2002-07-01","بدون","بدون","بدون","بدون","بدون","بدون"]
[4,"شئون الطلبة والامتحانات","ثانوي عام",123456,27108131600318,"محمد محمد الدسوقي 4","13","08",1971,"1971-08-13","2031-08-12",{"$f":"Kh_Date_Sex_Province($E7,3)","v":"الغربية"},"ذكر","مسلم","مصري","متزوج + 3","الغربية","ح السيد عبداللطيف من ش أبومندور 1","01000111003","المجموعة النوعية للوظائف المكتبية","1984-12-01",27,11,35,"منتدب داخل الوزارة","1985-03-23","رئيس وحدة","6311","2003-12-08","الأولى","6665","2014-10-01","ــــــــــ","ــــــــــ","متوسطة","ثانوية تجارية","وزارة التربية والتعليم","ـــــ","1980-05-01","بدون","بدون","بدون","بدون","بدون","بدون"]
[5,"شئون الطلبة والامتحانات","ـــــ",123456,27108131600318,"محمد محمد الدسوقي 5","13","08",1971,"1971-08-13","2031-08-12","الغربية","ذكر","مسلم","مصري","متزوج ","الغربية","سبرباي مركز طنطا","01000111004","المجموعة النوعية للوظائف المكتبية","1994-03-26",2,8,26,"على رأس العمل","1994-06-06","رئيس وحدة","6313","2003-12-08","الأولى","5646","2014-12-01","ــــــــــ","ــــــــــ","فوق المتوسطة","شهادة إعداد فنيين تجاريين","وزارة التعليم العالي","ـــــ","1983-09-01","بدون","بدون","بدون","بدون","بدون","بدون"]
[6,"شئون الطلبة والامتحانات","ـــــ",123456,27108131600318,"محمد محمد الدسوقي 6","13","08",1971,"1971-08-13","2031-08-12","الغربية","ذكر","مسلم","مصري","متزوج ","الغربية","الرجدية مركز طنطا","01000111005","المجموعة النوعية للوظائف المكتبية","1994-11-12",16,0,26,"على رأس العمل","1995-02-11","رئيس وحدة","6486","2005-11-17","الأولى","5646","2016-07-01","ــــــــــ","ــــــــــ","متوسطة","ثانوية تجارية","وزارة التربية والتعليم","ـــــ","1983-06-15","بدون","بدون","بدون","بدون","بدون","بدون"]
[7,"شئون الطلبة والامتحانات","ـــــ",123456,27108131600318,"محمد محمد الدسوقي 7","13","08",1971,"1971-08-13","2031-08-12","الغربية","ذكر","مسلم","مصري","متزوج + 3","الغربية","ش سعيد جاد ومتفرع من ش ثروت","01000111006","المجموعة النوعية للوظائف المكتبية","1989-06-30",29,4,31,"على رأس العمل","1991-06-06","رئيس وحدة","121","2004-03-14","الأولى",6665,"2014-10-01","ــــــــــ","ــــــــــ","متوسطة","ثانوية تجارية","وزارة التربية والتعليم","ـــــ","1982-01-07","بدون","بدون","بدون","بدون","بدون","بدون"]
[8,"شئون الطلبة والامتحانات","ـــــ",123456,27108131600318,"محمد محمد الدسوقي 8","13","08",1971,"1971-08-13","2031-08-12","الغربية","ذكر","مسلم","مصري","أرمل","الغربية","ش فؤاد حرب من راغب 10","01000111007","المجموعة النوعية للوظائف المكتبية","1994-11-12",16,0,26,"على رأس العمل","1994-12-05","رئيس وحدة","6486","2005-11-12","الأولى","5646","2016-07-01","ــــــــــ","ــــــــــ","متوسطة","ثانوية تجارية","وزارة التربية والتعليم","ـــــ","1983-07-01","بدون","بدون","بدون","بدون","بدون","بدون"]
[9,"شئون الطلبة والامتحانات","ـــــ",123456,27108131600318,"محمد محمد الدسوقي 9","13","08",1971,"1971-08-13","2031-08-12","الغربية","ذكر","مسلم","مصري","متزوج","الغربية","طنطا كفرة القرشي ش طهران","01000111008","المجموعة النوعية للوظائف المكتبية","1994-03-26",2,8,26,"على رأس العمل","1994-04-16","رئيس وحدة","6486","2005-11-17","الأولى","5646","2016-07-01","ــــــــــ","ــــــــــ","متوسطة","ثانوية تجارية","وزارة التربية والتعليم","ـــــ","1983-06-01","بدون","بدون","بدون","بدون","بدون","بدون"]
[10,"شئون الطلبة والامتحانات","---------",123456,27108131600318,"محمد محمد الدسوقي 10",{"$f":"RIGHT(LEFT(E13,7),2)","v":"13"},{"$f":"RIGHT(LEFT(E13,5),2)","v":"08"},{"$f":"IF(E13=\"\",\"\",IF(ISODD(MID(E13,1,1)),MID(E13,2,2)+2000,MID(E13,2,2)+1900))","v":1971},{"$f":"IF(E13=\"\",\"\",DATE(I13,H13,G13))","v":"1971-08-13"},"2031-08-12","الغربية",{"$f":"IF(E13=\"\",\"\",IF(ISODD(MID(E13,13,1)),\"ذكر\",\"أنثى\"))","v":"ذكر"},"مسلم","مصري","متزوج","الغربية","محلة منوف مركز طنطا","01000111009","المجموعة النوعية للوظائف المكتبية","2013-01-30",29,9,7,"على رأس العمل","2013-08-14","كاتب رابع - سكرتير رابع","2391","2013-07-28","الرابعة","2391","2013-01-30","------","-------","متوسطة","دبلوم صناعة ثانوي","وزارة التربية والتعليم","-----","1995-05-01","بدون","بدون","بدون","بدون","بدون","بدون"]
[11,"شئون الطلبة والامتحانات","------",123456,27108131600318,"محمد محمد الدسوقي 11",{"$f":"RIGHT(LEFT(E14,7),2)","v":"13"},{"$f":"RIGHT(LEFT(E14,5),2)","v":"08"},{"$f":"IF(E14=\"\",\"\",IF(ISODD(MID(E14,1,1)),MID(E14,2,2)+2000,MID(E14,2,2)+1900))","v":1971},{"$f":"IF(E14=\"\",\"\",DATE(I14,H14,G14))","v":"1971-08-13"},"2031-08-12","الغربية",{"$f":"IF(E14=\"\",\"\",IF(ISODD(MID(E14,13,1)),\"ذكر\",\"أنثى\"))","v":"ذكر"},"مسلم","مصري","متزوج","الغربية","طنطا ش شوقي ح فرج السعدني 9","01000111010","المجموعة النوعية للوظائف المكتبية","1994-11-12",16,0,26,"على رأس العمل","1994-12-03","رئيس وحدة","6486","2005-11-12","الأولى","5646","2011-07-01","------","------","متوسطة","ثانوية تجارية","وزارة التربية والتعليم","------","1983-07-01","بدون","بدون","بدون","بدون","بدون","بدون"]
[12,"شئون الطلبة والامتحانات","ـــــ",123456,27108131600318,"محمد محمد الدسوقي 12",{"$f":"RIGHT(LEFT(E15,7),2)","v":"13"},{"$f":"RIGHT(LEFT(E15,5),2)","v":"08"},{"$f":"IF(E15=\"\",\"\",IF(ISODD(MID(E15,1,1)),MID(E15,2,2)+2000,MID(E15,2,2)+1900))","v":1971},{"$f":"IF(E15=\"\",\"\",DATE(I15,H15,G15))","v":"1971-08-13"},"2031-08-12",{"$f":"Kh_Date_Sex_Province($E15,3)","v":"الغربية"},{"$f":"IF(E15=\"\",\"\",IF(ISODD(MID(E15,13,1)),\"ذكر\",\"أنثى\"))","v":"ذكر"},"مسلم","مصري","متزوج","الغربية","نواج مركز طنطا","01000111011","المجموعة النوعية لوظائف الهندسة","2015-08-27",1,3,5,"منتدب داخل الوزارة","2017-07-11","فني رابع","911","2017-05-17","الرابعة","911","2015-08-27","ــــــــــ","ــــــــــ","متوسطة","دبلوم صناعة ثانوي","وزارة التربية والتعليم",null,"1995-05-01","بدون","بدون","بدون","بدون","بدون","بدون"]
[13,"شئون الطلبة والامتحانات","ـــــ",123456,27108131600318,"محمد محمد الدسوقي 13",{"$f":"RIGHT(LEFT(E16,7),2)","v":"13"},{"$f":"RIGHT(LEFT(E16,5),2)","v":"08"},{"$f":"IF(E16=\"\",\"\",IF(ISODD(MID(E16,1,1)),MID(E16,2,2)+2000,MID(E16,2,2)+1900))","v":1971},{"$f":"IF(E16=\"\",\"\",DATE(I16,H16,G16))","v":"1971-08-13"},"2031-08-12","الغربية",{"$f":"IF(E16=\"\",\"\",IF(ISODD(MID(E16,13,1)),\"ذكر\",\"أنثى\"))","v":"ذكر"},"مسلم","مصري","متزوج + 2","الغربية","شارع السباعي 48","01000111012","المجموعة النوعية لوظائف كادر المعلم","1988-09-01",27,2,32,"منتدب داخل الوزارة","1988-09-21","معلم أول أ","6210","2014-10-20","ــــــــــ","ــــــــــ","ــــــــــ","مدرس فصل","معلم لغة عربية ابتدائي","فوق المتوسطة","دبلوم المعلمين و المعلمات","وزارة التربية والتعليم","------","1988-05-01","بدون","بدون","بدون","بدون","بدون","بدون"]
[14,"شئون الطلبة والامتحانات","ـــــ",123456,27108131600318,"محمد محمد الدسوقي 14","13","08",1971,"1971-08-13","2031-08-12",{"$f":"Kh_Date_Sex_Province($E17,3)","v":"الغربية"},"ذكر","مسلم","مصري","متزوج + 1","الغربية","منشأة جنزور مركز طنطا","01000111013","المجموعة النوعية للوظتئف المكتبية","1987-05-01",27,6,33,"على رأس العمل","1987-10-01","رئيس وحدة","6313","2003-12-08","الأولى","6665","2014-07-01","ــــــــــ","ــــــــــ","متوسطة","ثانوية تجارية","وزارة التربية والتعليم","------","1981-06-01","بدون","بدون","بدون","بدون","بدون","بدون"]
[15,"مكتب مدير الإدارة","------",123456,27108131600318,"محمد محمد الدسوقي 15","13","08",1971,"1971-08-13","2031-08-12","الغربية","ذكر","مسلم","مصري","أعزب","الغربية","محلة منوف مركز طنطا","01000111014","المجموعة النوعية للوظائف المكتبية","2015-07-28",0,4,5,"على رأس العمل","2017-05-28","كاتب رابع - سكرتير رابع","911","2017-05-17","الرابعة","911","2015-07-28","------","------","متوسطة","ثانوية تجارية","وزارة التربية و التعليم","------","1994-05-01","بدون","بدون","بدون","بدون","بدون","بدون"]
[16,"مكتب مدير الإدارة","------",123456,27108131600318,"محمد محمد الدسوقي 16","13","08",1971,"1971-08-13","2031-08-12","الغربية","ذكر","مسلم","مصري","متزوج","الغربية","محلة منوف مركز طنطا","01000111015","المجموعة النوعية للوظائف المكتبية","2015-08-27",1,3,5,"على رأس العمل","2017-05-28","كاتب رابع - سكرتير رابع","911","2017-05-17","الرابعة","911","2015-08-27","------","------","متوسطة","ثانوية تجارية","وزارة التربية و التعليم","------","1989-05-01","بدون","بدون","بدون","بدون","بدون","بدون"]
[17,"مكتب مدير الإدارة","------",123456,27108131600318,"محمد محمد الدسوقي 17","13","08",1971,"1971-08-13","2031-08-12","الغربية","ذكر","مسلم","مصري","متزوج","الغربية","طنطا ش السلطان مراد رقم 49","01000111016","المجموعة النوعية للوظائف المكتبية","1994-03-26",2,8,26,"على رأس العمل","1994-05-15","رئيس وحدة","6468","2005-11-25","الأولى","5646","2016-12-13","------","------","متوسطة","ثانوية تجارية","وزارة التربية والتعليم","------","1983-06-30","بدون","بدون","بدون","بدون","بدون","بدون"]
[18,"مكتب مدير الإدارة","------",123456,27108131600318,"محمد محمد الدسوقي 18","13","08",1971,"1971-08-13","2031-08-12","الغربية","ذكر","مسلم","مصري","متزوج","الغربية","طنطا قحافة شارع المأذون","01000111017","المجموعة النوعية للوظائف المكتبية","1994-11-12",16,0,26,"على رأس العمل","1995-01-18","رئيس وحدة","213","2005-11-17","الأولى","5646","2016-07-01","------","------","متوسطة","ثانوية تجارية","وزارة التربية و التعليم","------","1983-09-01","بدون","بدون","بدون","بدون","بدون","بدون"]
[19,"مكتب مدير الإدارة","------",123456,27108131600318,"محمد محمد الدسوقي 19","13","08",1971,"1971-08-13","2031-08-12","الغربية","ذكر","مسلم","مصري","متزوج + 3","الغربية","ميت حبيش القبلية","01000111018","وظائف الخدمات المعاونة","1994-02-12",16,9,26,"على رأس العمل","1994-02-12","عامل خدمات ","80","1994-01-22","الثالثة","1876","2012-01-16","------","------","أقل من متوسطة","الابتدائية","وزارة التربية والتعليم","------","1983-12-01","بدون","بدون","بدون","بدون","بدون","بدون"]
[20,"مكتب مدير الإدارة","------",123456,27108131600318,"محمد محمد الدسوقي 20","13","08",1971,"1971-08-13","2031-08-12","الغربية","ذكر","مسلم","مصري","متزوج + 2","الغربية","الرجدية مركز طنطا","01000111019","وظائف الخدمات المعاونة","1993-09-16",12,2,27,"على رأس العمل","1993-10-16","عامل خدمات","4336","1993-09-26","الثالثة","5487","2010-09-21","------","------","محو أمية","محو أمية","هيئة محو الأمية","------","1982-07-03","بدون","بدون","بدون","بدون","بدون","بدون"]
[21,"شئون الطلبة والامتحانات","------",123456,27108131600318,"محمد محمد الدسوقي 21","13","08",1971,"1971-08-13","2031-08-12","الغربية","ذكر","مسلم","مصري","متزوج","الغربية","طنطا ثان","01000111020","المجموعة النوعية للوظائف المكتبية","2013-01-30",29,9,7,"على رأس العمل","2013-08-28","كاتب رابع - سكرتير رابع","2391","2013-07-28","الرابعة","2391","2013-01-30","------","------","متوسطة","دبلوم صناعة ثانوي","وزارة التربية والتعليم","------","1993-05-01","بدون ","بدون","بدون","بدون","بدون","بدون"]
[22,"الشئون الإدارية","------",123456,27108131600318,"محمد محمد الدسوقي 22","13","08",1971,"1971-08-13","2031-08-12","الغربية","ذكر","مسلم","مصري","متزوج","الغربية","طنطا ثان","01000111021","المجموعة النوعية للوظائف المكتبية","2013-01-31",28,9,7,"على رأس العمل","2013-08-29","كاتب رابع - سكرتير رابع","2392","2013-07-29","الرابعة","2392","2013-01-31","------","------","متوسطة","دبلوم صناعة ثانوي","وزارة التربية والتعليم","------","1993-05-02","بدون ","بدون","بدون","بدون","بدون","بدون"]
[23,"الشئون الإدارية","------",123456,27108131600318,"محمد محمد الدسوقي 23","13","08",1971,"1971-08-13","2031-08-12","الغربية","ذكر","مسلم","مصري","متزوج","الغربية","طنطا ثان","01000111022","المجموعة النوعية للوظائف المكتبية","2013-02-01",27,9,7,"على رأس العمل","2013-08-30","كاتب رابع - سكرتير رابع","2393","2013-07-30","الرابعة","2393","2013-02-01","------","------","متوسطة","دبلوم صناعة ثانوي","وزارة التربية والتعليم","------","1993-05-03","بدون ","بدون","بدون","بدون","بدون","بدون"]
[24,"الشئون الإدارية","------",123456,27108131600319,"محمد محمد الدسوقي 24","13","08",1971,"1971-08-13","2031-08-12","الغربية","ذكر","مسلم","مصري","متزوج","الغربية","طنطا ثان","01000111023","المجموعة النوعية للوظائف المكتبية","2013-02-02",26,9,7,"على رأس العمل","2013-08-31","كاتب رابع - سكرتير رابع","2394","2013-07-31","الرابعة","2394","2013-02-02","------","------","متوسطة","دبلوم صناعة ثانوي","وزارة التربية والتعليم","------","1993-05-04","بدون ","بدون","بدون","بدون","بدون","بدون"]
[25,"شئون الطلبة والامتحانات","------",123456,27108131600319,"محمد محمد الدسوقي 25","13","08",1971,"1971-08-13","2031-08-12","الغربية","ذكر","مسلم","مصري","متزوج","الغربية","طنطا ثان","01000111024","المجموعة النوعية للوظائف المكتبية","2013-02-03",25,9,7,"على رأس العمل","2013-09-01","كاتب رابع - سكرتير رابع","2395","2013-08-01","الرابعة","2395","2013-02-03","------","------","متوسطة","دبلوم صناعة ثانوي","وزارة التربية والتعليم","------","1993-05-05","بدون ","بدون","بدون","بدون","بدون","بدون"]
[26,null,null,null,null,null,"","","","","",{"$f":"Kh_Date_Sex_Province($E29,3)","v":""},"",null,null,null,"",null,null,null,null,"","",""]
[27,null,null,null,null,null,"","","","","","","",null,null,null,"",null,null,null,null,"","",""]
[28,null,null,null,null,null,"","","","","","","",null,null,null,"",null,null,null,null,"","",""]
[29,null,null,null,null,null,"","","","","","","",null,null,null,"",null,null,null,null,"","",""]
[30,null,null,null,null,null,"","","","","","","",null,null,null,"",null,null,null,null,"","",""]
[31,null,null,null,null,null,"","","","","","","",null,null,null,"",null,null,null,null,"","",""]
[32,null,null,null,null,null,"","","","","","","",null,null,null,"",null,null,null,null,"","",""]
[33,null,null,null,null,null,"","","","","","","",null,null,null,"",null,null,null,null,"","",""]
[34,null,null,null,null,null,"","","","","","","",null,null,null,"",null,null,null,null,"","",""]
[35,null,null,null,null,null,"","","","","","","",null,null,null,"",null,null,null,null,"","",""]
[36,null,null,null,null,null,"","","","","","","",null,null,null,"",null,null,null,null,"","",""]
[37,null,null,null,null,null,"","","","","","","",null,null,null,"",null,null,null,null,"","",""]
[38,null,null,null,null,null,"","","","","","","",null,null,null,"",null,null,null,null,"","",""]
[39,null,null,null,null,null,"","","","","","","",null,null,null,"",null,null,null,null,"","",""]
[40,null,null,null,null,null,"","","","","","","",null,null,null,"",null,null,null,null,"","",""]
[41,null,null,null,null,null,"","","","","","","",null,null,null,"",null,null,null,null,"","",""]
[42,null,null,null,null,null,"","","","","","","",null,null,null,"",null,null,null,null,"","",""]
[43,null,null,null,null,null,"","","","","","","",null,null,null,"",null,null,null,null,"","",""]
[44,null,null,null,null,null,"","","","","","","",null,null,null,"",null,null,null,null,"","",""]
[45,null,null,null,null,null,"","","","","","","",null,null,null,"",null,null,null,null,"","",""]
[46,null,null,null,null,null,"","","","","","","",null,null,null,"",null,null,null,null,"","",""]
[47,null,null,null,null,null,"","","","","","","",null,null,null,"",null,null,null,null,"","",""]
[48,null,null,null,null,null,"","","","","","","",null,null,null,"",null,null,null,null,"","",""]
[49,null,null,null,null,null,"","","","","","","",null,null,null,"",null,null,null,null,"","",""]
[50,null,null,null,null,null,"","","","","","","",null,null,null,"",null,null,null,null,"","",""]
[51,null,null,null,null,null,"","","","","","","",null,null,null,"",null,null,null,null,"","",""]
[52,null,null,null,null,null,"","","","","","","",null,null,null,"",null,null,null,null,"","",""]
[53,null,null,null,null,null,"","","","","","","",null,null,null,"",null,null,null,null,"","",""]
[54,null,null,null,null,null,"","","","","","","",null,null,null,"",null,null,null,null,"","",""]
[55,null,null,null,null,null,"","","","","","","",null,null,null,"",null,null,null,null,"","",""]
[56,null,null,null,null,null,"","","","","","","",null,null,null,"",null,null,null,null,"","",""]
[57,null,null,null,null,null,"","","","","","","",null,null,null,"",null,null,null,null,"","",""]
[58,null,null,null,null,null,"","","","","","","",null,null,null,"",null,null,null,null,"","",""]
[59,null,null,null,null,null,"","","","","","","",null,null,null,"",null,null,null,null,"","",""]
[60,null,null,null,null,null,"","","","","","","",null,null,null,"",null,null,null,null,"","",""]
[61,null,null,null,null,null,"","","","","","","",null,null,null,"",null,null,null,null,"","",""]
[62,null,null,null,null,null,"","","","","","","",null,null,null,"",null,null,null,null,"","",""]
[63,null,null,null,null,null,"","","","","","","",null,null,null,"",null,null,null,null,"","",""]
[64,null,null,null,null,null,"","","","","","","",null,null,null,"",null,null,null,null,"","",""]
[65,null,null,null,null,null,"","","","","",{"$f":"Kh_Date_Sex_Province($E68,3)","v":""},"",null,null,null,"",null,null,null,null,"","",""]
[66,null,null,null,null,null,"","","","",{"$f":"IF(E69=\"\",\"\",($K$1+J69)-1)","v":""},"","",null,null,null,{"$f":"IF(F69=\"\",\"\",\"الغربية\")","v":""},null,null,null,null,{"$f":"IF(U69=\"\",\"\",DATEDIF(U69,$U$1,\"md\"))","v":""},{"$f":"IF(U69=\"\",\"\",DATEDIF(U69,$U$1,\"ym\"))","v":""},{"$f":"IF(U69=\"\",\"\",DATEDIF(U69,$U$1,\"y\"))","v":""}]
[67,null,null,null,null,null,"","","","","","","",null,null,null,"",null,null,null,null,"","",""]
[68,null,null,null,null,null,"","","","","","","",null,null,null,"",null,null,null,null,"","",""]
[69,null,null,null,null,null,"","","","","","","",null,null,null,"",null,null,null,null,"","",""]
[70,null,null,null,null,null,"","","","","","","",null,null,null,"",null,null,null,null,"","",""]
[71,null,null,null,null,null,"","","","","","","",null,null,null,"",null,null,null,null,"","",""]
[72,null,null,null,null,null,"","","","","","","",null,null,null,"",null,null,null,null,"","",""]
[73,null,null,null,null,null,"","","","","","","",null,null,null,"",null,null,null,null,"","",""]
[74,null,null,null,null,null,"","","","","","","",null,null,null,"",null,null,null,null,"","",""]
[75,null,null,null,null,null,"","","","","","","",null,null,null,"",null,null,null,null,"","",""]
[76,null,null,null,null,null,"","","","","","","",null,null,null,"",null,null,null,null,"","",""]
[77,null,null,null,null,null,{"$f":"RIGHT(LEFT(E80,7),2)","v":""},{"$f":"RIGHT(LEFT(E80,5),2)","v":""},{"$f":"IF(E80=\"\",\"\",IF(ISODD(MID(E80,1,1)),MID(E80,2,2)+2000,MID(E80,2,2)+1900))","v":""},{"$f":"IF(E80=\"\",\"\",DATE(I80,H80,G80))","v":""},"","",{"$f":"IF(E80=\"\",\"\",IF(ISODD(MID(E80,13,1)),\"ذكر\",\"أنثى\"))","v":""},null,null,null,"",null,null,null,null,"","",""]
[78,null,null,null,null,null,"","","","","","","",null,null,null,"",null,null,null,null,"","",""]
[79,null,null,null,null,null,"","","","","","","",null,null,null,"",null,null,null,null,"","",""]
[80,null,null,null,null,null,"","","","","","","",null,null,null,"",null,null,null,null,"","",""]
[81,null,null,null,null,null,"","","","","","","",null,null,null,"",null,null,null,null,"","",""]
[82,null,null,null,null,null,"","","","","","","",null,null,null,"",null,null,null,null,"","",""]
[83,null,null,null,null,null,"","","","","","","",null,null,null,"",null,null,null,null,"","",""]
[84,null,null,null,null,null,"","","","","","","",null,null,null,"",null,null,null,null,"","",""]
[85,null,null,null,null,null,"","","","","","","",null,null,null,"",null,null,null,null,"","",""]
[86,null,null,null,null,null,"","","","","","","",null,null,null,"",null,null,null,null,"","",""]
[87,null,null,null,null,null,"","","","","","","",null,null,null,"",null,null,null,null,"","",""]
[88,null,null,null,null,null,"","","","","","","",null,null,null,"",null,null,null,null,"","",""]
[89,null,null,null,null,null,"","","","","","","",null,null,null,"",null,null,null,null,"","",""]
[90,null,null,null,null,null,"","","","","","","",null,null,null,"",null,null,null,null,"","",""]
[91,null,null,null,null,null,"","","","","","","",null,null,null,"",null,null,null,null,"","",""]
[92,null,null,null,null,null,"","","","","","","",null,null,null,"",null,null,null,null,"","",""]
[93,null,null,null,null,null,"","","","","","","",null,null,null,"",null,null,null,null,"","",""]
[94,null,null,null,null,null,"","","","","","","",null,null,null,"",null,null,null,null,"","",""]
[95,null,null,null,null,null,"","","","","","","",null,null,null,"",null,null,null,null,"","",""]
[96,null,null,null,null,null,"","","","","","","",null,null,null,"",null,null,null,null,"","",""]
[97,null,null,null,null,null,"","","","","","","",null,null,null,"",null,null,null,null,"","",""]
[98,null,null,null,null,null,"","","","","","","",null,null,null,"",null,null,null,null,"","",""]
[99,null,null,null,null,null,"","","","","","","",null,null,null,"",null,null,null,null,"","",""]
[100,null,null,null,null,null,"","","","","","","",null,null,null,"",null,null,null,null,"","",""]
[101,null,null,null,null,null,"","","","","","","",null,null,null,"",null,null,null,null,"","",""]
[102,null,null,null,null,null,"","","","","","","",null,null,null,"",null,null,null,null,"","",""]
[103,null,null,null,null,null,"","","","","","","",null,null,null,"",null,null,null,null,"","",""]
[104,null,null,null,null,null,"","","","","","","",null,null,null,"",null,null,null,null,"","",""]
[105,null,null,null,null,null,"","","","","","","",null,null,null,"",null,null,null,null,"","",""]
[106,null,null,null,null,null,"","","","","","","",null,null,null,"",null,null,null,null,"","",""]
[107,null,null,null,null,null,"","","","","","","",null,null,null,"",null,null,null,null,"","",""]
[108,null,null,null,null,null,"","","","","","","",null,null,null,"",null,null,null,null,"","",""]
[109,null,null,null,null,null,"","","","","","","",null,null,null,"",null,null,null,null,"","",""]
[110,null,null,null,null,null,"","","","","","","",null,null,null,"",null,null,null,null,"","",""]
[111,null,null,null,null,null,"","","","","","","",null,null,null,"",null,null,null,null,"","",""]
[112,null,null,null,null,null,"","","","","","","",null,null,null,"",null,null,null,null,"","",""]
[113,null,null,null,null,null,"","","","","","","",null,null,null,"",null,null,null,null,"","",""]
[114,null,null,null,null,null,"","","","","","","",null,null,null,"",null,null,null,null,"","",""]
[115,null,null,null,null,null,"","","","","","","",null,null,null,"",null,null,null,null,"","",""]
[116,null,null,null,null,null,"","","","","","","",null,null,null,"",null,null,null,null,"","",""]
[117,null,null,null,null,null,"","","","","","","",null,null,null,"",null,null,null,null,"","",""]
[118,null,null,null,null,null,"","","","","","","",null,null,null,"",null,null,null,null,"","",""]
[119,null,null,null,null,null,"","","","","","","",null,null,null,"",null,null,null,null,"","",""]
[120,null,null,null,null,null,"","","","","","","",null,null,null,"",null,null,null,null,"","",""]
[121,null,null,null,null,null,"","","","","","","",null,null,null,"",null,null,null,null,"","",""]
[122,null,null,null,null,null,"","","","","","","",null,null,null,"",null,null,null,null,"","",""]
[123,null,null,null,null,null,"","","","","","","",null,null,null,"",null,null,null,null,"","",""]
[124,null,null,null,null,null,"","","","","","","",null,null,null,"",null,null,null,null,"","",""]
[125,null,null,null,null,null,"","","","","","","",null,null,null,"",null,null,null,null,"","",""]
[126,null,null,null,null,null,"","","","","","","",null,null,null,"",null,null,null,null,"","",""]
[127,null,null,null,null,null,"","","","","","","",null,null,null,"",null,null,null,null,"","",""]
[128,null,null,null,null,null,"","","","","","","",null,null,null,"",null,null,null,null,"","",""]
[129,null,null,null,null,null,"","","","","",{"$f":"Kh_Date_Sex_Province($E132,3)","v":""},"",null,null,null,"",null,null,null,null,"","",""]
[130,null,null,null,null,null,"","","","",{"$f":"IF(E133=\"\",\"\",($K$1+J133)-1)","v":""},"","",null,null,null,{"$f":"IF(F133=\"\",\"\",\"الغربية\")","v":""},null,null,null,null,{"$f":"IF(U133=\"\",\"\",DATEDIF(U133,$U$1,\"md\"))","v":""},{"$f":"IF(U133=\"\",\"\",DATEDIF(U133,$U$1,\"ym\"))","v":""},{"$f":"IF(U133=\"\",\"\",DATEDIF(U133,$U$1,\"y\"))","v":""}]
[131,null,null,null,null,null,"","","","","","","",null,null,null,"",null,null,null,null,"","",""]
[132,null,null,null,null,null,"","","","","","","",null,null,null,"",null,null,null,null,"","",""]
[133,null,null,null,null,null,"","","","","","","",null,null,null,"",null,null,null,null,"","",""]
[134,null,null,null,null,null,"","","","","","","",null,null,null,"",null,null,null,null,"","",""]
[135,null,null,null,null,null,"","","","","","","",null,null,null,"",null,null,null,null,"","",""]
[136,null,null,null,null,null,"","","","","","","",null,null,null,"",null,null,null,null,"","",""]
[137,null,null,null,null,null,"","","","","","","",null,null,null,"",null,null,null,null,"","",""]
[138,null,null,null,null,null,"","","","","","","",null,null,null,"",null,null,null,null,"","",""]
[139,null,null,null,null,null,"","","","","","","",null,null,null,"",null,null,null,null,"","",""]
[140,null,null,null,null,null,"","","","","","","",null,null,null,"",null,null,null,null,"","",""]
[141,null,null,null,null,null,{"$f":"RIGHT(LEFT(E144,7),2)","v":""},{"$f":"RIGHT(LEFT(E144,5),2)","v":""},{"$f":"IF(E144=\"\",\"\",IF(ISODD(MID(E144,1,1)),MID(E144,2,2)+2000,MID(E144,2,2)+1900))","v":""},{"$f":"IF(E144=\"\",\"\",DATE(I144,H144,G144))","v":""},"","",{"$f":"IF(E144=\"\",\"\",IF(ISODD(MID(E144,13,1)),\"ذكر\",\"أنثى\"))","v":""},null,null,null,"",null,null,null,null,"","",""]
[142,null,null,null,null,null,"","","","","","","",null,null,null,"",null,null,null,null,"","",""]
[143,null,null,null,null,null,"","","","","","","",null,null,null,"",null,null,null,null,"","",""]
[144,null,null,null,null,null,"","","","","","","",null,null,null,"",null,null,null,null,"","",""]
[145,null,null,null,null,null,"","","","","","","",null,null,null,"",null,null,null,null,"","",""]
[null,null,null,null,null,null,"","","","","","","",null,null,null,"",null,null,null,null,"","",""]
[null,null,null,null,null,null,"","","","","","","",null,null,null,"",null,null,null,null,"","",""]
[null,null,null,null,null,null,"","","","","","","",null,null,null,"",null,null,null,null,"","",""]
[null,null,null,null,null,null,"","","","","","","",null,null,null,"",null,null,null,null,"","",""]
[null,null,null,null,null,null,"","","","","","","",null,null,null,"",null,null,null,null,"","",""]
[null,null,null,null,null,null,"","","","","","","",null,null,null,"",null,null,null,null,"","",""]
[null,null,null,null,null,null,"","","","","","","",null,null,null,"",null,null,null,null,"","",""]
[null,null,null,null,null,null,"","","","","","","",null,null,null,"",null,null,null,null,"","",""]
[null,null,null,null,null,null,"","","","","","","",null,null,null,"",null,null,null,null,"","",""]
[null,null,null,null,null,null,"","","","","","","",null,null,null,"",null,null,null,null,"","",""]
[null,null,null,null,null,null,"","","","","","","",null,null,null,"",null,null,null,null,"","",""]
[null,null,null,null,null,null,"","","","","","","",null,null,null,"",null,null,null,null,"","",""]
[null,null,null,null,null,null,"","","","","","","",null,null,null,"",null,null,null,null,"","",""]
[null,null,null,null,null,null,"","","","","","","",null,null,null,"",null,null,null,null,"","",""]
[null,null,null,null,null,null,"","","","","","","",null,null,null,"",null,null,null,null,"","",""]
[null,null,null,null,null,null,"","","","","","","",null,null,null,"",null,null,null,null,"","",""]
[null,null,null,null,null,null,"","","","","","","",null,null,null,"",null,null,null,null,"","",""]
[null,null,null,null,null,null,"","","","","","","",null,null,null,"",null,null,null,null,"","",""]
[null,null,null,null,null,null,"","","","","","","",null,null,null,"",null,null,null,null,"","",""]
[null,null,null,null,null,null,"","","","","","","",null,null,null,"",null,null,null,null,"","",""]
[null,null,null,null,null,null,"","","","","","","",null,null,null,"",null,null,null,null,"","",""]
[null,null,null,null,null,null,"","","","","","","",null,null,null,"",null,null,null,null,"","",""]
[null,null,null,null,null,null,"","","","","","","",null,null,null,"",null,null,null,null,"","",""]
[null,null,null,null,null,null,"","","","","","","",null,null,null,"",null,null,null,null,"","",""]
[null,null,null,null,null,null,"","","","","","","",null,null,null,"",null,null,null,null,"","",""]
[null,null,null,null,null,null,"","","","","","","",null,null,null,"",null,null,null,null,"","",""]
[null,null,null,null,null,null,"","","","","","","",null,null,null,"",null,null,null,null,"","",""]
[null,null,null,null,null,null,"","","","","","","",null,null,null,"",null,null,null,null,"","",""]
[null,null,null,null,null,null,"","","","","","","",null,null,null,"",null,null,null,null,"","",""]
[null,null,null,null,null,null,"","","","","","","",null,null,null,"",null,null,null,null,"","",""]
[null,null,null,null,null,null,"","","","","","","",null,null,null,"",null,null,null,null,"","",""]
[null,null,null,null,null,null,"","","","","","","",null,null,null,"",null,null,null,null,"","",""]
[null,null,null,null,null,null,"","","","","","","",null,null,null,"",null,null,null,null,"","",""]
[null,null,null,null,null,null,"","","","","","","",null,null,null,"",null,null,null,null,"","",""]
[null,null,null,null,null,null,"","","","","","","",null,null,null,"",null,null,null,null,"","",""]
[null,null,null,null,null,null,"","","","","","","",null,null,null,"",null,null,null,null,"","",""]
[null,null,null,null,null,null,"","","","","","","",null,null,null,"",null,null,null,null,"","",""]
[null,null,null,null,null,null,"","","","","","","",null,null,null,"",null,null,null,null,"","",""]
[null,null,null,null,null,null,"","","","","","","",null,null,null,"",null,null,null,null,"","",""]
[null,null,null,null,null,null,"","","","","","","",null,null,null,"",null,null,null,null,"","",""]
[null,null,null,null,null,null,"","","","","","","",null,null,null,"",null,null,null,null,"","",""]
[null,null,null,null,null,null,"","","","","","","",null,null,null,"",null,null,null,null,"","",""]
[null,null,null,null,null,null,"","","","","","","",null,null,null,"",null,null,null,null,"","",""]
[null,null,null,null,null,null,"","","","","","","",null,null,null,"",null,null,null,null,"","",""]
[null,null,null,null,null,null,"","","","","","","",null,null,null,"",null,null,null,null,"","",""]
[null,null,null,null,null,null,"","","","","","","",null,null,null,"",null,null,null,null,"","",""]
[null,null,null,null,null,null,"","","","","","","",null,null,null,"",null,null,null,null,"","",""]
[null,null,null,null,null,null,"","","","","",{"$f":"Kh_Date_Sex_Province($E196,3)","v":""},"",null,null,null,"",null,null,null,null,"","",""]
[null,null,null,null,null,null,"","","","",{"$f":"IF(E197=\"\",\"\",($K$1+J197)-1)","v":""},"","",null,null,null,{"$f":"IF(F197=\"\",\"\",\"الغربية\")","v":""},null,null,null,null,{"$f":"IF(U197=\"\",\"\",DATEDIF(U197,$U$1,\"md\"))","v":""},{"$f":"IF(U197=\"\",\"\",DATEDIF(U197,$U$1,\"ym\"))","v":""},{"$f":"IF(U197=\"\",\"\",DATEDIF(U197,$U$1,\"y\"))","v":""}]
[null,null,null,null,null,null,"","","","","","","",null,null,null,"",null,null,null,null,"","",""]
[null,null,null,null,null,null,"","","","","","","",null,null,null,"",null,null,null,null,"","",""]
[null,null,null,null,null,null,"","","","","","","",null,null,null,"",null,null,null,null,"","",""]
[null,null,null,null,null,null,"","","","","","","",null,null,null,"",null,null,null,null,"","",""]
[null,null,null,null,null,null,"","","","","","","",null,null,null,"",null,null,null,null,"","",""]
[null,null,null,null,null,null,"","","","","","","",null,null,null,"",null,null,null,null,"","",""]
[null,null,null,null,null,null,"","","","","","","",null,null,null,"",null,null,null,null,"","",""]
[null,null,null,null,null,null,"","","","","","","",null,null,null,"",null,null,null,null,"","",""]
[null,null,null,null,null,null,"","","","","","","",null,null,null,"",null,null,null,null,"","",""]
[null,null,null,null,null,null,"","","","","","","",null,null,null,"",null,null,null,null,"","",""]
[null,null,null,null,null,null,{"$f":"RIGHT(LEFT(E208,7),2)","v":""},{"$f":"RIGHT(LEFT(E208,5),2)","v":""},{"$f":"IF(E208=\"\",\"\",IF(ISODD(MID(E208,1,1)),MID(E208,2,2)+2000,MID(E208,2,2)+1900))","v":""},{"$f":"IF(E208=\"\",\"\",DATE(I208,H208,G208))","v":""},"","",{"$f":"IF(E208=\"\",\"\",IF(ISODD(MID(E208,13,1)),\"ذكر\",\"أنثى\"))","v":""},null,null,null,"",null,null,null,null,"","",""]
[null,null,null,null,null,null,"","","","","","","",null,null,null,"",null,null,null,null,"","",""]
[null,null,null,null,null,null,"","","","","","","",null,null,null,"",null,null,null,null,"","",""]
[null,null,null,null,null,null,"","","","","","","",null,null,null,"",null,null,null,null,"","",""]
[null,null,null,null,null,null,"","","","","","","",null,null,null,"",null,null,null,null,"","",""]
[null,null,null,null,null,null,"","","","","","","",null,null,null,"",null,null,null,null,"","",""]
[null,null,null,null,null,null,"","","","","","","",null,null,null,"",null,null,null,null,"","",""]
[null,null,null,null,null,null,"","","","","","","",null,null,null,"",null,null,null,null,"","",""]
[null,null,null,null,null,null,"","","","","","","",null,null,null,"",null,null,null,null,"","",""]
[null,null,null,null,null,null,"","","","","","","",null,null,null,"",null,null,null,null,"","",""]
[null,null,null,null,null,null,"","","","","","","",null,null,null,"",null,null,null,null,"","",""]
[null,null,null,null,null,null,"","","","","","","",null,null,null,"",null,null,null,null,"","",""]
[null,null,null,null,null,null,"","","","","","","",null,null,null,"",null,null,null,null,"","",""]
[null,null,null,null,null,null,"","","","","","","",null,null,null,"",null,null,null,null,"","",""]
[null,null,null,null,null,null,"","","","","","","",null,null,null,"",null,null,null,null,"","",""]
[null,null,null,null,null,null,"","","","","","","",null,null,null,"",null,null,null,null,"","",""]
[null,null,null,null,null,null,"","","","","","","",null,null,null,"",null,null,null,null,"","",""]
[null,null,null,null,null,null,"","","","","","","",null,null,null,"",null,null,null,null,"","",""]
[null,null,null,null,null,null,"","","","","","","",null,null,null,"",null,null,null,null,"","",""]
[null,null,null,null,null,null,"","","","","","","",null,null,null,"",null,null,null,null,"","",""]
[null,null,null,null,null,null,"","","","","","","",null,null,null,"",null,null,null,null,"","",""]
[null,null,null,null,null,null,"","","","","","","",null,null,null,"",null,null,null,null,"","",""]
[null,null,null,null,null,null,"","","","","","","",null,null,null,"",null,null,null,null,"","",""]
[null,null,null,null,null,null,"","","","","","","",null,null,null,"",null,null,null,null,"","",""]
[null,null,null,null,null,null,"","","","","","","",null,null,null,"",null,null,null,null,"","",""]
[null,null,null,null,null,null,"","","","","","","",null,null,null,"",null,null,null,null,"","",""]
[null,null,null,null,null,null,"","","","","","","",null,null,null,"",null,null,null,null,"","",""]
[null,null,null,null,null,null,"","","","","","","",null,null,null,"",null,null,null,null,"","",""]
[null,null,null,null,null,null,"","","","","","","",null,null,null,"",null,null,null,null,"","",""]
[null,null,null,null,null,null,"","","","","","","",null,null,null,"",null,null,null,null,"","",""]
[null,null,null,null,null,null,"","","","","","","",null,null,null,"",null,null,null,null,"","",""]
[null,null,null,null,null,null,"","","","","","","",null,null,null,"",null,null,null,null,"","",""]
[null,null,null,null,null,null,"","","","","","","",null,null,null,"",null,null,null,null,"","",""]
[null,null,null,null,null,null,"","","","","","","",null,null,null,"",null,null,null,null,"","",""]
[null,null,null,null,null,null,"","","","","","","",null,null,null,"",null,null,null,null,"","",""]
[null,null,null,null,null,null,"","","","","","","",null,null,null,"",null,null,null,null,"","",""]
[null,null,null,null,null,null,"","","","","","","",null,null,null,"",null,null,null,null,"","",""]
[null,null,null,null,null,null,"","","","","","","",null,null,null,"",null,null,null,null,"","",""]
[null,null,null,null,null,null,"","","","","","","",null,null,null,"",null,null,null,null,"","",""]
[null,null,null,null,null,null,"","","","","","","",null,null,null,"",null,null,null,null,"","",""]
[null,null,null,null,null,null,"","","","","","","",null,null,null,"",null,null,null,null,"","",""]
[null,null,null,null,null,null,"","","","","","","",null,null,null,"",null,null,null,null,"","",""]
[null,null,null,null,null,null,"","","","","","","",null,null,null,"",null,null,null,null,"","",""]
[null,null,null,null,null,null,"","","","","","","",null,null,null,"",null,null,null,null,"","",""]
[null,null,null,null,null,null,"","","","","","","",null,null,null,"",null,null,null,null,"","",""]
[null,null,null,null,null,null,"","","","","","","",null,null,null,"",null,null,null,null,"","",""]
[null,null,null,null,null,null,"","","","","","","",null,null,null,"",null,null,null,null,"","",""]
[null,null,null,null,null,null,"","","","","","","",null,null,null,"",null,null,null,null,"","",""]
[null,null,null,null,null,null,"","","","","","","",null,null,null,"",null,null,null,null,"","",""]
[null,null,null,null,null,null,"","","","","","","",null,null,null,"",null,null,null,null,"","",""]
[null,null,null,null,null,null,"","","","","","","",null,null,null,"",null,null,null,null,"","",""]
[null,null,null,null,null,null,"","","","","","","",null,null,null,"",null,null,null,null,"","",""]
[null,null,null,null,null,null,"","","","","",{"$f":"Kh_Date_Sex_Province($E260,3)","v":""},"",null,null,null,"",null,null,null,null,"","",""]
[null,null,null,null,null,null,"","","","",{"$f":"IF(E261=\"\",\"\",($K$1+J261)-1)","v":""},"","",null,null,null,{"$f":"IF(F261=\"\",\"\",\"الغربية\")","v":""},null,null,null,null,{"$f":"IF(U261=\"\",\"\",DATEDIF(U261,$U$1,\"md\"))","v":""},{"$f":"IF(U261=\"\",\"\",DATEDIF(U261,$U$1,\"ym\"))","v":""},{"$f":"IF(U261=\"\",\"\",DATEDIF(U261,$U$1,\"y\"))","v":""}]
[null,null,null,null,null,null,"","","","","","","",null,null,null,"",null,null,null,null,"","",""]
[null,null,null,null,null,null,"","","","","","","",null,null,null,"",null,null,null,null,"","",""]
[null,null,null,null,null,null,"","","","","","","",null,null,null,"",null,null,null,null,"","",""]
[null,null,null,null,null,null,"","","","","","","",null,null,null,"",null,null,null,null,"","",""]
[null,null,null,null,null,null,"","","","","","","",null,null,null,"",null,null,null,null,"","",""]
[null,null,null,null,null,null,"","","","","","","",null,null,null,"",null,null,null,null,"","",""]
[null,null,null,null,null,null,"","","","","","","",null,null,null,"",null,null,null,null,"","",""]
[null,null,null,null,null,null,"","","","","","","",null,null,null,"",null,null,null,null,"","",""]
[null,null,null,null,null,null,"","","","","","","",null,null,null,"",null,null,null,null,"","",""]
[null,null,null,null,null,null,"","","","","","","",null,null,null,"",null,null,null,null,"","",""]
[null,null,null,null,null,null,{"$f":"RIGHT(LEFT(E272,7),2)","v":""},{"$f":"RIGHT(LEFT(E272,5),2)","v":""},{"$f":"IF(E272=\"\",\"\",IF(ISODD(MID(E272,1,1)),MID(E272,2,2)+2000,MID(E272,2,2)+1900))","v":""},{"$f":"IF(E272=\"\",\"\",DATE(I272,H272,G272))","v":""},"","",{"$f":"IF(E272=\"\",\"\",IF(ISODD(MID(E272,13,1)),\"ذكر\",\"أنثى\"))","v":""},null,null,null,"",null,null,null,null,"","",""]
[null,null,null,null,null,null,"","","","","","","",null,null,null,"",null,null,null,null,"","",""]
[null,null,null,null,null,null,"","","","","","","",null,null,null,"",null,null,null,null,"","",""]
[null,null,null,null,null,null,"","","","","","","",null,null,null,"",null,null,null,null,"","",""]
[null,null,null,null,null,null,"","","","","","","",null,null,null,"",null,null,null,null,"","",""]
[null,null,null,null,null,null,"","","","","","","",null,null,null,"",null,null,null,null,"","",""]
[null,null,null,null,null,null,"","","","","","","",null,null,null,"",null,null,null,null,"","",""]
[null,null,null,null,null,null,"","","","","","","",null,null,null,"",null,null,null,null,"","",""]
[null,null,null,null,null,null,"","","","","","","",null,null,null,"",null,null,null,null,"","",""]
[null,null,null,null,null,null,"","","","","","","",null,null,null,"",null,null,null,null,"","",""]
[null,null,null,null,null,null,"","","","","","","",null,null,null,"",null,null,null,null,"","",""]
[null,null,null,null,null,null,"","","","","","","",null,null,null,"",null,null,null,null,"","",""]
[null,null,null,null,null,null,"","","","","","","",null,null,null,"",null,null,null,null,"","",""]
[null,null,null,null,null,null,"","","","","","","",null,null,null,"",null,null,null,null,"","",""]
[null,null,null,null,null,null,"","","","","","","",null,null,null,"",null,null,null,null,"","",""]
[null,null,null,null,null,null,"","","","","","","",null,null,null,"",null,null,null,null,"","",""]
[null,null,null,null,null,null,"","","","","","","",null,null,null,"",null,null,null,null,"","",""]
[null,null,null,null,null,null,"","","","","","","",null,null,null,"",null,null,null,null,"","",""]
[null,null,null,null,null,null,"","","","","","","",null,null,null,"",null,null,null,null,"","",""]
[null,null,null,null,null,null,"","","","","","","",null,null,null,"",null,null,null,null,"","",""]
[null,null,null,null,null,null,"","","","","","","",null,null,null,"",null,null,null,null,"","",""]
[null,null,null,null,null,null,"","","","","","","",null,null,null,"",null,null,null,null,"","",""]
[null,null,null,null,null,null,"","","","","","","",null,null,null,"",null,null,null,null,"","",""]
[null,null,null,null,null,null,"","","","","","","",null,null,null,"",null,null,null,null,"","",""]
[null,null,null,null,null,null,"","","","","","","",null,null,null,"",null,null,null,null,"","",""]
[null,null,null,null,null,null,"","","","","","","",null,null,null,"",null,null,null,null,"","",""]
[null,null,null,null,null,null,"","","","","","","",null,null,null,"",null,null,null,null,"","",""]
[null,null,null,null,null,null,"","","","","","","",null,null,null,"",null,null,null,null,"","",""]
[null,null,null,null,null,null,"","","","","","","",null,null,null,"",null,null,null,null,"","",""]
[null,null,null,null,null,null,"","","","","","","",null,null,null,"",null,null,null,null,"","",""]
[null,null,null,null,null,null,"","","","","","","",null,null,null,"",null,null,null,null,"","",""]
[null,null,null,null,null,null,"","","","","","","",null,null,null,"",null,null,null,null,"","",""]
[null,null,null,null,null,null,"","","","","","","",null,null,null,"",null,null,null,null,"","",""]
[null,null,null,null,null,null,"","","","","","","",null,null,null,"",null,null,null,null,"","",""]
[null,null,null,null,null,null,"","","","","","","",null,null,null,"",null,null,null,null,"","",""]
[null,null,null,null,null,null,"","","","","","","",null,null,null,"",null,null,null,null,"","",""]
[null,null,null,null,null,null,"","","","","","","",null,null,null,"",null,null,null,null,"","",""]
[null,null,null,null,null,null,"","","","","","","",null,null,null,"",null,null,null,null,"","",""]
[null,null,null,null,null,null,"","","","","","","",null,null,null,"",null,null,null,null,"","",""]
[null,null,null,null,null,null,"","","","","","","",null,null,null,"",null,null,null,null,"","",""]
[null,null,null,null,null,null,"","","","","","","",null,null,null,"",null,null,null,null,"","",""]
[null,null,null,null,null,null,"","","","","","","",null,null,null,"",null,null,null,null,"","",""]
[null,null,null,null,null,null,"","","","","","","",null,null,null,"",null,null,null,null,"","",""]
[null,null,null,null,null,null,"","","","","","","",null,null,null,"",null,null,null,null,"","",""]
[null,null,null,null,null,null,"","","","","","","",null,null,null,"",null,null,null,null,"","",""]
[null,null,null,null,null,null,"","","","","","","",null,null,null,"",null,null,null,null,"","",""]
[null,null,null,null,null,null,"","","","","","","",null,null,null,"",null,null,null,null,"","",""]
[null,null,null,null,null,null,"","","","","","","",null,null,null,"",null,null,null,null,"","",""]
[null,null,null,null,null,null,"","","","","","","",null,null,null,"",null,null,null,null,"","",""]
[null,null,null,null,null,null,"","","","","","","",null,null,null,"",null,null,null,null,"","",""]
[null,null,null,null,null,null,"","","","","","","",null,null,null,"",null,null,null,null,"","",""]
[null,null,null,null,null,null,"","","","","","","",null,null,null,"",null,null,null,null,"","",""]
[null,null,null,null,null,null,"","","","","",{"$f":"Kh_Date_Sex_Province($E324,3)","v":""},"",null,null,null,"",null,null,null,null,"","",""]
[null,null,null,null,null,null,"","","","",{"$f":"IF(E325=\"\",\"\",($K$1+J325)-1)","v":""},"","",null,null,null,{"$f":"IF(F325=\"\",\"\",\"الغربية\")","v":""},null,null,null,null,{"$f":"IF(U325=\"\",\"\",DATEDIF(U325,$U$1,\"md\"))","v":""},{"$f":"IF(U325=\"\",\"\",DATEDIF(U325,$U$1,\"ym\"))","v":""},{"$f":"IF(U325=\"\",\"\",DATEDIF(U325,$U$1,\"y\"))","v":""}]
[null,null,null,null,null,null,"","","","","","","",null,null,null,"",null,null,null,null,"","",""]
[null,null,null,null,null,null,"","","","","","","",null,null,null,"",null,null,null,null,"","",""]
[null,null,null,null,null,null,"","","","","","","",null,null,null,"",null,null,null,null,"","",""]
[null,null,null,null,null,null,"","","","","","","",null,null,null,"",null,null,null,null,"","",""]
[null,null,null,null,null,null,"","","","","","","",null,null,null,"",null,null,null,null,"","",""]
[null,null,null,null,null,null,"","","","","","","",null,null,null,"",null,null,null,null,"","",""]
[null,null,null,null,null,null,"","","","","","","",null,null,null,"",null,null,null,null,"","",""]
[null,null,null,null,null,null,"","","","","","","",null,null,null,"",null,null,null,null,"","",""]
[null,null,null,null,null,null,"","","","","","","",null,null,null,"",null,null,null,null,"","",""]
[null,null,null,null,null,null,"","","","","","","",null,null,null,"",null,null,null,null,"","",""]
[null,null,null,null,null,null,{"$f":"RIGHT(LEFT(E336,7),2)","v":""},{"$f":"RIGHT(LEFT(E336,5),2)","v":""},{"$f":"IF(E336=\"\",\"\",IF(ISODD(MID(E336,1,1)),MID(E336,2,2)+2000,MID(E336,2,2)+1900))","v":""},{"$f":"IF(E336=\"\",\"\",DATE(I336,H336,G336))","v":""},"","",{"$f":"IF(E336=\"\",\"\",IF(ISODD(MID(E336,13,1)),\"ذكر\",\"أنثى\"))","v":""},null,null,null,"",null,null,null,null,"","",""]
[null,null,null,null,null,null,"","","","","","","",null,null,null,"",null,null,null,null,"","",""]
[null,null,null,null,null,null,"","","","","","","",null,null,null,"",null,null,null,null,"","",""]
[null,null,null,null,null,null,"","","","","","","",null,null,null,"",null,null,null,null,"","",""]
[null,null,null,null,null,null,"","","","","","","",null,null,null,"",null,null,null,null,"","",""]
[null,null,null,null,null,null,"","","","","","","",null,null,null,"",null,null,null,null,"","",""]
[null,null,null,null,null,null,"","","","","","","",null,null,null,"",null,null,null,null,"","",""]
[null,null,null,null,null,null,"","","","","","","",null,null,null,"",null,null,null,null,"","",""]
[null,null,null,null,null,null,"","","","","","","",null,null,null,"",null,null,null,null,"","",""]
[null,null,null,null,null,null,"","","","","","","",null,null,null,"",null,null,null,null,"","",""]
[null,null,null,null,null,null,"","","","","","","",null,null,null,"",null,null,null,null,"","",""]
[null,null,null,null,null,null,"","","","","","","",null,null,null,"",null,null,null,null,"","",""]
[null,null,null,null,null,null,"","","","","","","",null,null,null,"",null,null,null,null,"","",""]
[null,null,null,null,null,null,"","","","","","","",null,null,null,"",null,null,null,null,"","",""]
[null,null,null,null,null,null,"","","","","","","",null,null,null,"",null,null,null,null,"","",""]
[null,null,null,null,null,null,"","","","","","","",null,null,null,"",null,null,null,null,"","",""]
[null,null,null,null,null,null,"","","","","","","",null,null,null,"",null,null,null,null,"","",""]
[null,null,null,null,null,null,"","","","","","","",null,null,null,"",null,null,null,null,"","",""]
[null,null,null,null,null,null,"","","","","","","",null,null,null,"",null,null,null,null,"","",""]
[null,null,null,null,null,null,"","","","","","","",null,null,null,"",null,null,null,null,"","",""]
[null,null,null,null,null,null,"","","","","","","",null,null,null,"",null,null,null,null,"","",""]
[null,null,null,null,null,null,"","","","","","","",null,null,null,"",null,null,null,null,"","",""]
[null,null,null,null,null,null,"","","","","","","",null,null,null,"",null,null,null,null,"","",""]
[null,null,null,null,null,null,"","","","","","","",null,null,null,"",null,null,null,null,"","",""]
[null,null,null,null,null,null,"","","","","","","",null,null,null,"",null,null,null,null,"","",""]
[null,null,null,null,null,null,"","","","","","","",null,null,null,"",null,null,null,null,"","",""]
[null,null,null,null,null,null,"","","","","","","",null,null,null,"",null,null,null,null,"","",""]
[null,null,null,null,null,null,"","","","","","","",null,null,null,"",null,null,null,null,"","",""]
[null,null,null,null,null,null,"","","","","","","",null,null,null,"",null,null,null,null,"","",""]
[null,null,null,null,null,null,"","","","","","","",null,null,null,"",null,null,null,null,"","",""]
[null,null,null,null,null,null,"","","","","","","",null,null,null,"",null,null,null,null,"","",""]
[null,null,null,null,null,null,"","","","","","","",null,null,null,"",null,null,null,null,"","",""]
[null,null,null,null,null,null,"","","","","","","",null,null,null,"",null,null,null,null,"","",""]
[null,null,null,null,null,null,"","","","","","","",null,null,null,"",null,null,null,null,"","",""]
[null,null,null,null,null,null,"","","","","","","",null,null,null,"",null,null,null,null,"","",""]
[null,null,null,null,null,null,"","","","","","","",null,null,null,"",null,null,null,null,"","",""]
[null,null,null,null,null,null,"","","","","","","",null,null,null,"",null,null,null,null,"","",""]
[null,null,null,null,null,null,"","","","","","","",null,null,null,"",null,null,null,null,"","",""]
[null,null,null,null,null,null,"","","","","","","",null,null,null,"",null,null,null,null,"","",""]
[null,null,null,null,null,null,"","","","","","","",null,null,null,"",null,null,null,null,"","",""]
[null,null,null,null,null,null,"","","","","","","",null,null,null,"",null,null,null,null,"","",""]
[null,null,null,null,null,null,"","","","","","","",null,null,null,"",null,null,null,null,"","",""]
[null,null,null,null,null,null,"","","","","","","",null,null,null,"",null,null,null,null,"","",""]
[null,null,null,null,null,null,"","","","","","","",null,null,null,"",null,null,null,null,"","",""]
[null,null,null,null,null,null,"","","","","","","",null,null,null,"",null,null,null,null,"","",""]
[null,null,null,null,null,null,"","","","","","","",null,null,null,"",null,null,null,null,"","",""]
[null,null,null,null,null,null,"","","","","","","",null,null,null,"",null,null,null,null,"","",""]
[null,null,null,null,null,null,"","","","","","","",null,null,null,"",null,null,null,null,"","",""]
[null,null,null,null,null,null,"","","","","","","",null,null,null,"",null,null,null,null,"","",""]
[null,null,null,null,null,null,"","","","","","","",null,null,null,"",null,null,null,null,"","",""]
[null,null,null,null,null,null,"","","","","","","",null,null,null,"",null,null,null,null,"","",""]
[null,null,null,null,null,null,"","","","","","","",null,null,null,"",null,null,null,null,"","",""]
[null,null,null,null,null,null,"","","","","",{"$f":"Kh_Date_Sex_Province($E388,3)","v":""},"",null,null,null,"",null,null,null,null,"","",""]
[null,null,null,null,null,null,"","","","",{"$f":"IF(E389=\"\",\"\",($K$1+J389)-1)","v":""},"","",null,null,null,{"$f":"IF(F389=\"\",\"\",\"الغربية\")","v":""},null,null,null,null,{"$f":"IF(U389=\"\",\"\",DATEDIF(U389,$U$1,\"md\"))","v":""},{"$f":"IF(U389=\"\",\"\",DATEDIF(U389,$U$1,\"ym\"))","v":""},{"$f":"IF(U389=\"\",\"\",DATEDIF(U389,$U$1,\"y\"))","v":""}]
[null,null,null,null,null,null,"","","","","","","",null,null,null,"",null,null,null,null,"","",""]
[null,null,null,null,null,null,"","","","","","","",null,null,null,"",null,null,null,null,"","",""]
[null,null,null,null,null,null,"","","","","","","",null,null,null,"",null,null,null,null,"","",""]
[null,null,null,null,null,null,"","","","","","","",null,null,null,"",null,null,null,null,"","",""]
[null,null,null,null,null,null,"","","","","","","",null,null,null,"",null,null,null,null,"","",""]
[null,null,null,null,null,null,"","","","","","","",null,null,null,"",null,null,null,null,"","",""]
[null,null,null,null,null,null,"","","","","","","",null,null,null,"",null,null,null,null,"","",""]
[null,null,null,null,null,null,"","","","","","","",null,null,null,"",null,null,null,null,"","",""]
[null,null,null,null,null,null,"","","","","","","",null,null,null,"",null,null,null,null,"","",""]
[null,null,null,null,null,null,"","","","","","","",null,null,null,"",null,null,null,null,"","",""]
[null,null,null,null,null,null,{"$f":"RIGHT(LEFT(E400,7),2)","v":""},{"$f":"RIGHT(LEFT(E400,5),2)","v":""},{"$f":"IF(E400=\"\",\"\",IF(ISODD(MID(E400,1,1)),MID(E400,2,2)+2000,MID(E400,2,2)+1900))","v":""},{"$f":"IF(E400=\"\",\"\",DATE(I400,H400,G400))","v":""},"","",{"$f":"IF(E400=\"\",\"\",IF(ISODD(MID(E400,13,1)),\"ذكر\",\"أنثى\"))","v":""},null,null,null,"",null,null,null,null,"","",""]
[null,null,null,null,null,null,"","","","","","","",null,null,null,"",null,null,null,null,"","",""]
[null,null,null,null,null,null,"","","","","","","",null,null,null,"",null,null,null,null,"","",""]
[null,null,null,null,null,null,"","","","","","","",null,null,null,"",null,null,null,null,"","",""]
[null,null,null,null,null,null,"","","","","","","",null,null,null,"",null,null,null,null,"","",""]
[null,null,null,null,null,null,"","","","","","","",null,null,null,"",null,null,null,null,"","",""]
[null,null,null,null,null,null,"","","","","","","",null,null,null,"",null,null,null,null,"","",""]
[null,null,null,null,null,null,"","","","","","","",null,null,null,"",null,null,null,null,"","",""]
[null,null,null,null,null,null,"","","","","","","",null,null,null,"",null,null,null,null,"","",""]
[null,null,null,null,null,null,"","","","","","","",null,null,null,"",null,null,null,null,"","",""]
[null,null,null,null,null,null,"","","","","","","",null,null,null,"",null,null,null,null,"","",""]
[null,null,null,null,null,null,"","","","","","","",null,null,null,"",null,null,null,null,"","",""]
[null,null,null,null,null,null,"","","","","","","",null,null,null,"",null,null,null,null,"","",""]
[null,null,null,null,null,null,"","","","","","","",null,null,null,"",null,null,null,null,"","",""]
[null,null,null,null,null,null,"","","","","","","",null,null,null,"",null,null,null,null,"","",""]
[null,null,null,null,null,null,"","","","","","","",null,null,null,"",null,null,null,null,"","",""]
[null,null,null,null,null,null,"","","","","","","",null,null,null,"",null,null,null,null,"","",""]
[null,null,null,null,null,null,"","","","","","","",null,null,null,"",null,null,null,null,"","",""]
[null,null,null,null,null,null,"","","","","","","",null,null,null,"",null,null,null,null,"","",""]
[null,null,null,null,null,null,"","","","","","","",null,null,null,"",null,null,null,null,"","",""]
[null,null,null,null,null,null,"","","","","","","",null,null,null,"",null,null,null,null,"","",""]
[null,null,null,null,null,null,"","","","","","","",null,null,null,"",null,null,null,null,"","",""]
[null,null,null,null,null,null,"","","","","","","",null,null,null,"",null,null,null,null,"","",""]
[null,null,null,null,null,null,"","","","","","","",null,null,null,"",null,null,null,null,"","",""]
[null,null,null,null,null,null,"","","","","","","",null,null,null,"",null,null,null,null,"","",""]
[null,null,null,null,null,null,"","","","","","","",null,null,null,"",null,null,null,null,"","",""]
[null,null,null,null,null,null,"","","","","","","",null,null,null,"",null,null,null,null,"","",""]
[null,null,null,null,null,null,"","","","","","","",null,null,null,"",null,null,null,null,"","",""]
[null,null,null,null,null,null,"","","","","","","",null,null,null,"",null,null,null,null,"","",""]
[null,null,null,null,null,null,"","","","","","","",null,null,null,"",null,null,null,null,"","",""]
[null,null,null,null,null,null,"","","","","","","",null,null,null,"",null,null,null,null,"","",""]
[null,null,null,null,null,null,"","","","","","","",null,null,null,"",null,null,null,null,"","",""]
[null,null,null,null,null,null,"","","","","","","",null,null,null,"",null,null,null,null,"","",""]
[null,null,null,null,null,null,"","","","","","","",null,null,null,"",null,null,null,null,"","",""]
[null,null,null,null,null,null,"","","","","","","",null,null,null,"",null,null,null,null,"","",""]
[null,null,null,null,null,null,"","","","","","","",null,null,null,"",null,null,null,null,"","",""]
[null,null,null,null,null,null,"","","","","","","",null,null,null,"",null,null,null,null,"","",""]
[null,null,null,null,null,null,"","","","","","","",null,null,null,"",null,null,null,null,"","",""]
[null,null,null,null,null,null,"","","","","","","",null,null,null,"",null,null,null,null,"","",""]
[null,null,null,null,null,null,"","","","","","","",null,null,null,"",null,null,null,null,"","",""]
[null,null,null,null,null,null,"","","","","","","",null,null,null,"",null,null,null,null,"","",""]
[null,null,null,null,null,null,"","","","","","","",null,null,null,"",null,null,null,null,"","",""]
[null,null,null,null,null,null,"","","","","","","",null,null,null,"",null,null,null,null,"","",""]
[null,null,null,null,null,null,"","","","","","","",null,null,null,"",null,null,null,null,"","",""]
[null,null,null,null,null,null,"","","","","","","",null,null,null,"",null,null,null,null,"","",""]
[null,null,null,null,null,null,"","","","","","","",null,null,null,"",null,null,null,null,"","",""]
[null,null,null,null,null,null,"","","","","","","",null,null,null,"",null,null,null,null,"","",""]
[null,null,null,null,null,null,"","","","","","","",null,null,null,"",null,null,null,null,"","",""]
[null,null,null,null,null,null,"","","","","","","",null,null,null,"",null,null,null,null,"","",""]
[null,null,null,null,null,null,"","","","","","","",null,null,null,"",null,null,null,null,"","",""]
[null,null,null,null,null,null,"","","","","","","",null,null,null,"",null,null,null,null,"","",""]
[null,null,null,null,null,null,"","","","","","","",null,null,null,"",null,null,null,null,"","",""]
[null,null,null,null,null,null,"","","","","",{"$f":"Kh_Date_Sex_Province($E452,3)","v":""},"",null,null,null,"",null,null,null,null,"","",""]
[null,null,null,null,null,null,"","","","",{"$f":"IF(E453=\"\",\"\",($K$1+J453)-1)","v":""},"","",null,null,null,{"$f":"IF(F453=\"\",\"\",\"الغربية\")","v":""},null,null,null,null,{"$f":"IF(U453=\"\",\"\",DATEDIF(U453,$U$1,\"md\"))","v":""},{"$f":"IF(U453=\"\",\"\",DATEDIF(U453,$U$1,\"ym\"))","v":""},{"$f":"IF(U453=\"\",\"\",DATEDIF(U453,$U$1,\"y\"))","v":""}]
[null,null,null,null,null,null,"","","","","","","",null,null,null,"",null,null,null,null,"","",""]
[null,null,null,null,null,null,"","","","","","","",null,null,null,"",null,null,null,null,"","",""]
[null,null,null,null,null,null,"","","","","","","",null,null,null,"",null,null,null,null,"","",""]
[null,null,null,null,null,null,"","","","","","","",null,null,null,"",null,null,null,null,"","",""]
[null,null,null,null,null,null,"","","","","","","",null,null,null,"",null,null,null,null,"","",""]
[null,null,null,null,null,null,"","","","","","","",null,null,null,"",null,null,null,null,"","",""]
[null,null,null,null,null,null,"","","","","","","",null,null,null,"",null,null,null,null,"","",""]
[null,null,null,null,null,null,"","","","","","","",null,null,null,"",null,null,null,null,"","",""]
[null,null,null,null,null,null,"","","","","","","",null,null,null,"",null,null,null,null,"","",""]
[null,null,null,null,null,null,"","","","","","","",null,null,null,"",null,null,null,null,"","",""]
[null,null,null,null,null,null,{"$f":"RIGHT(LEFT(E464,7),2)","v":""},{"$f":"RIGHT(LEFT(E464,5),2)","v":""},{"$f":"IF(E464=\"\",\"\",IF(ISODD(MID(E464,1,1)),MID(E464,2,2)+2000,MID(E464,2,2)+1900))","v":""},{"$f":"IF(E464=\"\",\"\",DATE(I464,H464,G464))","v":""},"","",{"$f":"IF(E464=\"\",\"\",IF(ISODD(MID(E464,13,1)),\"ذكر\",\"أنثى\"))","v":""},null,null,null,"",null,null,null,null,"","",""]
[null,null,null,null,null,null,"","","","","","","",null,null,null,"",null,null,null,null,"","",""]
[null,null,null,null,null,null,"","","","","","","",null,null,null,"",null,null,null,null,"","",""]
[null,null,null,null,null,null,"","","","","","","",null,null,null,"",null,null,null,null,"","",""]
[null,null,null,null,null,null,"","","","","","","",null,null,null,"",null,null,null,null,"","",""]
[null,null,null,null,null,null,"","","","","","","",null,null,null,"",null,null,null,null,"","",""]
[null,null,null,null,null,null,"","","","","","","",null,null,null,"",null,null,null,null,"","",""]
[null,null,null,null,null,null,"","","","","","","",null,null,null,"",null,null,null,null,"","",""]
[null,null,null,null,null,null,"","","","","","","",null,null,null,"",null,null,null,null,"","",""]
[null,null,null,null,null,null,"","","","","","","",null,null,null,"",null,null,null,null,"","",""]
[null,null,null,null,null,null,"","","","","","","",null,null,null,"",null,null,null,null,"","",""]
[null,null,null,null,null,null,"","","","","","","",null,null,null,"",null,null,null,null,"","",""]
[null,null,null,null,null,null,"","","","","","","",null,null,null,"",null,null,null,null,"","",""]
[null,null,null,null,null,null,"","","","","","","",null,null,null,"",null,null,null,null,"","",""]
[null,null,null,null,null,null,"","","","","","","",null,null,null,"",null,null,null,null,"","",""]
[null,null,null,null,null,null,"","","","","","","",null,null,null,"",null,null,null,null,"","",""]
[null,null,null,null,null,null,"","","","","","","",null,null,null,"",null,null,null,null,"","",""]
[null,null,null,null,null,null,"","","","","","","",null,null,null,"",null,null,null,null,"","",""]
[null,null,null,null,null,null,"","","","","","","",null,null,null,"",null,null,null,null,"","",""]
[null,null,null,null,null,null,"","","","","","","",null,null,null,"",null,null,null,null,"","",""]
[null,null,null,null,null,null,"","","","","","","",null,null,null,"",null,null,null,null,"","",""]
[null,null,null,null,null,null,"","","","","","","",null,null,null,"",null,null,null,null,"","",""]
[null,null,null,null,null,null,"","","","","","","",null,null,null,"",null,null,null,null,"","",""]
[null,null,null,null,null,null,"","","","","","","",null,null,null,"",null,null,null,null,"","",""]
[null,null,null,null,null,null,"","","","","","","",null,null,null,"",null,null,null,null,"","",""]
[null,null,null,null,null,null,"","","","","","","",null,null,null,"",null,null,null,null,"","",""]
[null,null,null,null,null,null,"","","","","","","",null,null,null,"",null,null,null,null,"","",""]
[null,null,null,null,null,null,"","","","","","","",null,null,null,"",null,null,null,null,"","",""]
[null,null,null,null,null,null,"","","","","","","",null,null,null,"",null,null,null,null,"","",""]
[null,null,null,null,null,null,"","","","","","","",null,null,null,"",null,null,null,null,"","",""]
[null,null,null,null,null,null,"","","","","","","",null,null,null,"",null,null,null,null,"","",""]
[null,null,null,null,null,null,"","","","","","","",null,null,null,"",null,null,null,null,"","",""]
[null,null,null,null,null,null,"","","","","","","",null,null,null,"",null,null,null,null,"","",""]
[null,null,null,null,null,null,"","","","","","","",null,null,null,"",null,null,null,null,"","",""]
[null,null,null,null,null,null,"","","","","","","",null,null,null,"",null,null,null,null,"","",""]
[null,null,null,null,null,null,"","","","","","","",null,null,null,"",null,null,null,null,"","",""]
[null,null,null,null,null,null,"","","","","","","",null,null,null,"",null,null,null,null,"","",""]
[null,null,null,null,null,null,"","","","","","","",null,null,null,"",null,null,null,null,"","",""]
[null,null,null,null,null,null,"","","","","","","",null,null,null,"",null,null,null,null,"","",""]
[null,null,null,null,null,null,"","","","","","","",null,null,null,"",null,null,null,null,"","",""]
[null,null,null,null,null,null,"","","","","","","",null,null,null,"",null,null,null,null,"","",""]
[null,null,null,null,null,null,"","","","","","","",null,null,null,"",null,null,null,null,"","",""]
[null,null,null,null,null,null,"","","","","","","",null,null,null,"",null,null,null,null,"","",""]
[null,null,null,null,null,null,"","","","","","","",null,null,null,"",null,null,null,null,"","",""]
[null,null,null,null,null,null,"","","","","","","",null,null,null,"",null,null,null,null,"","",""]
[null,null,null,null,null,null,"","","","","","","",null,null,null,"",null,null,null,null,"","",""]
[null,null,null,null,null,null,"","","","","","","",null,null,null,"",null,null,null,null,"","",""]
[null,null,null,null,null,null,"","","","","","","",null,null,null,"",null,null,null,null,"","",""]
[null,null,null,null,null,null,"","","","","","","",null,null,null,"",null,null,null,null,"","",""]
[null,null,null,null,null,null,"","","","","","","",null,null,null,"",null,null,null,null,"","",""]
[null,null,null,null,null,null,"","","","","","","",null,null,null,"",null,null,null,null,"","",""]
[null,null,null,null,null,null,"","","","","","","",null,null,null,"",null,null,null,null,"","",""]
[null,null,null,null,null,null,"","","","","",{"$f":"Kh_Date_Sex_Province($E516,3)","v":""},"",null,null,null,"",null,null,null,null,"","",""]
[null,null,null,null,null,null,"","","","",{"$f":"IF(E517=\"\",\"\",($K$1+J517)-1)","v":""},"","",null,null,null,{"$f":"IF(F517=\"\",\"\",\"الغربية\")","v":""},null,null,null,null,{"$f":"IF(U517=\"\",\"\",DATEDIF(U517,$U$1,\"md\"))","v":""},{"$f":"IF(U517=\"\",\"\",DATEDIF(U517,$U$1,\"ym\"))","v":""},{"$f":"IF(U517=\"\",\"\",DATEDIF(U517,$U$1,\"y\"))","v":""}]
[null,null,null,null,null,null,"","","","","","","",null,null,null,"",null,null,null,null,"","",""]
[null,null,null,null,null,null,"","","","","","","",null,null,null,"",null,null,null,null,"","",""]
[null,null,null,null,null,null,"","","","","","","",null,null,null,"",null,null,null,null,"","",""]
[null,null,null,null,null,null,"","","","","","","",null,null,null,"",null,null,null,null,"","",""]
[null,null,null,null,null,null,"","","","","","","",null,null,null,"",null,null,null,null,"","",""]
[null,null,null,null,null,null,"","","","","","","",null,null,null,"",null,null,null,null,"","",""]
[null,null,null,null,null,null,"","","","","","","",null,null,null,"",null,null,null,null,"","",""]
[null,null,null,null,null,null,"","","","","","","",null,null,null,"",null,null,null,null,"","",""]
[null,null,null,null,null,null,"","","","","","","",null,null,null,"",null,null,null,null,"","",""]
[null,null,null,null,null,null,"","","","","","","",null,null,null,"",null,null,null,null,"","",""]
[null,null,null,null,null,null,{"$f":"RIGHT(LEFT(E528,7),2)","v":""},{"$f":"RIGHT(LEFT(E528,5),2)","v":""},{"$f":"IF(E528=\"\",\"\",IF(ISODD(MID(E528,1,1)),MID(E528,2,2)+2000,MID(E528,2,2)+1900))","v":""},{"$f":"IF(E528=\"\",\"\",DATE(I528,H528,G528))","v":""},"","",{"$f":"IF(E528=\"\",\"\",IF(ISODD(MID(E528,13,1)),\"ذكر\",\"أنثى\"))","v":""},null,null,null,"",null,null,null,null,"","",""]
[null,null,null,null,null,null,"","","","","","","",null,null,null,"",null,null,null,null,"","",""]
[null,null,null,null,null,null,"","","","","","","",null,null,null,"",null,null,null,null,"","",""]
[null,null,null,null,null,null,"","","","","","","",null,null,null,"",null,null,null,null,"","",""]
[null,null,null,null,null,null,"","","","","","","",null,null,null,"",null,null,null,null,"","",""]
[null,null,null,null,null,null,"","","","","","","",null,null,null,"",null,null,null,null,"","",""]
[null,null,null,null,null,null,"","","","","","","",null,null,null,"",null,null,null,null,"","",""]
[null,null,null,null,null,null,"","","","","","","",null,null,null,"",null,null,null,null,"","",""]
[null,null,null,null,null,null,"","","","","","","",null,null,null,"",null,null,null,null,"","",""]
[null,null,null,null,null,null,"","","","","","","",null,null,null,"",null,null,null,null,"","",""]
[null,null,null,null,null,null,"","","","","","","",null,null,null,"",null,null,null,null,"","",""]
[null,null,null,null,null,null,"","","","","","","",null,null,null,"",null,null,null,null,"","",""]
[null,null,null,null,null,null,"","","","","","","",null,null,null,"",null,null,null,null,"","",""]
[null,null,null,null,null,null,"","","","","","","",null,null,null,"",null,null,null,null,"","",""]
[null,null,null,null,null,null,"","","","","","","",null,null,null,"",null,null,null,null,"","",""]
[null,null,null,null,null,null,"","","","","","","",null,null,null,"",null,null,null,null,"","",""]
[null,null,null,null,null,null,"","","","","","","",null,null,null,"",null,null,null,null,"","",""]
[null,null,null,null,null,null,"","","","","","","",null,null,null,"",null,null,null,null,"","",""]
[null,null,null,null,null,null,"","","","","","","",null,null,null,"",null,null,null,null,"","",""]
[null,null,null,null,null,null,"","","","","","","",null,null,null,"",null,null,null,null,"","",""]
[null,null,null,null,null,null,"","","","","","","",null,null,null,"",null,null,null,null,"","",""]
[null,null,null,null,null,null,"","","","","","","",null,null,null,"",null,null,null,null,"","",""]
[null,null,null,null,null,null,"","","","","","","",null,null,null,"",null,null,null,null,"","",""]
[null,null,null,null,null,null,"","","","","","","",null,null,null,"",null,null,null,null,"","",""]
[null,null,null,null,null,null,"","","","","","","",null,null,null,"",null,null,null,null,"","",""]
[null,null,null,null,null,null,"","","","","","","",null,null,null,"",null,null,null,null,"","",""]
[null,null,null,null,null,null,"","","","","","","",null,null,null,"",null,null,null,null,"","",""]
[null,null,null,null,null,null,"","","","","","","",null,null,null,"",null,null,null,null,"","",""]
[null,null,null,null,null,null,"","","","","","","",null,null,null,"",null,null,null,null,"","",""]
[null,null,null,null,null,null,"","","","","","","",null,null,null,"",null,null,null,null,"","",""]
[null,null,null,null,null,null,"","","","","","","",null,null,null,"",null,null,null,null,"","",""]
[null,null,null,null,null,null,"","","","","","","",null,null,null,"",null,null,null,null,"","",""]
[null,null,null,null,null,null,"","","","","","","",null,null,null,"",null,null,null,null,"","",""]
[null,null,null,null,null,null,"","","","","","","",null,null,null,"",null,null,null,null,"","",""]
[null,null,null,null,null,null,"","","","","","","",null,null,null,"",null,null,null,null,"","",""]
[null,null,null,null,null,null,"","","","","","","",null,null,null,"",null,null,null,null,"","",""]
[null,null,null,null,null,null,"","","","","","","",null,null,null,"",null,null,null,null,"","",""]
[null,null,null,null,null,null,"","","","","","","",null,null,null,"",null,null,null,null,"","",""]
[null,null,null,null,null,null,"","","","","","","",null,null,null,"",null,null,null,null,"","",""]
[null,null,null,null,null,null,"","","","","","","",null,null,null,"",null,null,null,null,"","",""]
[null,null,null,null,null,null,"","","","","","","",null,null,null,"",null,null,null,null,"","",""]
[null,null,null,null,null,null,"","","","","","","",null,null,null,"",null,null,null,null,"","",""]
[null,null,null,null,null,null,"","","","","","","",null,null,null,"",null,null,null,null,"","",""]
[null,null,null,null,null,null,"","","","","","","",null,null,null,"",null,null,null,null,"","",""]
[null,null,null,null,null,null,"","","","","","","",null,null,null,"",null,null,null,null,"","",""]
[null,null,null,null,null,null,"","","","","","","",null,null,null,"",null,null,null,null,"","",""]
[null,null,null,null,null,null,"","","","","","","",null,null,null,"",null,null,null,null,"","",""]
[null,null,null,null,null,null,"","","","","","","",null,null,null,"",null,null,null,null,"","",""]
[null,null,null,null,null,null,"","","","","","","",null,null,null,"",null,null,null,null,"","",""]
[null,null,null,null,null,null,"","","","","","","",null,null,null,"",null,null,null,null,"","",""]
[null,null,null,null,null,null,"","","","","","","",null,null,null,"",null,null,null,null,"","",""]
[null,null,null,null,null,null,"","","","","","","",null,null,null,"",null,null,null,null,"","",""]
[null,null,null,null,null,null,"","","","","",{"$f":"Kh_Date_Sex_Province($E580,3)","v":""},"",null,null,null,"",null,null,null,null,"","",""]
[null,null,null,null,null,null,"","","","",{"$f":"IF(E581=\"\",\"\",($K$1+J581)-1)","v":""},"","",null,null,null,{"$f":"IF(F581=\"\",\"\",\"الغربية\")","v":""},null,null,null,null,{"$f":"IF(U581=\"\",\"\",DATEDIF(U581,$U$1,\"md\"))","v":""},{"$f":"IF(U581=\"\",\"\",DATEDIF(U581,$U$1,\"ym\"))","v":""},{"$f":"IF(U581=\"\",\"\",DATEDIF(U581,$U$1,\"y\"))","v":""}]
[null,null,null,null,null,null,"","","","","","","",null,null,null,"",null,null,null,null,"","",""]
[null,null,null,null,null,null,"","","","","","","",null,null,null,"",null,null,null,null,"","",""]
[null,null,null,null,null,null,"","","","","","","",null,null,null,"",null,null,null,null,"","",""]
[null,null,null,null,null,null,"","","","","","","",null,null,null,"",null,null,null,null,"","",""]
[null,null,null,null,null,null,"","","","","","","",null,null,null,"",null,null,null,null,"","",""]
[null,null,null,null,null,null,"","","","","","","",null,null,null,"",null,null,null,null,"","",""]
[null,null,null,null,null,null,"","","","","","","",null,null,null,"",null,null,null,null,"","",""]
[null,null,null,null,null,null,"","","","","","","",null,null,null,"",null,null,null,null,"","",""]
[null,null,null,null,null,null,"","","","","","","",null,null,null,"",null,null,null,null,"","",""]
[null,null,null,null,null,null,"","","","","","","",null,null,null,"",null,null,null,null,"","",""]
[null,null,null,null,null,null,{"$f":"RIGHT(LEFT(E592,7),2)","v":""},{"$f":"RIGHT(LEFT(E592,5),2)","v":""},{"$f":"IF(E592=\"\",\"\",IF(ISODD(MID(E592,1,1)),MID(E592,2,2)+2000,MID(E592,2,2)+1900))","v":""},{"$f":"IF(E592=\"\",\"\",DATE(I592,H592,G592))","v":""},"","",{"$f":"IF(E592=\"\",\"\",IF(ISODD(MID(E592,13,1)),\"ذكر\",\"أنثى\"))","v":""},null,null,null,"",null,null,null,null,"","",""]
[null,null,null,null,null,null,"","","","","","","",null,null,null,"",null,null,null,null,"","",""]
[null,null,null,null,null,null,"","","","","","","",null,null,null,"",null,null,null,null,"","",""]
[null,null,null,null,null,null,"","","","","","","",null,null,null,"",null,null,null,null,"","",""]
[null,null,null,null,null,null,"","","","","","","",null,null,null,"",null,null,null,null,"","",""]
[null,null,null,null,null,null,"","","","","","","",null,null,null,"",null,null,null,null,"","",""]
[null,null,null,null,null,null,"","","","","","","",null,null,null,"",null,null,null,null,"","",""]
[null,null,null,null,null,null,"","","","","","","",null,null,null,"",null,null,null,null,"","",""]
[null,null,null,null,null,null,"","","","","","","",null,null,null,"",null,null,null,null,"","",""]
[null,null,null,null,null,null,"","","","","","","",null,null,null,"",null,null,null,null,"","",""]
[null,null,null,null,null,null,"","","","","","","",null,null,null,"",null,null,null,null,"","",""]
[null,null,null,null,null,null,"","","","","","","",null,null,null,"",null,null,null,null,"","",""]
[null,null,null,null,null,null,"","","","","","","",null,null,null,"",null,null,null,null,"","",""]
[null,null,null,null,null,null,"","","","","","","",null,null,null,"",null,null,null,null,"","",""]
[null,null,null,null,null,null,"","","","","","","",null,null,null,"",null,null,null,null,"","",""]
[null,null,null,null,null,null,"","","","","","","",null,null,null,"",null,null,null,null,"","",""]
[null,null,null,null,null,null,"","","","","","","",null,null,null,"",null,null,null,null,"","",""]
[null,null,null,null,null,null,"","","","","","","",null,null,null,"",null,null,null,null,"","",""]
[null,null,null,null,null,null,"","","","","","","",null,null,null,"",null,null,null,null,"","",""]
[null,null,null,null,null,null,"","","","","","","",null,null,null,"",null,null,null,null,"","",""]
[null,null,null,null,null,null,"","","","","","","",null,null,null,"",null,null,null,null,"","",""]
[null,null,null,null,null,null,"","","","","","","",null,null,null,"",null,null,null,null,"","",""]
[null,null,null,null,null,null,"","","","","","","",null,null,null,"",null,null,null,null,"","",""]
[null,null,null,null,null,null,"","","","","","","",null,null,null,"",null,null,null,null,"","",""]
[null,null,null,null,null,null,"","","","","","","",null,null,null,"",null,null,null,null,"","",""]
[null,null,null,null,null,null,"","","","","","","",null,null,null,"",null,null,null,null,"","",""]
[null,null,null,null,null,null,"","","","","","","",null,null,null,"",null,null,null,null,"","",""]
[null,null,null,null,null,null,"","","","","","","",null,null,null,"",null,null,null,null,"","",""]
[null,null,null,null,null,null,"","","","","","","",null,null,null,"",null,null,null,null,"","",""]
[null,null,null,null,null,null,"","","","","","","",null,null,null,"",null,null,null,null,"","",""]
[null,null,null,null,null,null,"","","","","","","",null,null,null,"",null,null,null,null,"","",""]
[null,null,null,null,null,null,"","","","","","","",null,null,null,"",null,null,null,null,"","",""]
[null,null,null,null,null,null,"","","","","","","",null,null,null,"",null,null,null,null,"","",""]
[null,null,null,null,null,null,"","","","","","","",null,null,null,"",null,null,null,null,"","",""]
[null,null,null,null,null,null,"","","","","","","",null,null,null,"",null,null,null,null,"","",""]
[null,null,null,null,null,null,"","","","","","","",null,null,null,"",null,null,null,null,"","",""]
[null,null,null,null,null,null,"","","","","","","",null,null,null,"",null,null,null,null,"","",""]
[null,null,null,null,null,null,"","","","","","","",null,null,null,"",null,null,null,null,"","",""]
[null,null,null,null,null,null,"","","","","","","",null,null,null,"",null,null,null,null,"","",""]
[null,null,null,null,null,null,"","","","","","","",null,null,null,"",null,null,null,null,"","",""]
[null,null,null,null,null,null,"","","","","","","",null,null,null,"",null,null,null,null,"","",""]
[null,null,null,null,null,null,"","","","","","","",null,null,null,"",null,null,null,null,"","",""]
[null,null,null,null,null,null,"","","","","","","",null,null,null,"",null,null,null,null,"","",""]
[null,null,null,null,null,null,"","","","","","","",null,null,null,"",null,null,null,null,"","",""]
[null,null,null,null,null,null,"","","","","","","",null,null,null,"",null,null,null,null,"","",""]
[null,null,null,null,null,null,"","","","","","","",null,null,null,"",null,null,null,null,"","",""]
[null,null,null,null,null,null,"","","","","","","",null,null,null,"",null,null,null,null,"","",""]
[null,null,null,null,null,null,"","","","","","","",null,null,null,"",null,null,null,null,"","",""]
[null,null,null,null,null,null,"","","","","","","",null,null,null,"",null,null,null,null,"","",""]
[null,null,null,null,null,null,"","","","","","","",null,null,null,"",null,null,null,null,"","",""]
[null,null,null,null,null,null,"","","","","","","",null,null,null,"",null,null,null,null,"","",""]
[null,null,null,null,null,null,"","","","","","","",null,null,null,"",null,null,null,null,"","",""]
[null,null,null,null,null,null,"","","","","",{"$f":"Kh_Date_Sex_Province($E644,3)","v":""},"",null,null,null,"",null,null,null,null,"","",""]
[null,null,null,null,null,null,"","","","",{"$f":"IF(E645=\"\",\"\",($K$1+J645)-1)","v":""},"","",null,null,null,{"$f":"IF(F645=\"\",\"\",\"الغربية\")","v":""},null,null,null,null,{"$f":"IF(U645=\"\",\"\",DATEDIF(U645,$U$1,\"md\"))","v":""},{"$f":"IF(U645=\"\",\"\",DATEDIF(U645,$U$1,\"ym\"))","v":""},{"$f":"IF(U645=\"\",\"\",DATEDIF(U645,$U$1,\"y\"))","v":""}]
[null,null,null,null,null,null,"","","","","","","",null,null,null,"",null,null,null,null,"","",""]
[null,null,null,null,null,null,"","","","","","","",null,null,null,"",null,null,null,null,"","",""]
[null,null,null,null,null,null,"","","","","","","",null,null,null,"",null,null,null,null,"","",""]
[null,null,null,null,null,null,"","","","","","","",null,null,null,"",null,null,null,null,"","",""]
[null,null,null,null,null,null,"","","","","","","",null,null,null,"",null,null,null,null,"","",""]
[null,null,null,null,null,null,"","","","","","","",null,null,null,"",null,null,null,null,"","",""]
[null,null,null,null,null,null,"","","","","","","",null,null,null,"",null,null,null,null,"","",""]
[null,null,null,null,null,null,"","","","","","","",null,null,null,"",null,null,null,null,"","",""]
[null,null,null,null,null,null,"","","","","","","",null,null,null,"",null,null,null,null,"","",""]
[null,null,null,null,null,null,"","","","","","","",null,null,null,"",null,null,null,null,"","",""]
[null,null,null,null,null,null,{"$f":"RIGHT(LEFT(E656,7),2)","v":""},{"$f":"RIGHT(LEFT(E656,5),2)","v":""},{"$f":"IF(E656=\"\",\"\",IF(ISODD(MID(E656,1,1)),MID(E656,2,2)+2000,MID(E656,2,2)+1900))","v":""},{"$f":"IF(E656=\"\",\"\",DATE(I656,H656,G656))","v":""},"","",{"$f":"IF(E656=\"\",\"\",IF(ISODD(MID(E656,13,1)),\"ذكر\",\"أنثى\"))","v":""},null,null,null,"",null,null,null,null,"","",""]
[null,null,null,null,null,null,"","","","","","","",null,null,null,"",null,null,null,null,"","",""]
[null,null,null,null,null,null,"","","","","","","",null,null,null,"",null,null,null,null,"","",""]
[null,null,null,null,null,null,"","","","","","","",null,null,null,"",null,null,null,null,"","",""]
[null,null,null,null,null,null,"","","","","","","",null,null,null,"",null,null,null,null,"","",""]
[null,null,null,null,null,null,"","","","","","","",null,null,null,"",null,null,null,null,"","",""]
[null,null,null,null,null,null,"","","","","","","",null,null,null,"",null,null,null,null,"","",""]
[null,null,null,null,null,null,"","","","","","","",null,null,null,"",null,null,null,null,"","",""]
[null,null,null,null,null,null,"","","","","","","",null,null,null,"",null,null,null,null,"","",""]
[null,null,null,null,null,null,"","","","","","","",null,null,null,"",null,null,null,null,"","",""]
[null,null,null,null,null,null,"","","","","","","",null,null,null,"",null,null,null,null,"","",""]
[null,null,null,null,null,null,"","","","","","","",null,null,null,"",null,null,null,null,"","",""]
[null,null,null,null,null,null,"","","","","","","",null,null,null,"",null,null,null,null,"","",""]
[null,null,null,null,null,null,"","","","","","","",null,null,null,"",null,null,null,null,"","",""]
[null,null,null,null,null,null,"","","","","","","",null,null,null,"",null,null,null,null,"","",""]
[null,null,null,null,null,null,"","","","","","","",null,null,null,"",null,null,null,null,"","",""]
[null,null,null,null,null,null,"","","","","","","",null,null,null,"",null,null,null,null,"","",""]
[null,null,null,null,null,null,"","","","","","","",null,null,null,"",null,null,null,null,"","",""]
[null,null,null,null,null,null,"","","","","","","",null,null,null,"",null,null,null,null,"","",""]
[null,null,null,null,null,null,"","","","","","","",null,null,null,"",null,null,null,null,"","",""]
[null,null,null,null,null,null,"","","","","","","",null,null,null,"",null,null,null,null,"","",""]
[null,null,null,null,null,null,"","","","","","","",null,null,null,"",null,null,null,null,"","",""]
[null,null,null,null,null,null,"","","","","","","",null,null,null,"",null,null,null,null,"","",""]
[null,null,null,null,null,null,"","","","","","","",null,null,null,"",null,null,null,null,"","",""]
[null,null,null,null,null,null,"","","","","","","",null,null,null,"",null,null,null,null,"","",""]
[null,null,null,null,null,null,"","","","","","","",null,null,null,"",null,null,null,null,"","",""]
[null,null,null,null,null,null,"","","","","","","",null,null,null,"",null,null,null,null,"","",""]
[null,null,null,null,null,null,"","","","","","","",null,null,null,"",null,null,null,null,"","",""]
[null,null,null,null,null,null,"","","","","","","",null,null,null,"",null,null,null,null,"","",""]
[null,null,null,null,null,null,"","","","","","","",null,null,null,"",null,null,null,null,"","",""]
[null,null,null,null,null,null,"","","","","","","",null,null,null,"",null,null,null,null,"","",""]
[null,null,null,null,null,null,"","","","","","","",null,null,null,"",null,null,null,null,"","",""]
[null,null,null,null,null,null,"","","","","","","",null,null,null,"",null,null,null,null,"","",""]
[null,null,null,null,null,null,"","","","","","","",null,null,null,"",null,null,null,null,"","",""]
[null,null,null,null,null,null,"","","","","","","",null,null,null,"",null,null,null,null,"","",""]
[null,null,null,null,null,null,"","","","","","","",null,null,null,"",null,null,null,null,"","",""]
[null,null,null,null,null,null,"","","","","","","",null,null,null,"",null,null,null,null,"","",""]
[null,null,null,null,null,null,"","","","","","","",null,null,null,"",null,null,null,null,"","",""]
[null,null,null,null,null,null,"","","","","","","",null,null,null,"",null,null,null,null,"","",""]
[null,null,null,null,null,null,"","","","","","","",null,null,null,"",null,null,null,null,"","",""]
[null,null,null,null,null,null,"","","","","","","",null,null,null,"",null,null,null,null,"","",""]
[null,null,null,null,null,null,"","","","","","","",null,null,null,"",null,null,null,null,"","",""]
[null,null,null,null,null,null,"","","","","","","",null,null,null,"",null,null,null,null,"","",""]
[null,null,null,null,null,null,"","","","","","","",null,null,null,"",null,null,null,null,"","",""]
[null,null,null,null,null,null,"","","","","","","",null,null,null,"",null,null,null,null,"","",""]
[null,null,null,null,null,null,"","","","","","","",null,null,null,"",null,null,null,null,"","",""]
[null,null,null,null,null,null,"","","","","","","",null,null,null,"",null,null,null,null,"","",""]
[null,null,null,null,null,null,"","","","","","","",null,null,null,"",null,null,null,null,"","",""]
[null,null,null,null,null,null,"","","","","","","",null,null,null,"",null,null,null,null,"","",""]
[null,null,null,null,null,null,"","","","","","","",null,null,null,"",null,null,null,null,"","",""]
[null,null,null,null,null,null,"","","","","","","",null,null,null,"",null,null,null,null,"","",""]
[null,null,null,null,null,null,"","","","","","","",null,null,null,"",null,null,null,null,"","",""]
[null,null,null,null,null,null,"","","","","",{"$f":"Kh_Date_Sex_Province($E708,3)","v":""},"",null,null,null,"",null,null,null,null,"","",""]
[null,null,null,null,null,null,"","","","",{"$f":"IF(E709=\"\",\"\",($K$1+J709)-1)","v":""},"","",null,null,null,{"$f":"IF(F709=\"\",\"\",\"الغربية\")","v":""},null,null,null,null,{"$f":"IF(U709=\"\",\"\",DATEDIF(U709,$U$1,\"md\"))","v":""},{"$f":"IF(U709=\"\",\"\",DATEDIF(U709,$U$1,\"ym\"))","v":""},{"$f":"IF(U709=\"\",\"\",DATEDIF(U709,$U$1,\"y\"))","v":""}]
[null,null,null,null,null,null,"","","","","","","",null,null,null,"",null,null,null,null,"","",""]
[null,null,null,null,null,null,"","","","","","","",null,null,null,"",null,null,null,null,"","",""]
[null,null,null,null,null,null,"","","","","","","",null,null,null,"",null,null,null,null,"","",""]
[null,null,null,null,null,null,"","","","","","","",null,null,null,"",null,null,null,null,"","",""]
[null,null,null,null,null,null,"","","","","","","",null,null,null,"",null,null,null,null,"","",""]
[null,null,null,null,null,null,"","","","","","","",null,null,null,"",null,null,null,null,"","",""]
[null,null,null,null,null,null,"","","","","","","",null,null,null,"",null,null,null,null,"","",""]
[null,null,null,null,null,null,"","","","","","","",null,null,null,"",null,null,null,null,"","",""]
[null,null,null,null,null,null,"","","","","","","",null,null,null,"",null,null,null,null,"","",""]
[null,null,null,null,null,null,"","","","","","","",null,null,null,"",null,null,null,null,"","",""]
[null,null,null,null,null,null,{"$f":"RIGHT(LEFT(E720,7),2)","v":""},{"$f":"RIGHT(LEFT(E720,5),2)","v":""},{"$f":"IF(E720=\"\",\"\",IF(ISODD(MID(E720,1,1)),MID(E720,2,2)+2000,MID(E720,2,2)+1900))","v":""},{"$f":"IF(E720=\"\",\"\",DATE(I720,H720,G720))","v":""},"","",{"$f":"IF(E720=\"\",\"\",IF(ISODD(MID(E720,13,1)),\"ذكر\",\"أنثى\"))","v":""},null,null,null,"",null,null,null,null,"","",""]
[null,null,null,null,null,null,"","","","","","","",null,null,null,"",null,null,null,null,"","",""]
[null,null,null,null,null,null,"","","","","","","",null,null,null,"",null,null,null,null,"","",""]
[null,null,null,null,null,null,"","","","","","","",null,null,null,"",null,null,null,null,"","",""]
[null,null,null,null,null,null,"","","","","","","",null,null,null,"",null,null,null,null,"","",""]
[null,null,null,null,null,null,"","","","","","","",null,null,null,"",null,null,null,null,"","",""]
[null,null,null,null,null,null,"","","","","","","",null,null,null,"",null,null,null,null,"","",""]
[null,null,null,null,null,null,"","","","","","","",null,null,null,"",null,null,null,null,"","",""]
[null,null,null,null,null,null,"","","","","","","",null,null,null,"",null,null,null,null,"","",""]
[null,null,null,null,null,null,"","","","","","","",null,null,null,"",null,null,null,null,"","",""]
[null,null,null,null,null,null,"","","","","","","",null,null,null,"",null,null,null,null,"","",""]
[null,null,null,null,null,null,"","","","","","","",null,null,null,"",null,null,null,null,"","",""]
[null,null,null,null,null,null,"","","","","","","",null,null,null,"",null,null,null,null,"","",""]
[null,null,null,null,null,null,"","","","","","","",null,null,null,"",null,null,null,null,"","",""]
[null,null,null,null,null,null,"","","","","","","",null,null,null,"",null,null,null,null,"","",""]
[null,null,null,null,null,null,"","","","","","","",null,null,null,"",null,null,null,null,"","",""]
[null,null,null,null,null,null,"","","","","","","",null,null,null,"",null,null,null,null,"","",""]
[null,null,null,null,null,null,"","","","","","","",null,null,null,"",null,null,null,null,"","",""]
[null,null,null,null,null,null,"","","","","","","",null,null,null,"",null,null,null,null,"","",""]
[null,null,null,null,null,null,"","","","","","","",null,null,null,"",null,null,null,null,"","",""]
[null,null,null,null,null,null,"","","","","","","",null,null,null,"",null,null,null,null,"","",""]
[null,null,null,null,null,null,"","","","","","","",null,null,null,"",null,null,null,null,"","",""]
[null,null,null,null,null,null,"","","","","","","",null,null,null,"",null,null,null,null,"","",""]
[null,null,null,null,null,null,"","","","","","","",null,null,null,"",null,null,null,null,"","",""]
[null,null,null,null,null,null,"","","","","","","",null,null,null,"",null,null,null,null,"","",""]
[null,null,null,null,null,null,"","","","","","","",null,null,null,"",null,null,null,null,"","",""]
[null,null,null,null,null,null,"","","","","","","",null,null,null,"",null,null,null,null,"","",""]
[null,null,null,null,null,null,"","","","","","","",null,null,null,"",null,null,null,null,"","",""]
[null,null,null,null,null,null,"","","","","","","",null,null,null,"",null,null,null,null,"","",""]
[null,null,null,null,null,null,"","","","","","","",null,null,null,"",null,null,null,null,"","",""]
[null,null,null,null,null,null,"","","","","","","",null,null,null,"",null,null,null,null,"","",""]
[null,null,null,null,null,null,"","","","","","","",null,null,null,"",null,null,null,null,"","",""]
[null,null,null,null,null,null,"","","","","","","",null,null,null,"",null,null,null,null,"","",""]
[null,null,null,null,null,null,"","","","","","","",null,null,null,"",null,null,null,null,"","",""]
[null,null,null,null,null,null,"","","","","","","",null,null,null,"",null,null,null,null,"","",""]
[null,null,null,null,null,null,"","","","","","","",null,null,null,"",null,null,null,null,"","",""]
[null,null,null,null,null,null,"","","","","","","",null,null,null,"",null,null,null,null,"","",""]
[null,null,null,null,null,null,"","","","","","","",null,null,null,"",null,null,null,null,"","",""]
[null,null,null,null,null,null,"","","","","","","",null,null,null,"",null,null,null,null,"","",""]
[null,null,null,null,null,null,"","","","","","","",null,null,null,"",null,null,null,null,"","",""]
[null,null,null,null,null,null,"","","","","","","",null,null,null,"",null,null,null,null,"","",""]
[null,null,null,null,null,null,"","","","","","","",null,null,null,"",null,null,null,null,"","",""]
[null,null,null,null,null,null,"","","","","","","",null,null,null,"",null,null,null,null,"","",""]
[null,null,null,null,null,null,"","","","","","","",null,null,null,"",null,null,null,null,"","",""]
[null,null,null,null,null,null,"","","","","","","",null,null,null,"",null,null,null,null,"","",""]
[null,null,null,null,null,null,"","","","","","","",null,null,null,"",null,null,null,null,"","",""]
[null,null,null,null,null,null,"","","","","","","",null,null,null,"",null,null,null,null,"","",""]
[null,null,null,null,null,null,"","","","","","","",null,null,null,"",null,null,null,null,"","",""]
[null,null,null,null,null,null,"","","","","","","",null,null,null,"",null,null,null,null,"","",""]
[null,null,null,null,null,null,"","","","","","","",null,null,null,"",null,null,null,null,"","",""]
[null,null,null,null,null,null,"","","","","","","",null,null,null,"",null,null,null,null,"","",""]
[null,null,null,null,null,null,"","","","","","","",null,null,null,"",null,null,null,null,"","",""]
[null,null,null,null,null,null,"","","","","",{"$f":"Kh_Date_Sex_Province($E772,3)","v":""},"",null,null,null,"",null,null,null,null,"","",""]
[null,null,null,null,null,null,"","","","",{"$f":"IF(E773=\"\",\"\",($K$1+J773)-1)","v":""},"","",null,null,null,{"$f":"IF(F773=\"\",\"\",\"الغربية\")","v":""},null,null,null,null,{"$f":"IF(U773=\"\",\"\",DATEDIF(U773,$U$1,\"md\"))","v":""},{"$f":"IF(U773=\"\",\"\",DATEDIF(U773,$U$1,\"ym\"))","v":""},{"$f":"IF(U773=\"\",\"\",DATEDIF(U773,$U$1,\"y\"))","v":""}]
[null,null,null,null,null,null,"","","","","","","",null,null,null,"",null,null,null,null,"","",""]
[null,null,null,null,null,null,"","","","","","","",null,null,null,"",null,null,null,null,"","",""]
[null,null,null,null,null,null,"","","","","","","",null,null,null,"",null,null,null,null,"","",""]
[null,null,null,null,null,null,"","","","","","","",null,null,null,"",null,null,null,null,"","",""]
[null,null,null,null,null,null,"","","","","","","",null,null,null,"",null,null,null,null,"","",""]
[null,null,null,null,null,null,"","","","","","","",null,null,null,"",null,null,null,null,"","",""]
[null,null,null,null,null,null,"","","","","","","",null,null,null,"",null,null,null,null,"","",""]
[null,null,null,null,null,null,"","","","","","","",null,null,null,"",null,null,null,null,"","",""]
[null,null,null,null,null,null,"","","","","","","",null,null,null,"",null,null,null,null,"","",""]
[null,null,null,null,null,null,"","","","","","","",null,null,null,"",null,null,null,null,"","",""]
[null,null,null,null,null,null,{"$f":"RIGHT(LEFT(E784,7),2)","v":""},{"$f":"RIGHT(LEFT(E784,5),2)","v":""},{"$f":"IF(E784=\"\",\"\",IF(ISODD(MID(E784,1,1)),MID(E784,2,2)+2000,MID(E784,2,2)+1900))","v":""},{"$f":"IF(E784=\"\",\"\",DATE(I784,H784,G784))","v":""},"","",{"$f":"IF(E784=\"\",\"\",IF(ISODD(MID(E784,13,1)),\"ذكر\",\"أنثى\"))","v":""},null,null,null,"",null,null,null,null,"","",""]
[null,null,null,null,null,null,"","","","","","","",null,null,null,"",null,null,null,null,"","",""]
[null,null,null,null,null,null,"","","","","","","",null,null,null,"",null,null,null,null,"","",""]
[null,null,null,null,null,null,"","","","","","","",null,null,null,"",null,null,null,null,"","",""]
[null,null,null,null,null,null,"","","","","","","",null,null,null,"",null,null,null,null,"","",""]
[null,null,null,null,null,null,"","","","","","","",null,null,null,"",null,null,null,null,"","",""]
[null,null,null,null,null,null,"","","","","","","",null,null,null,"",null,null,null,null,"","",""]
[null,null,null,null,null,null,"","","","","","","",null,null,null,"",null,null,null,null,"","",""]
[null,null,null,null,null,null,"","","","","","","",null,null,null,"",null,null,null,null,"","",""]
[null,null,null,null,null,null,"","","","","","","",null,null,null,"",null,null,null,null,"","",""]
[null,null,null,null,null,null,"","","","","","","",null,null,null,"",null,null,null,null,"","",""]
[null,null,null,null,null,null,"","","","","","","",null,null,null,"",null,null,null,null,"","",""]
[null,null,null,null,null,null,"","","","","","","",null,null,null,"",null,null,null,null,"","",""]
[null,null,null,null,null,null,"","","","","","","",null,null,null,"",null,null,null,null,"","",""]
[null,null,null,null,null,null,"","","","","","","",null,null,null,"",null,null,null,null,"","",""]
[null,null,null,null,null,null,"","","","","","","",null,null,null,"",null,null,null,null,"","",""]
[null,null,null,null,null,null,"","","","","","","",null,null,null,"",null,null,null,null,"","",""]
[null,null,null,null,null,null,"","","","","","","",null,null,null,"",null,null,null,null,"","",""]
[null,null,null,null,null,null,"","","","","","","",null,null,null,"",null,null,null,null,"","",""]
[null,null,null,null,null,null,"","","","","","","",null,null,null,"",null,null,null,null,"","",""]
[null,null,null,null,null,null,"","","","","","","",null,null,null,"",null,null,null,null,"","",""]
[null,null,null,null,null,null,"","","","","","","",null,null,null,"",null,null,null,null,"","",""]
[null,null,null,null,null,null,"","","","","","","",null,null,null,"",null,null,null,null,"","",""]
[null,null,null,null,null,null,"","","","","","","",null,null,null,"",null,null,null,null,"","",""]
[null,null,null,null,null,null,"","","","","","","",null,null,null,"",null,null,null,null,"","",""]
[null,null,null,null,null,null,"","","","","","","",null,null,null,"",null,null,null,null,"","",""]
[null,null,null,null,null,null,"","","","","","","",null,null,null,"",null,null,null,null,"","",""]
[null,null,null,null,null,null,"","","","","","","",null,null,null,"",null,null,null,null,"","",""]
[null,null,null,null,null,null,"","","","","","","",null,null,null,"",null,null,null,null,"","",""]
[null,null,null,null,null,null,"","","","","","","",null,null,null,"",null,null,null,null,"","",""]
[null,null,null,null,null,null,"","","","","","","",null,null,null,"",null,null,null,null,"","",""]
[null,null,null,null,null,null,"","","","","","","",null,null,null,"",null,null,null,null,"","",""]
[null,null,null,null,null,null,"","","","","","","",null,null,null,"",null,null,null,null,"","",""]
[null,null,null,null,null,null,"","","","","","","",null,null,null,"",null,null,null,null,"","",""]
[null,null,null,null,null,null,"","","","","","","",null,null,null,"",null,null,null,null,"","",""]
[null,null,null,null,null,null,"","","","","","","",null,null,null,"",null,null,null,null,"","",""]
[null,null,null,null,null,null,"","","","","","","",null,null,null,"",null,null,null,null,"","",""]
[null,null,null,null,null,null,"","","","","","","",null,null,null,"",null,null,null,null,"","",""]
[null,null,null,null,null,null,"","","","","","","",null,null,null,"",null,null,null,null,"","",""]
[null,null,null,null,null,null,"","","","","","","",null,null,null,"",null,null,null,null,"","",""]
[null,null,null,null,null,null,"","","","","","","",null,null,null,"",null,null,null,null,"","",""]
[null,null,null,null,null,null,"","","","","","","",null,null,null,"",null,null,null,null,"","",""]
[null,null,null,null,null,null,"","","","","","","",null,null,null,"",null,null,null,null,"","",""]
[null,null,null,null,null,null,"","","","","","","",null,null,null,"",null,null,null,null,"","",""]
[null,null,null,null,null,null,"","","","","","","",null,null,null,"",null,null,null,null,"","",""]
[null,null,null,null,null,null,"","","","","","","",null,null,null,"",null,null,null,null,"","",""]
[null,null,null,null,null,null,"","","","","","","",null,null,null,"",null,null,null,null,"","",""]
[null,null,null,null,null,null,"","","","","","","",null,null,null,"",null,null,null,null,"","",""]
[null,null,null,null,null,null,"","","","","","","",null,null,null,"",null,null,null,null,"","",""]
[null,null,null,null,null,null,"","","","","","","",null,null,null,"",null,null,null,null,"","",""]
[null,null,null,null,null,null,"","","","","","","",null,null,null,"",null,null,null,null,"","",""]
[null,null,null,null,null,null,"","","","","","","",null,null,null,"",null,null,null,null,"","",""]
[null,null,null,null,null,null,"","","","","",{"$f":"Kh_Date_Sex_Province($E836,3)","v":""},"",null,null,null,"",null,null,null,null,"","",""]
[null,null,null,null,null,null,"","","","",{"$f":"IF(E837=\"\",\"\",($K$1+J837)-1)","v":""},"","",null,null,null,{"$f":"IF(F837=\"\",\"\",\"الغربية\")","v":""},null,null,null,null,{"$f":"IF(U837=\"\",\"\",DATEDIF(U837,$U$1,\"md\"))","v":""},{"$f":"IF(U837=\"\",\"\",DATEDIF(U837,$U$1,\"ym\"))","v":""},{"$f":"IF(U837=\"\",\"\",DATEDIF(U837,$U$1,\"y\"))","v":""}]
[null,null,null,null,null,null,"","","","","","","",null,null,null,"",null,null,null,null,"","",""]
[null,null,null,null,null,null,"","","","","","","",null,null,null,"",null,null,null,null,"","",""]
[null,null,null,null,null,null,"","","","","","","",null,null,null,"",null,null,null,null,"","",""]
[null,null,null,null,null,null,"","","","","","","",null,null,null,"",null,null,null,null,"","",""]
[null,null,null,null,null,null,"","","","","","","",null,null,null,"",null,null,null,null,"","",""]
[null,null,null,null,null,null,"","","","","","","",null,null,null,"",null,null,null,null,"","",""]
[null,null,null,null,null,null,"","","","","","","",null,null,null,"",null,null,null,null,"","",""]
[null,null,null,null,null,null,"","","","","","","",null,null,null,"",null,null,null,null,"","",""]
[null,null,null,null,null,null,"","","","","","","",null,null,null,"",null,null,null,null,"","",""]
[null,null,null,null,null,null,"","","","","","","",null,null,null,"",null,null,null,null,"","",""]
[null,null,null,null,null,null,{"$f":"RIGHT(LEFT(E848,7),2)","v":""},{"$f":"RIGHT(LEFT(E848,5),2)","v":""},{"$f":"IF(E848=\"\",\"\",IF(ISODD(MID(E848,1,1)),MID(E848,2,2)+2000,MID(E848,2,2)+1900))","v":""},{"$f":"IF(E848=\"\",\"\",DATE(I848,H848,G848))","v":""},"","",{"$f":"IF(E848=\"\",\"\",IF(ISODD(MID(E848,13,1)),\"ذكر\",\"أنثى\"))","v":""},null,null,null,"",null,null,null,null,"","",""]
[null,null,null,null,null,null,"","","","","","","",null,null,null,"",null,null,null,null,"","",""]
[null,null,null,null,null,null,"","","","","","","",null,null,null,"",null,null,null,null,"","",""]
[null,null,null,null,null,null,"","","","","","","",null,null,null,"",null,null,null,null,"","",""]
[null,null,null,null,null,null,"","","","","","","",null,null,null,"",null,null,null,null,"","",""]
[null,null,null,null,null,null,"","","","","","","",null,null,null,"",null,null,null,null,"","",""]
[null,null,null,null,null,null,"","","","","","","",null,null,null,"",null,null,null,null,"","",""]
[null,null,null,null,null,null,"","","","","","","",null,null,null,"",null,null,null,null,"","",""]
[null,null,null,null,null,null,"","","","","","","",null,null,null,"",null,null,null,null,"","",""]
[null,null,null,null,null,null,"","","","","","","",null,null,null,"",null,null,null,null,"","",""]
[null,null,null,null,null,null,"","","","","","","",null,null,null,"",null,null,null,null,"","",""]
[null,null,null,null,null,null,"","","","","","","",null,null,null,"",null,null,null,null,"","",""]
[null,null,null,null,null,null,"","","","","","","",null,null,null,"",null,null,null,null,"","",""]
[null,null,null,null,null,null,"","","","","","","",null,null,null,"",null,null,null,null,"","",""]
[null,null,null,null,null,null,"","","","","","","",null,null,null,"",null,null,null,null,"","",""]
[null,null,null,null,null,null,"","","","","","","",null,null,null,"",null,null,null,null,"","",""]
[null,null,null,null,null,null,"","","","","","","",null,null,null,"",null,null,null,null,"","",""]
[null,null,null,null,null,null,"","","","","","","",null,null,null,"",null,null,null,null,"","",""]
[null,null,null,null,null,null,"","","","","","","",null,null,null,"",null,null,null,null,"","",""]
[null,null,null,null,null,null,"","","","","","","",null,null,null,"",null,null,null,null,"","",""]
[null,null,null,null,null,null,"","","","","","","",null,null,null,"",null,null,null,null,"","",""]
[null,null,null,null,null,null,"","","","","","","",null,null,null,"",null,null,null,null,"","",""]
[null,null,null,null,null,null,"","","","","","","",null,null,null,"",null,null,null,null,"","",""]
[null,null,null,null,null,null,"","","","","","","",null,null,null,"",null,null,null,null,"","",""]
[null,null,null,null,null,null,"","","","","","","",null,null,null,"",null,null,null,null,"","",""]
[null,null,null,null,null,null,"","","","","","","",null,null,null,"",null,null,null,null,"","",""]
[null,null,null,null,null,null,"","","","","","","",null,null,null,"",null,null,null,null,"","",""]
[null,null,null,null,null,null,"","","","","","","",null,null,null,"",null,null,null,null,"","",""]
[null,null,null,null,null,null,"","","","","","","",null,null,null,"",null,null,null,null,"","",""]
[null,null,null,null,null,null,"","","","","","","",null,null,null,"",null,null,null,null,"","",""]
[null,null,null,null,null,null,"","","","","","","",null,null,null,"",null,null,null,null,"","",""]
[null,null,null,null,null,null,"","","","","","","",null,null,null,"",null,null,null,null,"","",""]
[null,null,null,null,null,null,"","","","","","","",null,null,null,"",null,null,null,null,"","",""]
[null,null,null,null,null,null,"","","","","","","",null,null,null,"",null,null,null,null,"","",""]
[null,null,null,null,null,null,"","","","","","","",null,null,null,"",null,null,null,null,"","",""]
[null,null,null,null,null,null,"","","","","","","",null,null,null,"",null,null,null,null,"","",""]
[null,null,null,null,null,null,"","","","","","","",null,null,null,"",null,null,null,null,"","",""]
[null,null,null,null,null,null,"","","","","","","",null,null,null,"",null,null,null,null,"","",""]
[null,null,null,null,null,null,"","","","","","","",null,null,null,"",null,null,null,null,"","",""]
[null,null,null,null,null,null,"","","","","","","",null,null,null,"",null,null,null,null,"","",""]
[null,null,null,null,null,null,"","","","","","","",null,null,null,"",null,null,null,null,"","",""]
[null,null,null,null,null,null,"","","","","","","",null,null,null,"",null,null,null,null,"","",""]
[null,null,null,null,null,null,"","","","","","","",null,null,null,"",null,null,null,null,"","",""]
[null,null,null,null,null,null,"","","","","","","",null,null,null,"",null,null,null,null,"","",""]
[null,null,null,null,null,null,"","","","","","","",null,null,null,"",null,null,null,null,"","",""]
[null,null,null,null,null,null,"","","","","","","",null,null,null,"",null,null,null,null,"","",""]
[null,null,null,null,null,null,"","","","","","","",null,null,null,"",null,null,null,null,"","",""]
[null,null,null,null,null,null,"","","","","","","",null,null,null,"",null,null,null,null,"","",""]
[null,null,null,null,null,null,"","","","","","","",null,null,null,"",null,null,null,null,"","",""]
[null,null,null,null,null,null,"","","","","","","",null,null,null,"",null,null,null,null,"","",""]
[null,null,null,null,null,null,"","","","","","","",null,null,null,"",null,null,null,null,"","",""]
[null,null,null,null,null,null,"","","","","","","",null,null,null,"",null,null,null,null,"","",""]
[null,null,null,null,null,null,"","","","","",{"$f":"Kh_Date_Sex_Province($E900,3)","v":""},"",null,null,null,"",null,null,null,null,"","",""]
[null,null,null,null,null,null,"","","","",{"$f":"IF(E901=\"\",\"\",($K$1+J901)-1)","v":""},"","",null,null,null,{"$f":"IF(F901=\"\",\"\",\"الغربية\")","v":""},null,null,null,null,{"$f":"IF(U901=\"\",\"\",DATEDIF(U901,$U$1,\"md\"))","v":""},{"$f":"IF(U901=\"\",\"\",DATEDIF(U901,$U$1,\"ym\"))","v":""},{"$f":"IF(U901=\"\",\"\",DATEDIF(U901,$U$1,\"y\"))","v":""}]
[null,null,null,null,null,null,"","","","","","","",null,null,null,"",null,null,null,null,"","",""]
[null,null,null,null,null,null,"","","","","","","",null,null,null,"",null,null,null,null,"","",""]
[null,null,null,null,null,null,"","","","","","","",null,null,null,"",null,null,null,null,"","",""]
[null,null,null,null,null,null,"","","","","","","",null,null,null,"",null,null,null,null,"","",""]
[null,null,null,null,null,null,"","","","","","","",null,null,null,"",null,null,null,null,"","",""]
[null,null,null,null,null,null,"","","","","","","",null,null,null,"",null,null,null,null,"","",""]
[null,null,null,null,null,null,"","","","","","","",null,null,null,"",null,null,null,null,"","",""]
[null,null,null,null,null,null,"","","","","","","",null,null,null,"",null,null,null,null,"","",""]
[null,null,null,null,null,null,"","","","","","","",null,null,null,"",null,null,null,null,"","",""]
[null,null,null,null,null,null,"","","","","","","",null,null,null,"",null,null,null,null,"","",""]
[null,null,null,null,null,null,{"$f":"RIGHT(LEFT(E912,7),2)","v":""},{"$f":"RIGHT(LEFT(E912,5),2)","v":""},{"$f":"IF(E912=\"\",\"\",IF(ISODD(MID(E912,1,1)),MID(E912,2,2)+2000,MID(E912,2,2)+1900))","v":""},{"$f":"IF(E912=\"\",\"\",DATE(I912,H912,G912))","v":""},"","",{"$f":"IF(E912=\"\",\"\",IF(ISODD(MID(E912,13,1)),\"ذكر\",\"أنثى\"))","v":""},null,null,null,"",null,null,null,null,"","",""]
[null,null,null,null,null,null,"","","","","","","",null,null,null,"",null,null,null,null,"","",""]
[null,null,null,null,null,null,"","","","","","","",null,null,null,"",null,null,null,null,"","",""]
[null,null,null,null,null,null,"","","","","","","",null,null,null,"",null,null,null,null,"","",""]
[null,null,null,null,null,null,"","","","","","","",null,null,null,"",null,null,null,null,"","",""]
[null,null,null,null,null,null,"","","","","","","",null,null,null,"",null,null,null,null,"","",""]
[null,null,null,null,null,null,"","","","","","","",null,null,null,"",null,null,null,null,"","",""]
[null,null,null,null,null,null,"","","","","","","",null,null,null,"",null,null,null,null,"","",""]
[null,null,null,null,null,null,"","","","","","","",null,null,null,"",null,null,null,null,"","",""]
[null,null,null,null,null,null,"","","","","","","",null,null,null,"",null,null,null,null,"","",""]
[null,null,null,null,null,null,"","","","","","","",null,null,null,"",null,null,null,null,"","",""]
[null,null,null,null,null,null,"","","","","","","",null,null,null,"",null,null,null,null,"","",""]
[null,null,null,null,null,null,"","","","","","","",null,null,null,"",null,null,null,null,"","",""]
[null,null,null,null,null,null,"","","","","","","",null,null,null,"",null,null,null,null,"","",""]
[null,null,null,null,null,null,"","","","","","","",null,null,null,"",null,null,null,null,"","",""]
[null,null,null,null,null,null,"","","","","","","",null,null,null,"",null,null,null,null,"","",""]
[null,null,null,null,null,null,"","","","","","","",null,null,null,"",null,null,null,null,"","",""]
[null,null,null,null,null,null,"","","","","","","",null,null,null,"",null,null,null,null,"","",""]
[null,null,null,null,null,null,"","","","","","","",null,null,null,"",null,null,null,null,"","",""]
[null,null,null,null,null,null,"","","","","","","",null,null,null,"",null,null,null,null,"","",""]
[null,null,null,null,null,null,"","","","","","","",null,null,null,"",null,null,null,null,"","",""]
[null,null,null,null,null,null,"","","","","","","",null,null,null,"",null,null,null,null,"","",""]
[null,null,null,null,null,null,"","","","","","","",null,null,null,"",null,null,null,null,"","",""]
[null,null,null,null,null,null,"","","","","","","",null,null,null,"",null,null,null,null,"","",""]
[null,null,null,null,null,null,"","","","","","","",null,null,null,"",null,null,null,null,"","",""]
[null,null,null,null,null,null,"","","","","","","",null,null,null,"",null,null,null,null,"","",""]
[null,null,null,null,null,null,"","","","","","","",null,null,null,"",null,null,null,null,"","",""]
[null,null,null,null,null,null,"","","","","","","",null,null,null,"",null,null,null,null,"","",""]
[null,null,null,null,null,null,"","","","","","","",null,null,null,"",null,null,null,null,"","",""]
[null,null,null,null,null,null,"","","","","","","",null,null,null,"",null,null,null,null,"","",""]
[null,null,null,null,null,null,"","","","","","","",null,null,null,"",null,null,null,null,"","",""]
[null,null,null,null,null,null,"","","","","","","",null,null,null,"",null,null,null,null,"","",""]
[null,null,null,null,null,null,"","","","","","","",null,null,null,"",null,null,null,null,"","",""]
[null,null,null,null,null,null,"","","","","","","",null,null,null,"",null,null,null,null,"","",""]
[null,null,null,null,null,null,"","","","","","","",null,null,null,"",null,null,null,null,"","",""]
[null,null,null,null,null,null,"","","","","","","",null,null,null,"",null,null,null,null,"","",""]
[null,null,null,null,null,null,"","","","","","","",null,null,null,"",null,null,null,null,"","",""]
[null,null,null,null,null,null,"","","","","","","",null,null,null,"",null,null,null,null,"","",""]
[null,null,null,null,null,null,"","","","","","","",null,null,null,"",null,null,null,null,"","",""]
[null,null,null,null,null,null,"","","","","","","",null,null,null,"",null,null,null,null,"","",""]
[null,null,null,null,null,null,"","","","","","","",null,null,null,"",null,null,null,null,"","",""]
[null,null,null,null,null,null,"","","","","","","",null,null,null,"",null,null,null,null,"","",""]
[null,null,null,null,null,null,"","","","","","","",null,null,null,"",null,null,null,null,"","",""]
[null,null,null,null,null,null,"","","","","","","",null,null,null,"",null,null,null,null,"","",""]
[null,null,null,null,null,null,"","","","","","","",null,null,null,"",null,null,null,null,"","",""]
[null,null,null,null,null,null,"","","","","","","",null,null,null,"",null,null,null,null,"","",""]
[null,null,null,null,null,null,"","","","","","","",null,null,null,"",null,null,null,null,"","",""]
[null,null,null,null,null,null,"","","","","","","",null,null,null,"",null,null,null,null,"","",""]
[null,null,null,null,null,null,"","","","","","","",null,null,null,"",null,null,null,null,"","",""]
[null,null,null,null,null,null,"","","","","","","",null,null,null,"",null,null,null,null,"","",""]
[null,null,null,null,null,null,"","","","","","","",null,null,null,"",null,null,null,null,"","",""]
[null,null,null,null,null,null,"","","","","","","",null,null,null,"",null,null,null,null,"","",""]
[null,null,null,null,null,null,"","","","","",{"$f":"Kh_Date_Sex_Province($E964,3)","v":""},"",null,null,null,"",null,null,null,null,"","",""]
[null,null,null,null,null,null,"","","","",{"$f":"IF(E965=\"\",\"\",($K$1+J965)-1)","v":""},"","",null,null,null,{"$f":"IF(F965=\"\",\"\",\"الغربية\")","v":""},null,null,null,null,{"$f":"IF(U965=\"\",\"\",DATEDIF(U965,$U$1,\"md\"))","v":""},{"$f":"IF(U965=\"\",\"\",DATEDIF(U965,$U$1,\"ym\"))","v":""},{"$f":"IF(U965=\"\",\"\",DATEDIF(U965,$U$1,\"y\"))","v":""}]
[null,null,null,null,null,null,"","","","","","","",null,null,null,"",null,null,null,null,"","",""]
[null,null,null,null,null,null,"","","","","","","",null,null,null,"",null,null,null,null,"","",""]
[null,null,null,null,null,null,"","","","","","","",null,null,null,"",null,null,null,null,"","",""]
[null,null,null,null,null,null,"","","","","","","",null,null,null,"",null,null,null,null,"","",""]
[null,null,null,null,null,null,"","","","","","","",null,null,null,"",null,null,null,null,"","",""]
[null,null,null,null,null,null,"","","","","","","",null,null,null,"",null,null,null,null,"","",""]
[null,null,null,null,null,null,"","","","","","","",null,null,null,"",null,null,null,null,"","",""]
[null,null,null,null,null,null,"","","","","","","",null,null,null,"",null,null,null,null,"","",""]
[null,null,null,null,null,null,"","","","","","","",null,null,null,"",null,null,null,null,"","",""]
[null,null,null,null,null,null,"","","","","","","",null,null,null,"",null,null,null,null,"","",""]
[null,null,null,null,null,null,{"$f":"RIGHT(LEFT(E976,7),2)","v":""},{"$f":"RIGHT(LEFT(E976,5),2)","v":""},{"$f":"IF(E976=\"\",\"\",IF(ISODD(MID(E976,1,1)),MID(E976,2,2)+2000,MID(E976,2,2)+1900))","v":""},{"$f":"IF(E976=\"\",\"\",DATE(I976,H976,G976))","v":""},"","",{"$f":"IF(E976=\"\",\"\",IF(ISODD(MID(E976,13,1)),\"ذكر\",\"أنثى\"))","v":""},null,null,null,"",null,null,null,null,"","",""]
[null,null,null,null,null,null,"","","","","","","",null,null,null,"",null,null,null,null,"","",""]
[null,null,null,null,null,null,"","","","","","","",null,null,null,"",null,null,null,null,"","",""]
[null,null,null,null,null,null,"","","","","","","",null,null,null,"",null,null,null,null,"","",""]
[null,null,null,null,null,null,"","","","","","","",null,null,null,"",null,null,null,null,"","",""]
[null,null,null,null,null,null,"","","","","","","",null,null,null,"",null,null,null,null,"","",""]
[null,null,null,null,null,null,"","","","","","","",null,null,null,"",null,null,null,null,"","",""]
[null,null,null,null,null,null,"","","","","","","",null,null,null,"",null,null,null,null,"","",""]
[null,null,null,null,null,null,"","","","","","","",null,null,null,"",null,null,null,null,"","",""]
[null,null,null,null,null,null,"","","","","","","",null,null,null,"",null,null,null,null,"","",""]
[null,null,null,null,null,null,"","","","","","","",null,null,null,"",null,null,null,null,"","",""]
[null,null,null,null,null,null,"","","","","","","",null,null,null,"",null,null,null,null,"","",""]
[null,null,null,null,null,null,"","","","","","","",null,null,null,"",null,null,null,null,"","",""]
[null,null,null,null,null,null,"","","","","","","",null,null,null,"",null,null,null,null,"","",""]
[null,null,null,null,null,null,"","","","","","","",null,null,null,"",null,null,null,null,"","",""]
[null,null,null,null,null,null,"","","","","","","",null,null,null,"",null,null,null,null,"","",""]
[null,null,null,null,null,null,"","","","","","","",null,null,null,"",null,null,null,null,"","",""]
[null,null,null,null,null,null,"","","","","","","",null,null,null,"",null,null,null,null,"","",""]
[null,null,null,null,null,null,"","","","","","","",null,null,null,"",null,null,null,null,"","",""]
[null,null,null,null,null,null,"","","","","","","",null,null,null,"",null,null,null,null,"","",""]
[null,null,null,null,null,null,"","","","","","","",null,null,null,"",null,null,null,null,"","",""]
[null,null,null,null,null,null,"","","","","","","",null,null,null,"",null,null,null,null,"","",""]
[null,null,null,null,null,null,"","","","","","","",null,null,null,"",null,null,null,null,"","",""]
[null,null,null,null,null,null,"","","","","","","",null,null,null,"",null,null,null,null,"","",""]
[null,null,null,null,null,null,"","","","","","","",null,null,null,"",null,null,null,null,"","",""]
[null,null,null,null,null,null,"","","","","","","",null,null,null,"",null,null,null,null,"","",""]
[null,null,null,null,null,null,"","","","","","","",null,null,null,"",null,null,null,null,"","",""]
[null,null,null,null,null,null,"","","","","","","",null,null,null,"",null,null,null,null,"","",""]
[null,null,null,null,null,null,"","","","","","","",null,null,null,"",null,null,null,null,"","",""]
[null,null,null,null,null,null,"","","","","","","",null,null,null,"",null,null,null,null,"","",""]
[null,null,null,null,null,null,"","","","","","","",null,null,null,"",null,null,null,null,"","",""]
[null,null,null,null,null,null,"","","","","","","",null,null,null,"",null,null,null,null,"","",""]
[null,null,null,null,null,null,"","","","","","","",null,null,null,"",null,null,null,null,"","",""]
[null,null,null,null,null,null,"","","","","","","",null,null,null,"",null,null,null,null,"","",""]
[null,null,null,null,null,null,"","","","","","","",null,null,null,"",null,null,null,null,"","",""]
[null,null,null,null,null,null,"","","","","","","",null,null,null,"",null,null,null,null,"","",""]
[null,null,null,null,null,null,"","","","","","","",null,null,null,"",null,null,null,null,"","",""]
[null,null,null,null,null,null,"","","","","","","",null,null,null,"",null,null,null,null,"","",""]
[null,null,null,null,null,null,"","","","","","","",null,null,null,"",null,null,null,null,"","",""]
[null,null,null,null,null,null,"","","","","","","",null,null,null,"",null,null,null,null,"","",""]
[null,null,null,null,null,null,"","","","","","","",null,null,null,"",null,null,null,null,"","",""]
[null,null,null,null,null,null,"","","","","","","",null,null,null,"",null,null,null,null,"","",""]
[null,null,null,null,null,null,"","","","","","","",null,null,null,"",null,null,null,null,"","",""]
[null,null,null,null,null,null,"","","","","","","",null,null,null,"",null,null,null,null,"","",""]
[null,null,null,null,null,null,"","","","","","","",null,null,null,"",null,null,null,null,"","",""]
[null,null,null,null,null,null,"","","","","","","",null,null,null,"",null,null,null,null,"","",""]
[null,null,null,null,null,null,"","","","","","","",null,null,null,"",null,null,null,null,"","",""]
[null,null,null,null,null,null,"","","","","","","",null,null,null,"",null,null,null,null,"","",""]
[null,null,null,null,null,null,"","","","","","","",null,null,null,"",null,null,null,null,"","",""]
[null,null,null,null,null,null,"","","","","","","",null,null,null,"",null,null,null,null,"","",""]
[null,null,null,null,null,null,"","","","","","","",null,null,null,"",null,null,null,null,"","",""]
[null,null,null,null,null,null,"","","","","","","",null,null,null,"",null,null,null,null,"","",""]
[null,null,null,null,null,null,"","","","","",{"$f":"Kh_Date_Sex_Province($E1028,3)","v":""},"",null,null,null,"",null,null,null,null,"","",""]
[null,null,null,null,null,null,"","","","",{"$f":"IF(E1029=\"\",\"\",($K$1+J1029)-1)","v":""},"","",null,null,null,{"$f":"IF(F1029=\"\",\"\",\"الغربية\")","v":""},null,null,null,null,{"$f":"IF(U1029=\"\",\"\",DATEDIF(U1029,$U$1,\"md\"))","v":""},{"$f":"IF(U1029=\"\",\"\",DATEDIF(U1029,$U$1,\"ym\"))","v":""},{"$f":"IF(U1029=\"\",\"\",DATEDIF(U1029,$U$1,\"y\"))","v":""}]
[null,null,null,null,null,null,"","","","","","","",null,null,null,"",null,null,null,null,"","",""]
[null,null,null,null,null,null,"","","","","","","",null,null,null,"",null,null,null,null,"","",""]
[null,null,null,null,null,null,"","","","","","","",null,null,null,"",null,null,null,null,"","",""]
[null,null,null,null,null,null,"","","","","","","",null,null,null,"",null,null,null,null,"","",""]
[null,null,null,null,null,null,"","","","","","","",null,null,null,"",null,null,null,null,"","",""]
[null,null,null,null,null,null,"","","","","","","",null,null,null,"",null,null,null,null,"","",""]
[null,null,null,null,null,null,"","","","","","","",null,null,null,"",null,null,null,null,"","",""]
[null,null,null,null,null,null,"","","","","","","",null,null,null,"",null,null,null,null,"","",""]
[null,null,null,null,null,null,"","","","","","","",null,null,null,"",null,null,null,null,"","",""]
[null,null,null,null,null,null,"","","","","","","",null,null,null,"",null,null,null,null,"","",""]
[null,null,null,null,null,null,{"$f":"RIGHT(LEFT(E1040,7),2)","v":""},{"$f":"RIGHT(LEFT(E1040,5),2)","v":""},{"$f":"IF(E1040=\"\",\"\",IF(ISODD(MID(E1040,1,1)),MID(E1040,2,2)+2000,MID(E1040,2,2)+1900))","v":""},{"$f":"IF(E1040=\"\",\"\",DATE(I1040,H1040,G1040))","v":""},"","",{"$f":"IF(E1040=\"\",\"\",IF(ISODD(MID(E1040,13,1)),\"ذكر\",\"أنثى\"))","v":""},null,null,null,"",null,null,null,null,"","",""]
[null,null,null,null,null,null,"","","","","","","",null,null,null,"",null,null,null,null,"","",""]
[null,null,null,null,null,null,"","","","","","","",null,null,null,"",null,null,null,null,"","",""]
[null,null,null,null,null,null,"","","","","","","",null,null,null,"",null,null,null,null,"","",""]
[null,null,null,null,null,null,"","","","","","","",null,null,null,"",null,null,null,null,"","",""]
[null,null,null,null,null,null,"","","","","","","",null,null,null,"",null,null,null,null,"","",""]
[null,null,null,null,null,null,"","","","","","","",null,null,null,"",null,null,null,null,"","",""]
[null,null,null,null,null,null,"","","","","","","",null,null,null,"",null,null,null,null,"","",""]
[null,null,null,null,null,null,"","","","","","","",null,null,null,"",null,null,null,null,"","",""]
[null,null,null,null,null,null,"","","","","","","",null,null,null,"",null,null,null,null,"","",""]
[null,null,null,null,null,null,"","","","","","","",null,null,null,"",null,null,null,null,"","",""]
[null,null,null,null,null,null,"","","","","","","",null,null,null,"",null,null,null,null,"","",""]
[null,null,null,null,null,null,"","","","","","","",null,null,null,"",null,null,null,null,"","",""]
[null,null,null,null,null,null,"","","","","","","",null,null,null,"",null,null,null,null,"","",""]
[null,null,null,null,null,null,"","","","","","","",null,null,null,"",null,null,null,null,"","",""]
[null,null,null,null,null,null,"","","","","","","",null,null,null,"",null,null,null,null,"","",""]
[null,null,null,null,null,null,"","","","","","","",null,null,null,"",null,null,null,null,"","",""]
[null,null,null,null,null,null,"","","","","","","",null,null,null,"",null,null,null,null,"","",""]
[null,null,null,null,null,null,"","","","","","","",null,null,null,"",null,null,null,null,"","",""]
[null,null,null,null,null,null,"","","","","","","",null,null,null,"",null,null,null,null,"","",""]
[null,null,null,null,null,null,"","","","","","","",null,null,null,"",null,null,null,null,"","",""]
[null,null,null,null,null,null,"","","","","","","",null,null,null,"",null,null,null,null,"","",""]
[null,null,null,null,null,null,"","","","","","","",null,null,null,"",null,null,null,null,"","",""]
[null,null,null,null,null,null,"","","","","","","",null,null,null,"",null,null,null,null,"","",""]
[null,null,null,null,null,null,"","","","","","","",null,null,null,"",null,null,null,null,"","",""]
[null,null,null,null,null,null,"","","","","","","",null,null,null,"",null,null,null,null,"","",""]
[null,null,null,null,null,null,"","","","","","","",null,null,null,"",null,null,null,null,"","",""]
[null,null,null,null,null,null,"","","","","","","",null,null,null,"",null,null,null,null,"","",""]
[null,null,null,null,null,null,"","","","","","","",null,null,null,"",null,null,null,null,"","",""]
[null,null,null,null,null,null,"","","","","","","",null,null,null,"",null,null,null,null,"","",""]
[null,null,null,null,null,null,"","","","","","","",null,null,null,"",null,null,null,null,"","",""]
[null,null,null,null,null,null,"","","","","","","",null,null,null,"",null,null,null,null,"","",""]
[null,null,null,null,null,null,"","","","","","","",null,null,null,"",null,null,null,null,"","",""]
[null,null,null,null,null,null,"","","","","","","",null,null,null,"",null,null,null,null,"","",""]
[null,null,null,null,null,null,"","","","","","","",null,null,null,"",null,null,null,null,"","",""]
[null,null,null,null,null,null,"","","","","","","",null,null,null,"",null,null,null,null,"","",""]
[null,null,null,null,null,null,"","","","","","","",null,null,null,"",null,null,null,null,"","",""]
[null,null,null,null,null,null,"","","","","","","",null,null,null,"",null,null,null,null,"","",""]
[null,null,null,null,null,null,"","","","","","","",null,null,null,"",null,null,null,null,"","",""]
[null,null,null,null,null,null,"","","","","","","",null,null,null,"",null,null,null,null,"","",""]
[null,null,null,null,null,null,"","","","","","","",null,null,null,"",null,null,null,null,"","",""]
[null,null,null,null,null,null,"","","","","","","",null,null,null,"",null,null,null,null,"","",""]
[null,null,null,null,null,null,"","","","","","","",null,null,null,"",null,null,null,null,"","",""]
[null,null,null,null,null,null,"","","","","","","",null,null,null,"",null,null,null,null,"","",""]
[null,null,null,null,null,null,"","","","","","","",null,null,null,"",null,null,null,null,"","",""]
[null,null,null,null,null,null,"","","","","","","",null,null,null,"",null,null,null,null,"","",""]
[null,null,null,null,null,null,"","","","","","","",null,null,null,"",null,null,null,null,"","",""]
[null,null,null,null,null,null,"","","","","","","",null,null,null,"",null,null,null,null,"","",""]
[null,null,null,null,null,null,"","","","","","","",null,null,null,"",null,null,null,null,"","",""]
[null,null,null,null,null,null,"","","","","","","",null,null,null,"",null,null,null,null,"","",""]
[null,null,null,null,null,null,"","","","","","","",null,null,null,"",null,null,null,null,"","",""]
[null,null,null,null,null,null,"","","","","","","",null,null,null,"",null,null,null,null,"","",""]
[null,null,null,null,null,null,"","","",{"$f":"IF(E1092=\"\",\"\",DATE(I1092,H1092,G1092))","v":""},"",{"$f":"Kh_Date_Sex_Province($E1092,3)","v":""},{"$f":"IF(E1092=\"\",\"\",IF(ISODD(MID(E1092,13,1)),\"ذكر\",\"أنثى\"))","v":""},null,null,null,"",null,null,null,null,"","",""]
[null,null,null,null,null,null,{"$f":"RIGHT(LEFT(E1093,7),2)","v":""},{"$f":"RIGHT(LEFT(E1093,5),2)","v":""},{"$f":"IF(E1093=\"\",\"\",IF(ISODD(MID(E1093,1,1)),MID(E1093,2,2)+2000,MID(E1093,2,2)+1900))","v":""},{"$f":"IF(E1093=\"\",\"\",DATE(I1093,H1093,G1093))","v":""},{"$f":"IF(E1093=\"\",\"\",($K$1+J1093)-1)","v":""},{"$f":"Kh_Date_Sex_Province($E1093,3)","v":""},{"$f":"IF(E1093=\"\",\"\",IF(ISODD(MID(E1093,13,1)),\"ذكر\",\"أنثى\"))","v":""},null,null,null,{"$f":"IF(F1093=\"\",\"\",\"الغربية\")","v":""},null,null,null,null,{"$f":"IF(U1093=\"\",\"\",DATEDIF(U1093,$U$1,\"md\"))","v":""},{"$f":"IF(U1093=\"\",\"\",DATEDIF(U1093,$U$1,\"ym\"))","v":""},{"$f":"IF(U1093=\"\",\"\",DATEDIF(U1093,$U$1,\"y\"))","v":""}]
[]
[]
[]
[]
[]
[]
[]
[]
[]
[]
[null,null,{"$f":"MATCH(B1104,BA$2:BA$13,0)","v":{"$error":"#N/A"}}]
[null,null,{"$error":"#N/A"}]
[null,null,{"$error":"#N/A"}]
[null,null,{"$error":"#N/A"}]
[null,null,{"$error":"#N/A"}]
[null,null,{"$error":"#N/A"}]
[null,null,{"$error":"#N/A"}]
[null,null,{"$error":"#N/A"}]
[null,null,{"$error":"#N/A"}]
[null,null,{"$error":"#N/A"}]
[null,null,{"$error":"#N/A"}]
[null,null,{"$error":"#N/A"}]
[null,null,{"$error":"#N/A"}]
[null,null,{"$error":"#N/A"}]
[null,null,{"$error":"#N/A"}]
[null,null,{"$error":"#N/A"}]
[null,null,{"$error":"#N/A"}]
[null,null,{"$error":"#N/A"}]
[null,null,{"$error":"#N/A"}]
[null,null,{"$error":"#N/A"}]
[null,null,{"$error":"#N/A"}]
[null,null,{"$error":"#N/A"}]
[null,null,{"$error":"#N/A"}]
[null,null,{"$error":"#N/A"}]
[null,null,{"$error":"#N/A"}]
[null,null,{"$error":"#N/A"}]
[null,null,{"$error":"#N/A"}]
[null,null,{"$error":"#N/A"}]
[null,null,{"$error":"#N/A"}]
[null,null,{"$error":"#N/A"}]
[null,null,{"$error":"#N/A"}]
[null,null,{"$error":"#N/A"}]
[null,null,{"$error":"#N/A"}]
[null,null,{"$error":"#N/A"}]
[null,null,{"$error":"#N/A"}]
[null,null,{"$error":"#N/A"}]
[null,null,{"$error":"#N/A"}]
[null,null,{"$error":"#N/A"}]
[null,null,{"$error":"#N/A"}]
[null,null,{"$error":"#N/A"}]
[null,null,{"$error":"#N/A"}]
[null,null,{"$error":"#N/A"}]
[null,null,{"$error":"#N/A"}]
[null,null,{"$error":"#N/A"}]
[null,null,{"$error":"#N/A"}]
[null,null,{"$error":"#N/A"}]
[null,null,{"$error":"#N/A"}]
[null,null,{"$error":"#N/A"}]
[null,null,{"$error":"#N/A"}]
[null,null,{"$error":"#N/A"}]
[null,null,{"$error":"#N/A"}]
[null,null,{"$error":"#N/A"}]
[null,null,{"$error":"#N/A"}]
[null,null,{"$error":"#N/A"}]
[null,null,{"$error":"#N/A"}]
[null,null,{"$error":"#N/A"}]
[null,null,{"$error":"#N/A"}]
[null,null,{"$error":"#N/A"}]
[null,null,{"$error":"#N/A"}]
[null,null,{"$error":"#N/A"}]
[null,null,{"$error":"#N/A"}]
[null,null,{"$error":"#N/A"}]
[null,null,{"$error":"#N/A"}]
[null,null,{"$error":"#N/A"}]
[null,null,{"$f":"MATCH(B1168,BA$2:BA$13,0)","v":{"$error":"#N/A"}}]
[null,null,{"$error":"#N/A"}]
[null,null,{"$error":"#N/A"}]
[null,null,{"$error":"#N/A"}]
[null,null,{"$error":"#N/A"}]
[null,null,{"$error":"#N/A"}]
[null,null,{"$error":"#N/A"}]
[null,null,{"$error":"#N/A"}]
[null,null,{"$error":"#N/A"}]
[null,null,{"$error":"#N/A"}]
[null,null,{"$error":"#N/A"}]
[null,null,{"$error":"#N/A"}]
[null,null,{"$error":"#N/A"}]
[null,null,{"$error":"#N/A"}]
[null,null,{"$error":"#N/A"}]
[null,null,{"$error":"#N/A"}]
[null,null,{"$error":"#N/A"}]
[null,null,{"$error":"#N/A"}]
[null,null,{"$error":"#N/A"}]
[null,null,{"$error":"#N/A"}]
[null,null,{"$error":"#N/A"}]
[null,null,{"$error":"#N/A"}]
[null,null,{"$error":"#N/A"}]
[null,null,{"$error":"#N/A"}]
[null,null,{"$error":"#N/A"}]
[null,null,{"$error":"#N/A"}]
[null,null,{"$error":"#N/A"}]
[null,null,{"$error":"#N/A"}]
[null,null,{"$error":"#N/A"}]
[null,null,{"$error":"#N/A"}]
[null,null,{"$error":"#N/A"}]
[null,null,{"$error":"#N/A"}]
[null,null,{"$error":"#N/A"}]
[null,null,{"$error":"#N/A"}]
[null,null,{"$error":"#N/A"}]
[null,null,{"$error":"#N/A"}]
[null,null,{"$error":"#N/A"}]
[null,null,{"$error":"#N/A"}]
[null,null,{"$error":"#N/A"}]
[null,null,{"$error":"#N/A"}]
[null,null,{"$error":"#N/A"}]
[null,null,{"$error":"#N/A"}]
[null,null,{"$error":"#N/A"}]
[null,null,{"$error":"#N/A"}]
[null,null,{"$error":"#N/A"}]
[null,null,{"$error":"#N/A"}]
[null,null,{"$error":"#N/A"}]
[null,null,{"$error":"#N/A"}]
[null,null,{"$error":"#N/A"}]
[null,null,{"$error":"#N/A"}]
[null,null,{"$error":"#N/A"}]
[null,null,{"$error":"#N/A"}]
[null,null,{"$error":"#N/A"}]
[null,null,{"$error":"#N/A"}]
[null,null,{"$error":"#N/A"}]
[null,null,{"$error":"#N/A"}]
[null,null,{"$error":"#N/A"}]
[null,null,{"$error":"#N/A"}]
[null,null,{"$error":"#N/A"}]
[null,null,{"$error":"#N/A"}]
[null,null,{"$error":"#N/A"}]
[null,null,{"$error":"#N/A"}]
[null,null,{"$error":"#N/A"}]
[null,null,{"$error":"#N/A"}]
[null,null,{"$f":"MATCH(B1232,BA$2:BA$13,0)","v":{"$error":"#N/A"}}]
[null,null,{"$error":"#N/A"}]
[null,null,{"$error":"#N/A"}]
[null,null,{"$error":"#N/A"}]
[null,null,{"$error":"#N/A"}]
[null,null,{"$error":"#N/A"}]
[null,null,{"$error":"#N/A"}]
[null,null,{"$error":"#N/A"}]
[null,null,{"$error":"#N/A"}]
[null,null,{"$error":"#N/A"}]
[null,null,{"$error":"#N/A"}]
[null,null,{"$error":"#N/A"}]
[null,null,{"$error":"#N/A"}]
[null,null,{"$error":"#N/A"}]
[null,null,{"$error":"#N/A"}]
[null,null,{"$error":"#N/A"}]
[null,null,{"$error":"#N/A"}]
[null,null,{"$error":"#N/A"}]
[null,null,{"$error":"#N/A"}]
[null,null,{"$error":"#N/A"}]
[null,null,{"$error":"#N/A"}]
[null,null,{"$error":"#N/A"}]
[null,null,{"$error":"#N/A"}]
[null,null,{"$error":"#N/A"}]
[null,null,{"$error":"#N/A"}]
[null,null,{"$error":"#N/A"}]
[null,null,{"$error":"#N/A"}]
[null,null,{"$error":"#N/A"}]
[null,null,{"$error":"#N/A"}]
[null,null,{"$error":"#N/A"}]
[null,null,{"$error":"#N/A"}]
[null,null,{"$error":"#N/A"}]
[null,null,{"$error":"#N/A"}]
[null,null,{"$error":"#N/A"}]
[null,null,{"$error":"#N/A"}]
[null,null,{"$error":"#N/A"}]
[null,null,{"$error":"#N/A"}]
[null,null,{"$error":"#N/A"}]
[null,null,{"$error":"#N/A"}]
[null,null,{"$error":"#N/A"}]
[null,null,{"$error":"#N/A"}]
[null,null,{"$error":"#N/A"}]
[null,null,{"$error":"#N/A"}]
[null,null,{"$error":"#N/A"}]
[null,null,{"$error":"#N/A"}]
[null,null,{"$error":"#N/A"}]
[null,null,{"$error":"#N/A"}]
[null,null,{"$error":"#N/A"}]
[null,null,{"$error":"#N/A"}]
[null,null,{"$error":"#N/A"}]
[null,null,{"$error":"#N/A"}]
[null,null,{"$error":"#N/A"}]
[null,null,{"$error":"#N/A"}]
[null,null,{"$error":"#N/A"}]
[null,null,{"$error":"#N/A"}]
[null,null,{"$error":"#N/A"}]
[null,null,{"$error":"#N/A"}]
[null,null,{"$error":"#N/A"}]
[null,null,{"$error":"#N/A"}]
[null,null,{"$error":"#N/A"}]
[null,null,{"$error":"#N/A"}]
[null,null,{"$error":"#N/A"}]
[null,null,{"$error":"#N/A"}]
[null,null,{"$error":"#N/A"}]
[null,null,{"$f":"MATCH(B1296,BA$2:BA$13,0)","v":{"$error":"#N/A"}}]
[null,null,{"$error":"#N/A"}]
[null,null,{"$error":"#N/A"}]
[null,null,{"$error":"#N/A"}]
[null,null,{"$error":"#N/A"}]
[null,null,{"$error":"#N/A"}]
[null,null,{"$error":"#N/A"}]
[null,null,{"$error":"#N/A"}]
[null,null,{"$error":"#N/A"}]
[null,null,{"$error":"#N/A"}]
[null,null,{"$error":"#N/A"}]
[null,null,{"$error":"#N/A"}]
[null,null,{"$error":"#N/A"}]
[null,null,{"$error":"#N/A"}]
[null,null,{"$error":"#N/A"}]
[null,null,{"$error":"#N/A"}]
[null,null,{"$error":"#N/A"}]
[null,null,{"$error":"#N/A"}]
[null,null,{"$error":"#N/A"}]
[null,null,{"$error":"#N/A"}]
[null,null,{"$error":"#N/A"}]
[null,null,{"$error":"#N/A"}]
[null,null,{"$error":"#N/A"}]
[null,null,{"$error":"#N/A"}]
[null,null,{"$error":"#N/A"}]
[null,null,{"$error":"#N/A"}]
[null,null,{"$error":"#N/A"}]
[null,null,{"$error":"#N/A"}]
[null,null,{"$error":"#N/A"}]
[null,null,{"$error":"#N/A"}]
[null,null,{"$error":"#N/A"}]
[null,null,{"$error":"#N/A"}]
[null,null,{"$error":"#N/A"}]
[null,null,{"$error":"#N/A"}]
[null,null,{"$error":"#N/A"}]
[null,null,{"$error":"#N/A"}]
[null,null,{"$error":"#N/A"}]
[null,null,{"$error":"#N/A"}]
[null,null,{"$error":"#N/A"}]
[null,null,{"$error":"#N/A"}]
[null,null,{"$error":"#N/A"}]
[null,null,{"$error":"#N/A"}]
[null,null,{"$error":"#N/A"}]
[null,null,{"$error":"#N/A"}]
[null,null,{"$error":"#N/A"}]
[null,null,{"$error":"#N/A"}]
[null,null,{"$error":"#N/A"}]
[null,null,{"$error":"#N/A"}]
[null,null,{"$error":"#N/A"}]
[null,null,{"$error":"#N/A"}]
[null,null,{"$error":"#N/A"}]
[null,null,{"$error":"#N/A"}]
[null,null,{"$error":"#N/A"}]
[null,null,{"$error":"#N/A"}]
[null,null,{"$error":"#N/A"}]
[null,null,{"$error":"#N/A"}]
[null,null,{"$error":"#N/A"}]
[null,null,{"$error":"#N/A"}]
[null,null,{"$error":"#N/A"}]
[null,null,{"$error":"#N/A"}]
[null,null,{"$error":"#N/A"}]
[null,null,{"$error":"#N/A"}]
[null,null,{"$error":"#N/A"}]
[null,null,{"$error":"#N/A"}]
[null,null,{"$f":"MATCH(B1360,BA$2:BA$13,0)","v":{"$error":"#N/A"}}]
[null,null,{"$error":"#N/A"}]
[null,null,{"$error":"#N/A"}]
[null,null,{"$error":"#N/A"}]
[null,null,{"$error":"#N/A"}]
[null,null,{"$error":"#N/A"}]
[null,null,{"$error":"#N/A"}]
[null,null,{"$error":"#N/A"}]
[null,null,{"$error":"#N/A"}]
[null,null,{"$error":"#N/A"}]
[null,null,{"$error":"#N/A"}]
[null,null,{"$error":"#N/A"}]
[null,null,{"$error":"#N/A"}]
[null,null,{"$error":"#N/A"}]
[null,null,{"$error":"#N/A"}]
[null,null,{"$error":"#N/A"}]
[null,null,{"$error":"#N/A"}]
[null,null,{"$error":"#N/A"}]
[null,null,{"$error":"#N/A"}]
[null,null,{"$error":"#N/A"}]
[null,null,{"$error":"#N/A"}]
[null,null,{"$error":"#N/A"}]
[null,null,{"$error":"#N/A"}]
[null,null,{"$error":"#N/A"}]
[null,null,{"$error":"#N/A"}]
[null,null,{"$error":"#N/A"}]
[null,null,{"$error":"#N/A"}]
[null,null,{"$error":"#N/A"}]
[null,null,{"$error":"#N/A"}]
[null,null,{"$error":"#N/A"}]
[null,null,{"$error":"#N/A"}]
[null,null,{"$error":"#N/A"}]
[null,null,{"$error":"#N/A"}]
[null,null,{"$error":"#N/A"}]
[null,null,{"$error":"#N/A"}]
[null,null,{"$error":"#N/A"}]
[null,null,{"$error":"#N/A"}]
[null,null,{"$error":"#N/A"}]
[null,null,{"$error":"#N/A"}]
[null,null,{"$error":"#N/A"}]
[null,null,{"$error":"#N/A"}]
[null,null,{"$error":"#N/A"}]
[null,null,{"$error":"#N/A"}]
[null,null,{"$error":"#N/A"}]
[null,null,{"$error":"#N/A"}]
[null,null,{"$error":"#N/A"}]
[null,null,{"$error":"#N/A"}]
[null,null,{"$error":"#N/A"}]
[null,null,{"$error":"#N/A"}]
[null,null,{"$error":"#N/A"}]
[null,null,{"$error":"#N/A"}]
[null,null,{"$error":"#N/A"}]
[null,null,{"$error":"#N/A"}]
[null,null,{"$error":"#N/A"}]
[null,null,{"$error":"#N/A"}]
[null,null,{"$error":"#N/A"}]
[null,null,{"$error":"#N/A"}]
[null,null,{"$error":"#N/A"}]
[null,null,{"$error":"#N/A"}]
[null,null,{"$error":"#N/A"}]
[null,null,{"$error":"#N/A"}]
[null,null,{"$error":"#N/A"}]
[null,null,{"$error":"#N/A"}]
[null,null,{"$error":"#N/A"}]
[null,null,{"$f":"MATCH(B1424,BA$2:BA$13,0)","v":{"$error":"#N/A"}}]
[null,null,{"$error":"#N/A"}]
[null,null,{"$error":"#N/A"}]
[null,null,{"$error":"#N/A"}]
[null,null,{"$error":"#N/A"}]
[null,null,{"$error":"#N/A"}]
[null,null,{"$error":"#N/A"}]
[null,null,{"$error":"#N/A"}]
[null,null,{"$error":"#N/A"}]
[null,null,{"$error":"#N/A"}]
[null,null,{"$error":"#N/A"}]
[null,null,{"$error":"#N/A"}]
[null,null,{"$error":"#N/A"}]
[null,null,{"$error":"#N/A"}]
[null,null,{"$error":"#N/A"}]
[null,null,{"$error":"#N/A"}]
[null,null,{"$error":"#N/A"}]
[null,null,{"$error":"#N/A"}]
[null,null,{"$error":"#N/A"}]
[null,null,{"$error":"#N/A"}]
[null,null,{"$error":"#N/A"}]
[null,null,{"$error":"#N/A"}]
[null,null,{"$error":"#N/A"}]
[null,null,{"$error":"#N/A"}]
[null,null,{"$error":"#N/A"}]
[null,null,{"$error":"#N/A"}]
[null,null,{"$error":"#N/A"}]
[null,null,{"$error":"#N/A"}]
[null,null,{"$error":"#N/A"}]
[null,null,{"$error":"#N/A"}]
[null,null,{"$error":"#N/A"}]
[null,null,{"$error":"#N/A"}]
[null,null,{"$error":"#N/A"}]
[null,null,{"$error":"#N/A"}]
[null,null,{"$error":"#N/A"}]
[null,null,{"$error":"#N/A"}]
[null,null,{"$error":"#N/A"}]
[null,null,{"$error":"#N/A"}]
[null,null,{"$error":"#N/A"}]
[null,null,{"$error":"#N/A"}]
[null,null,{"$error":"#N/A"}]
[null,null,{"$error":"#N/A"}]
[null,null,{"$error":"#N/A"}]
[null,null,{"$error":"#N/A"}]
[null,null,{"$error":"#N/A"}]
[null,null,{"$error":"#N/A"}]
[null,null,{"$error":"#N/A"}]
[null,null,{"$error":"#N/A"}]
[null,null,{"$error":"#N/A"}]
[null,null,{"$error":"#N/A"}]
[null,null,{"$error":"#N/A"}]
[null,null,{"$error":"#N/A"}]
[null,null,{"$error":"#N/A"}]
[null,null,{"$error":"#N/A"}]
[null,null,{"$error":"#N/A"}]
[null,null,{"$error":"#N/A"}]
[null,null,{"$error":"#N/A"}]
[null,null,{"$error":"#N/A"}]
[null,null,{"$error":"#N/A"}]
[null,null,{"$error":"#N/A"}]
[null,null,{"$error":"#N/A"}]
[null,null,{"$error":"#N/A"}]
[null,null,{"$error":"#N/A"}]
[null,null,{"$error":"#N/A"}]
[null,null,{"$f":"MATCH(B1488,BA$2:BA$13,0)","v":{"$error":"#N/A"}}]
[null,null,{"$error":"#N/A"}]
[null,null,{"$error":"#N/A"}]
[null,null,{"$error":"#N/A"}]
[null,null,{"$error":"#N/A"}]
[null,null,{"$error":"#N/A"}]
[null,null,{"$error":"#N/A"}]
[null,null,{"$error":"#N/A"}]
[null,null,{"$error":"#N/A"}]
[null,null,{"$error":"#N/A"}]
[null,null,{"$error":"#N/A"}]
[null,null,{"$error":"#N/A"}]
[null,null,{"$error":"#N/A"}]
[null,null,{"$error":"#N/A"}]
[null,null,{"$error":"#N/A"}]
[null,null,{"$error":"#N/A"}]
[null,null,{"$error":"#N/A"}]
[null,null,{"$error":"#N/A"}]
[null,null,{"$error":"#N/A"}]
[null,null,{"$error":"#N/A"}]
[null,null,{"$error":"#N/A"}]
[null,null,{"$error":"#N/A"}]
[null,null,{"$error":"#N/A"}]
[null,null,{"$error":"#N/A"}]
[null,null,{"$error":"#N/A"}]
[null,null,{"$error":"#N/A"}]
[null,null,{"$error":"#N/A"}]
[null,null,{"$error":"#N/A"}]
[null,null,{"$error":"#N/A"}]
[null,null,{"$error":"#N/A"}]
[null,null,{"$error":"#N/A"}]
[null,null,{"$error":"#N/A"}]
[null,null,{"$error":"#N/A"}]
[null,null,{"$error":"#N/A"}]
[null,null,{"$error":"#N/A"}]
[null,null,{"$error":"#N/A"}]
[null,null,{"$error":"#N/A"}]
[null,null,{"$error":"#N/A"}]
[null,null,{"$error":"#N/A"}]
[null,null,{"$error":"#N/A"}]
[null,null,{"$error":"#N/A"}]
[null,null,{"$error":"#N/A"}]
[null,null,{"$error":"#N/A"}]
[null,null,{"$error":"#N/A"}]
[null,null,{"$error":"#N/A"}]
[null,null,{"$error":"#N/A"}]
[null,null,{"$error":"#N/A"}]
[null,null,{"$error":"#N/A"}]
[null,null,{"$error":"#N/A"}]
[null,null,{"$error":"#N/A"}]
[null,null,{"$error":"#N/A"}]
[null,null,{"$error":"#N/A"}]
[null,null,{"$error":"#N/A"}]
[null,null,{"$error":"#N/A"}]
[null,null,{"$error":"#N/A"}]
[null,null,{"$error":"#N/A"}]
[null,null,{"$error":"#N/A"}]
[null,null,{"$error":"#N/A"}]
[null,null,{"$error":"#N/A"}]
[null,null,{"$error":"#N/A"}]
[null,null,{"$error":"#N/A"}]
[null,null,{"$error":"#N/A"}]
[null,null,{"$error":"#N/A"}]
[null,null,{"$error":"#N/A"}]
[null,null,{"$f":"MATCH(B1552,BA$2:BA$13,0)","v":{"$error":"#N/A"}}]
[null,null,{"$error":"#N/A"}]
[null,null,{"$error":"#N/A"}]
[null,null,{"$error":"#N/A"}]
[null,null,{"$error":"#N/A"}]
[null,null,{"$error":"#N/A"}]
[null,null,{"$error":"#N/A"}]
[null,null,{"$error":"#N/A"}]
[null,null,{"$error":"#N/A"}]
[null,null,{"$error":"#N/A"}]
[null,null,{"$error":"#N/A"}]
[null,null,{"$error":"#N/A"}]
[null,null,{"$error":"#N/A"}]
[null,null,{"$error":"#N/A"}]
[null,null,{"$error":"#N/A"}]
[null,null,{"$error":"#N/A"}]
[null,null,{"$error":"#N/A"}]
[null,null,{"$error":"#N/A"}]
[null,null,{"$error":"#N/A"}]
[null,null,{"$error":"#N/A"}]
[null,null,{"$error":"#N/A"}]
[null,null,{"$error":"#N/A"}]
[null,null,{"$error":"#N/A"}]
[null,null,{"$error":"#N/A"}]
[null,null,{"$error":"#N/A"}]
[null,null,{"$error":"#N/A"}]
[null,null,{"$error":"#N/A"}]
[null,null,{"$error":"#N/A"}]
[null,null,{"$error":"#N/A"}]
[null,null,{"$error":"#N/A"}]
[null,null,{"$error":"#N/A"}]
[null,null,{"$error":"#N/A"}]
[null,null,{"$error":"#N/A"}]
[null,null,{"$error":"#N/A"}]
[null,null,{"$error":"#N/A"}]
[null,null,{"$error":"#N/A"}]
[null,null,{"$error":"#N/A"}]
[null,null,{"$error":"#N/A"}]
[null,null,{"$error":"#N/A"}]
[null,null,{"$error":"#N/A"}]
[null,null,{"$error":"#N/A"}]
[null,null,{"$error":"#N/A"}]
[null,null,{"$error":"#N/A"}]
[null,null,{"$error":"#N/A"}]
[null,null,{"$error":"#N/A"}]
[null,null,{"$error":"#N/A"}]
[null,null,{"$error":"#N/A"}]
[null,null,{"$error":"#N/A"}]
[null,null,{"$error":"#N/A"}]
[null,null,{"$error":"#N/A"}]
[null,null,{"$error":"#N/A"}]
[null,null,{"$error":"#N/A"}]
[null,null,{"$error":"#N/A"}]
[null,null,{"$error":"#N/A"}]
[null,null,{"$error":"#N/A"}]
[null,null,{"$error":"#N/A"}]
[null,null,{"$error":"#N/A"}]
[null,null,{"$error":"#N/A"}]
[null,null,{"$error":"#N/A"}]
[null,null,{"$error":"#N/A"}]
[null,null,{"$error":"#N/A"}]
[null,null,{"$error":"#N/A"}]
[null,null,{"$error":"#N/A"}]
[null,null,{"$error":"#N/A"}]
[null,null,{"$f":"MATCH(B1616,BA$2:BA$13,0)","v":{"$error":"#N/A"}}]
[null,null,{"$error":"#N/A"}]
[null,null,{"$error":"#N/A"}]
[null,null,{"$error":"#N/A"}]
[null,null,{"$error":"#N/A"}]
[null,null,{"$error":"#N/A"}]
[null,null,{"$error":"#N/A"}]
[null,null,{"$error":"#N/A"}]
[null,null,{"$error":"#N/A"}]
[null,null,{"$error":"#N/A"}]
[null,null,{"$error":"#N/A"}]
[null,null,{"$error":"#N/A"}]
[null,null,{"$error":"#N/A"}]
[null,null,{"$error":"#N/A"}]
[null,null,{"$error":"#N/A"}]
[null,null,{"$error":"#N/A"}]
[null,null,{"$error":"#N/A"}]
[null,null,{"$error":"#N/A"}]
[null,null,{"$error":"#N/A"}]
[null,null,{"$error":"#N/A"}]
[null,null,{"$error":"#N/A"}]
[null,null,{"$error":"#N/A"}]
[null,null,{"$error":"#N/A"}]
[null,null,{"$error":"#N/A"}]
[null,null,{"$error":"#N/A"}]
[null,null,{"$error":"#N/A"}]
[null,null,{"$error":"#N/A"}]
[null,null,{"$error":"#N/A"}]
[null,null,{"$error":"#N/A"}]
[null,null,{"$error":"#N/A"}]
[null,null,{"$error":"#N/A"}]
[null,null,{"$error":"#N/A"}]
[null,null,{"$error":"#N/A"}]
[null,null,{"$error":"#N/A"}]
[null,null,{"$error":"#N/A"}]
[null,null,{"$error":"#N/A"}]
[null,null,{"$error":"#N/A"}]
[null,null,{"$error":"#N/A"}]
[null,null,{"$error":"#N/A"}]
[null,null,{"$error":"#N/A"}]
[null,null,{"$error":"#N/A"}]
[null,null,{"$error":"#N/A"}]
[null,null,{"$error":"#N/A"}]
[null,null,{"$error":"#N/A"}]
[null,null,{"$error":"#N/A"}]
[null,null,{"$error":"#N/A"}]
[null,null,{"$error":"#N/A"}]
[null,null,{"$error":"#N/A"}]
[null,null,{"$error":"#N/A"}]
[null,null,{"$error":"#N/A"}]
[null,null,{"$error":"#N/A"}]
[null,null,{"$error":"#N/A"}]
[null,null,{"$error":"#N/A"}]
[null,null,{"$error":"#N/A"}]
[null,null,{"$error":"#N/A"}]
[null,null,{"$error":"#N/A"}]
[null,null,{"$error":"#N/A"}]
[null,null,{"$error":"#N/A"}]
[null,null,{"$error":"#N/A"}]
[null,null,{"$error":"#N/A"}]
[null,null,{"$error":"#N/A"}]
[null,null,{"$error":"#N/A"}]
[null,null,{"$error":"#N/A"}]
[null,null,{"$error":"#N/A"}]
[null,null,{"$f":"MATCH(B1680,BA$2:BA$13,0)","v":{"$error":"#N/A"}}]
[null,null,{"$error":"#N/A"}]
[null,null,{"$error":"#N/A"}]
[null,null,{"$error":"#N/A"}]
[null,null,{"$error":"#N/A"}]
[null,null,{"$error":"#N/A"}]
[null,null,{"$error":"#N/A"}]
[null,null,{"$error":"#N/A"}]
[null,null,{"$error":"#N/A"}]
[null,null,{"$error":"#N/A"}]
[null,null,{"$error":"#N/A"}]
[null,null,{"$error":"#N/A"}]
[null,null,{"$error":"#N/A"}]
[null,null,{"$error":"#N/A"}]
[null,null,{"$error":"#N/A"}]
[null,null,{"$error":"#N/A"}]
[null,null,{"$error":"#N/A"}]
[null,null,{"$error":"#N/A"}]
[null,null,{"$error":"#N/A"}]
[null,null,{"$error":"#N/A"}]
[null,null,{"$error":"#N/A"}]
[null,null,{"$error":"#N/A"}]
[null,null,{"$error":"#N/A"}]
[null,null,{"$error":"#N/A"}]
[null,null,{"$error":"#N/A"}]
[null,null,{"$error":"#N/A"}]
[null,null,{"$error":"#N/A"}]
[null,null,{"$error":"#N/A"}]
[null,null,{"$error":"#N/A"}]
[null,null,{"$error":"#N/A"}]
[null,null,{"$error":"#N/A"}]
[null,null,{"$error":"#N/A"}]
[null,null,{"$error":"#N/A"}]
[null,null,{"$error":"#N/A"}]
[null,null,{"$error":"#N/A"}]
[null,null,{"$error":"#N/A"}]
[null,null,{"$error":"#N/A"}]
[null,null,{"$error":"#N/A"}]
[null,null,{"$error":"#N/A"}]
[null,null,{"$error":"#N/A"}]
[null,null,{"$error":"#N/A"}]
[null,null,{"$error":"#N/A"}]
[null,null,{"$error":"#N/A"}]
[null,null,{"$error":"#N/A"}]
[null,null,{"$error":"#N/A"}]
[null,null,{"$error":"#N/A"}]
[null,null,{"$error":"#N/A"}]
[null,null,{"$error":"#N/A"}]
[null,null,{"$error":"#N/A"}]
[null,null,{"$error":"#N/A"}]
[null,null,{"$error":"#N/A"}]
[null,null,{"$error":"#N/A"}]
[null,null,{"$error":"#N/A"}]
[null,null,{"$error":"#N/A"}]
[null,null,{"$error":"#N/A"}]
[null,null,{"$error":"#N/A"}]
[null,null,{"$error":"#N/A"}]
[null,null,{"$error":"#N/A"}]
[null,null,{"$error":"#N/A"}]
[null,null,{"$error":"#N/A"}]
[null,null,{"$error":"#N/A"}]
[null,null,{"$error":"#N/A"}]
[null,null,{"$error":"#N/A"}]
[null,null,{"$error":"#N/A"}]
[null,null,{"$f":"MATCH(B1744,BA$2:BA$13,0)","v":{"$error":"#N/A"}}]
[null,null,{"$error":"#N/A"}]
[null,null,{"$error":"#N/A"}]
[null,null,{"$error":"#N/A"}]
[null,null,{"$error":"#N/A"}]
[null,null,{"$error":"#N/A"}]
[null,null,{"$error":"#N/A"}]
[null,null,{"$error":"#N/A"}]
[null,null,{"$error":"#N/A"}]
[null,null,{"$error":"#N/A"}]
[null,null,{"$error":"#N/A"}]
[null,null,{"$error":"#N/A"}]
[null,null,{"$error":"#N/A"}]
[null,null,{"$error":"#N/A"}]
[null,null,{"$error":"#N/A"}]
[null,null,{"$error":"#N/A"}]
[null,null,{"$error":"#N/A"}]
[null,null,{"$error":"#N/A"}]
[null,null,{"$error":"#N/A"}]
[null,null,{"$error":"#N/A"}]
[null,null,{"$error":"#N/A"}]
[null,null,{"$error":"#N/A"}]
[null,null,{"$error":"#N/A"}]
[null,null,{"$error":"#N/A"}]
[null,null,{"$error":"#N/A"}]
[null,null,{"$error":"#N/A"}]
[null,null,{"$error":"#N/A"}]
[null,null,{"$error":"#N/A"}]
[null,null,{"$error":"#N/A"}]
[null,null,{"$error":"#N/A"}]
[null,null,{"$error":"#N/A"}]
[null,null,{"$error":"#N/A"}]
[null,null,{"$error":"#N/A"}]
[null,null,{"$error":"#N/A"}]
[null,null,{"$error":"#N/A"}]
[null,null,{"$error":"#N/A"}]
[null,null,{"$error":"#N/A"}]
[null,null,{"$error":"#N/A"}]
[null,null,{"$error":"#N/A"}]
[null,null,{"$error":"#N/A"}]
[null,null,{"$error":"#N/A"}]
[null,null,{"$error":"#N/A"}]
[null,null,{"$error":"#N/A"}]
[null,null,{"$error":"#N/A"}]
[null,null,{"$error":"#N/A"}]
[null,null,{"$error":"#N/A"}]
[null,null,{"$error":"#N/A"}]
[null,null,{"$error":"#N/A"}]
[null,null,{"$error":"#N/A"}]
[null,null,{"$error":"#N/A"}]
[null,null,{"$error":"#N/A"}]
[null,null,{"$error":"#N/A"}]
[null,null,{"$error":"#N/A"}]
[null,null,{"$error":"#N/A"}]
[null,null,{"$error":"#N/A"}]
[null,null,{"$error":"#N/A"}]
[null,null,{"$error":"#N/A"}]
[null,null,{"$error":"#N/A"}]
[null,null,{"$error":"#N/A"}]
[null,null,{"$error":"#N/A"}]
[null,null,{"$error":"#N/A"}]
[null,null,{"$error":"#N/A"}]
[null,null,{"$error":"#N/A"}]
[null,null,{"$error":"#N/A"}]
[null,null,{"$f":"MATCH(B1808,BA$2:BA$13,0)","v":{"$error":"#N/A"}}]
[null,null,{"$error":"#N/A"}]
[null,null,{"$error":"#N/A"}]
[null,null,{"$error":"#N/A"}]
[null,null,{"$error":"#N/A"}]
[null,null,{"$error":"#N/A"}]
[null,null,{"$error":"#N/A"}]
[null,null,{"$error":"#N/A"}]
[null,null,{"$error":"#N/A"}]
[null,null,{"$error":"#N/A"}]
[null,null,{"$error":"#N/A"}]
[null,null,{"$error":"#N/A"}]
[null,null,{"$error":"#N/A"}]
[null,null,{"$error":"#N/A"}]
[null,null,{"$error":"#N/A"}]
[null,null,{"$error":"#N/A"}]
[null,null,{"$error":"#N/A"}]
[null,null,{"$error":"#N/A"}]
[null,null,{"$error":"#N/A"}]
[null,null,{"$error":"#N/A"}]
[null,null,{"$error":"#N/A"}]
[null,null,{"$error":"#N/A"}]
[null,null,{"$error":"#N/A"}]
[null,null,{"$error":"#N/A"}]
[null,null,{"$error":"#N/A"}]
[null,null,{"$error":"#N/A"}]
[null,null,{"$error":"#N/A"}]
[null,null,{"$error":"#N/A"}]
[null,null,{"$error":"#N/A"}]
[null,null,{"$error":"#N/A"}]
[null,null,{"$error":"#N/A"}]
[null,null,{"$error":"#N/A"}]
[null,null,{"$error":"#N/A"}]
[null,null,{"$error":"#N/A"}]
[null,null,{"$error":"#N/A"}]
[null,null,{"$error":"#N/A"}]
[null,null,{"$error":"#N/A"}]
[null,null,{"$error":"#N/A"}]
[null,null,{"$error":"#N/A"}]
[null,null,{"$error":"#N/A"}]
[null,null,{"$error":"#N/A"}]
[null,null,{"$error":"#N/A"}]
[null,null,{"$error":"#N/A"}]
[null,null,{"$error":"#N/A"}]
[null,null,{"$error":"#N/A"}]
[null,null,{"$error":"#N/A"}]
[null,null,{"$error":"#N/A"}]
[null,null,{"$error":"#N/A"}]
[null,null,{"$error":"#N/A"}]
[null,null,{"$error":"#N/A"}]
[null,null,{"$error":"#N/A"}]
[null,null,{"$error":"#N/A"}]
[null,null,{"$error":"#N/A"}]
[null,null,{"$error":"#N/A"}]
[null,null,{"$error":"#N/A"}]
[null,null,{"$error":"#N/A"}]
[null,null,{"$error":"#N/A"}]
[null,null,{"$error":"#N/A"}]
[null,null,{"$error":"#N/A"}]
[null,null,{"$error":"#N/A"}]
[null,null,{"$error":"#N/A"}]
[null,null,{"$error":"#N/A"}]
[null,null,{"$error":"#N/A"}]
[null,null,{"$error":"#N/A"}]
[null,null,{"$f":"MATCH(B1872,BA$2:BA$13,0)","v":{"$error":"#N/A"}}]
[null,null,{"$error":"#N/A"}]
[null,null,{"$error":"#N/A"}]
[null,null,{"$error":"#N/A"}]
[null,null,{"$error":"#N/A"}]
[null,null,{"$error":"#N/A"}]
[null,null,{"$error":"#N/A"}]
[null,null,{"$error":"#N/A"}]
[null,null,{"$error":"#N/A"}]
[null,null,{"$error":"#N/A"}]
[null,null,{"$error":"#N/A"}]
[null,null,{"$error":"#N/A"}]
[null,null,{"$error":"#N/A"}]
[null,null,{"$error":"#N/A"}]
[null,null,{"$error":"#N/A"}]
[null,null,{"$error":"#N/A"}]
[null,null,{"$error":"#N/A"}]
[null,null,{"$error":"#N/A"}]
[null,null,{"$error":"#N/A"}]
[null,null,{"$error":"#N/A"}]
[null,null,{"$error":"#N/A"}]
[null,null,{"$error":"#N/A"}]
[null,null,{"$error":"#N/A"}]
[null,null,{"$error":"#N/A"}]
[null,null,{"$error":"#N/A"}]
[null,null,{"$error":"#N/A"}]
[null,null,{"$error":"#N/A"}]
[null,null,{"$error":"#N/A"}]
[null,null,{"$error":"#N/A"}]
[null,null,{"$error":"#N/A"}]
[null,null,{"$error":"#N/A"}]
[null,null,{"$error":"#N/A"}]
[null,null,{"$error":"#N/A"}]
[null,null,{"$error":"#N/A"}]
[null,null,{"$error":"#N/A"}]
[null,null,{"$error":"#N/A"}]
[null,null,{"$error":"#N/A"}]
[null,null,{"$error":"#N/A"}]
[null,null,{"$error":"#N/A"}]
[null,null,{"$error":"#N/A"}]
[null,null,{"$error":"#N/A"}]
[null,null,{"$error":"#N/A"}]
[null,null,{"$error":"#N/A"}]
[null,null,{"$error":"#N/A"}]
[null,null,{"$error":"#N/A"}]
[null,null,{"$error":"#N/A"}]
[null,null,{"$error":"#N/A"}]
[null,null,{"$error":"#N/A"}]
[null,null,{"$error":"#N/A"}]
[null,null,{"$error":"#N/A"}]
[null,null,{"$error":"#N/A"}]
[null,null,{"$error":"#N/A"}]
[null,null,{"$error":"#N/A"}]
[null,null,{"$error":"#N/A"}]
[null,null,{"$error":"#N/A"}]
[null,null,{"$error":"#N/A"}]
[null,null,{"$error":"#N/A"}]
[null,null,{"$error":"#N/A"}]
[null,null,{"$error":"#N/A"}]
[null,null,{"$error":"#N/A"}]
[null,null,{"$error":"#N/A"}]
[null,null,{"$error":"#N/A"}]
[null,null,{"$error":"#N/A"}]
[null,null,{"$error":"#N/A"}]
[null,null,{"$f":"MATCH(B1936,BA$2:BA$13,0)","v":{"$error":"#N/A"}}]
[null,null,{"$error":"#N/A"}]
[null,null,{"$error":"#N/A"}]
[null,null,{"$error":"#N/A"}]
[null,null,{"$error":"#N/A"}]
[null,null,{"$error":"#N/A"}]
[null,null,{"$error":"#N/A"}]
[null,null,{"$error":"#N/A"}]
[null,null,{"$error":"#N/A"}]
[null,null,{"$error":"#N/A"}]
[null,null,{"$error":"#N/A"}]
[null,null,{"$error":"#N/A"}]
[null,null,{"$error":"#N/A"}]
[null,null,{"$error":"#N/A"}]
[null,null,{"$error":"#N/A"}]
[null,null,{"$error":"#N/A"}]
[null,null,{"$error":"#N/A"}]
[null,null,{"$error":"#N/A"}]
[null,null,{"$error":"#N/A"}]
[null,null,{"$error":"#N/A"}]
[null,null,{"$error":"#N/A"}]
[null,null,{"$error":"#N/A"}]
[null,null,{"$error":"#N/A"}]
[null,null,{"$error":"#N/A"}]
[null,null,{"$error":"#N/A"}]
[null,null,{"$error":"#N/A"}]
[null,null,{"$error":"#N/A"}]
[null,null,{"$error":"#N/A"}]
[null,null,{"$error":"#N/A"}]
[null,null,{"$error":"#N/A"}]
[null,null,{"$error":"#N/A"}]
[null,null,{"$error":"#N/A"}]
[null,null,{"$error":"#N/A"}]
[null,null,{"$error":"#N/A"}]
[null,null,{"$error":"#N/A"}]
[null,null,{"$error":"#N/A"}]
[null,null,{"$error":"#N/A"}]
[null,null,{"$error":"#N/A"}]
[null,null,{"$error":"#N/A"}]
[null,null,{"$error":"#N/A"}]
[null,null,{"$error":"#N/A"}]
[null,null,{"$error":"#N/A"}]
[null,null,{"$error":"#N/A"}]
[null,null,{"$error":"#N/A"}]
[null,null,{"$error":"#N/A"}]
[null,null,{"$error":"#N/A"}]
[null,null,{"$error":"#N/A"}]
[null,null,{"$error":"#N/A"}]
[null,null,{"$error":"#N/A"}]
[null,null,{"$error":"#N/A"}]
[null,null,{"$error":"#N/A"}]
[null,null,{"$error":"#N/A"}]
[null,null,{"$error":"#N/A"}]
[null,null,{"$error":"#N/A"}]
[null,null,{"$error":"#N/A"}]
[null,null,{"$error":"#N/A"}]
[null,null,{"$error":"#N/A"}]
[null,null,{"$error":"#N/A"}]
[null,null,{"$error":"#N/A"}]
[null,null,{"$error":"#N/A"}]
[null,null,{"$error":"#N/A"}]
[null,null,{"$error":"#N/A"}]
[null,null,{"$error":"#N/A"}]
[null,null,{"$error":"#N/A"}]
[null,null,{"$f":"MATCH(B2000,BA$2:BA$13,0)","v":{"$error":"#N/A"}}]
[null,null,{"$error":"#N/A"}]
[null,null,{"$error":"#N/A"}]
[null,null,{"$error":"#N/A"}]
[null,null,{"$error":"#N/A"}]
[null,null,{"$error":"#N/A"}]
[null,null,{"$error":"#N/A"}]
[null,null,{"$error":"#N/A"}]
[null,null,{"$error":"#N/A"}]
[null,null,{"$error":"#N/A"}]
[null,null,{"$error":"#N/A"}]
[null,null,{"$error":"#N/A"}]
[null,null,{"$error":"#N/A"}]
[null,null,{"$error":"#N/A"}]
[null,null,{"$error":"#N/A"}]
[null,null,{"$error":"#N/A"}]
[null,null,{"$error":"#N/A"}]
[null,null,{"$error":"#N/A"}]
[null,null,{"$error":"#N/A"}]
[null,null,{"$error":"#N/A"}]
[null,null,{"$error":"#N/A"}]
[null,null,{"$error":"#N/A"}]
[null,null,{"$error":"#N/A"}]
[null,null,{"$error":"#N/A"}]
[null,null,{"$error":"#N/A"}]
[null,null,{"$error":"#N/A"}]
[null,null,{"$error":"#N/A"}]
[null,null,{"$error":"#N/A"}]
[null,null,{"$error":"#N/A"}]
[null,null,{"$error":"#N/A"}]
[null,null,{"$error":"#N/A"}]
[null,null,{"$error":"#N/A"}]
[null,null,{"$error":"#N/A"}]
[null,null,{"$error":"#N/A"}]
[null,null,{"$error":"#N/A"}]
[null,null,{"$error":"#N/A"}]
[null,null,{"$error":"#N/A"}]
[null,null,{"$error":"#N/A"}]
[null,null,{"$error":"#N/A"}]
[null,null,{"$error":"#N/A"}]
[null,null,{"$error":"#N/A"}]
[null,null,{"$error":"#N/A"}]
[null,null,{"$error":"#N/A"}]
[null,null,{"$error":"#N/A"}]
[null,null,{"$error":"#N/A"}]
[null,null,{"$error":"#N/A"}]
[null,null,{"$error":"#N/A"}]
[null,null,{"$error":"#N/A"}]
[null,null,{"$error":"#N/A"}]
[null,null,{"$error":"#N/A"}]
[null,null,{"$error":"#N/A"}]
[null,null,{"$error":"#N/A"}]
[null,null,{"$error":"#N/A"}]
[null,null,{"$error":"#N/A"}]
[null,null,{"$error":"#N/A"}]
[null,null,{"$error":"#N/A"}]
[null,null,{"$error":"#N/A"}]
[null,null,{"$error":"#N/A"}]
[null,null,{"$error":"#N/A"}]
[null,null,{"$error":"#N/A"}]
[null,null,{"$error":"#N/A"}]
[null,null,{"$error":"#N/A"}]
[null,null,{"$error":"#N/A"}]
[null,null,{"$error":"#N/A"}]
[null,null,{"$f":"MATCH(B2064,BA$2:BA$13,0)","v":{"$error":"#N/A"}}]
[null,null,{"$error":"#N/A"}]
[null,null,{"$error":"#N/A"}]
[null,null,{"$error":"#N/A"}]
[null,null,{"$error":"#N/A"}]
[null,null,{"$error":"#N/A"}]
[null,null,{"$error":"#N/A"}]
[null,null,{"$error":"#N/A"}]
[null,null,{"$error":"#N/A"}]
[null,null,{"$error":"#N/A"}]
[null,null,{"$error":"#N/A"}]
[null,null,{"$error":"#N/A"}]
[null,null,{"$error":"#N/A"}]
[null,null,{"$error":"#N/A"}]
[null,null,{"$error":"#N/A"}]
[null,null,{"$error":"#N/A"}]
[null,null,{"$error":"#N/A"}]
[null,null,{"$error":"#N/A"}]
[null,null,{"$error":"#N/A"}]
[null,null,{"$error":"#N/A"}]
[null,null,{"$error":"#N/A"}]
[null,null,{"$error":"#N/A"}]
[null,null,{"$error":"#N/A"}]
[null,null,{"$error":"#N/A"}]
[null,null,{"$error":"#N/A"}]
[null,null,{"$error":"#N/A"}]
[null,null,{"$error":"#N/A"}]
[null,null,{"$error":"#N/A"}]
[null,null,{"$error":"#N/A"}]
[null,null,{"$error":"#N/A"}]
[null,null,{"$error":"#N/A"}]
[null,null,{"$error":"#N/A"}]
[null,null,{"$error":"#N/A"}]
[null,null,{"$error":"#N/A"}]
[null,null,{"$error":"#N/A"}]
[null,null,{"$error":"#N/A"}]
[null,null,{"$error":"#N/A"}]
[null,null,{"$error":"#N/A"}]
[null,null,{"$error":"#N/A"}]
[null,null,{"$error":"#N/A"}]
[null,null,{"$error":"#N/A"}]
[null,null,{"$error":"#N/A"}]
[null,null,{"$error":"#N/A"}]
[null,null,{"$error":"#N/A"}]
[null,null,{"$error":"#N/A"}]
[null,null,{"$error":"#N/A"}]
[null,null,{"$error":"#N/A"}]
[null,null,{"$error":"#N/A"}]
[null,null,{"$error":"#N/A"}]
[null,null,{"$error":"#N/A"}]
[null,null,{"$error":"#N/A"}]
[null,null,{"$error":"#N/A"}]
[null,null,{"$error":"#N/A"}]
[null,null,{"$error":"#N/A"}]
[null,null,{"$error":"#N/A"}]
[null,null,{"$error":"#N/A"}]
[null,null,{"$error":"#N/A"}]
[null,null,{"$error":"#N/A"}]
[null,null,{"$error":"#N/A"}]
[null,null,{"$error":"#N/A"}]
[null,null,{"$error":"#N/A"}]
[null,null,{"$error":"#N/A"}]
[null,null,{"$error":"#N/A"}]
[null,null,{"$error":"#N/A"}]
[null,null,{"$f":"MATCH(B2128,BA$2:BA$13,0)","v":{"$error":"#N/A"}}]
[null,null,{"$error":"#N/A"}]
[null,null,{"$error":"#N/A"}]
[null,null,{"$error":"#N/A"}]
[null,null,{"$error":"#N/A"}]
[null,null,{"$error":"#N/A"}]
[null,null,{"$error":"#N/A"}]
[null,null,{"$error":"#N/A"}]
[null,null,{"$error":"#N/A"}]
[null,null,{"$error":"#N/A"}]
[null,null,{"$error":"#N/A"}]
[null,null,{"$error":"#N/A"}]
[null,null,{"$error":"#N/A"}]
[null,null,{"$error":"#N/A"}]
[null,null,{"$error":"#N/A"}]
[null,null,{"$error":"#N/A"}]
[null,null,{"$error":"#N/A"}]
[null,null,{"$error":"#N/A"}]
[null,null,{"$error":"#N/A"}]
[null,null,{"$error":"#N/A"}]
[null,null,{"$error":"#N/A"}]
[null,null,{"$error":"#N/A"}]
[null,null,{"$error":"#N/A"}]
[null,null,{"$error":"#N/A"}]
[null,null,{"$error":"#N/A"}]
[null,null,{"$error":"#N/A"}]
[null,null,{"$error":"#N/A"}]
[null,null,{"$error":"#N/A"}]
[null,null,{"$error":"#N/A"}]
[null,null,{"$error":"#N/A"}]
[null,null,{"$error":"#N/A"}]
[null,null,{"$error":"#N/A"}]
[null,null,{"$error":"#N/A"}]
[null,null,{"$error":"#N/A"}]
[null,null,{"$error":"#N/A"}]
[null,null,{"$error":"#N/A"}]
[null,null,{"$error":"#N/A"}]
[null,null,{"$error":"#N/A"}]
[null,null,{"$error":"#N/A"}]
[null,null,{"$error":"#N/A"}]
[null,null,{"$error":"#N/A"}]
[null,null,{"$error":"#N/A"}]
[null,null,{"$error":"#N/A"}]
[null,null,{"$error":"#N/A"}]
[null,null,{"$error":"#N/A"}]
[null,null,{"$error":"#N/A"}]
[null,null,{"$error":"#N/A"}]
[null,null,{"$error":"#N/A"}]
[null,null,{"$error":"#N/A"}]
[null,null,{"$error":"#N/A"}]
[null,null,{"$error":"#N/A"}]
[null,null,{"$error":"#N/A"}]
[null,null,{"$error":"#N/A"}]
[null,null,{"$error":"#N/A"}]
[null,null,{"$error":"#N/A"}]
[null,null,{"$error":"#N/A"}]
[null,null,{"$error":"#N/A"}]
[null,null,{"$error":"#N/A"}]
[null,null,{"$error":"#N/A"}]
[null,null,{"$error":"#N/A"}]
[null,null,{"$error":"#N/A"}]
[null,null,{"$error":"#N/A"}]
[null,null,{"$error":"#N/A"}]
[null,null,{"$error":"#N/A"}]
[null,null,{"$f":"MATCH(B2192,BA$2:BA$13,0)","v":{"$error":"#N/A"}}]
[null,null,{"$error":"#N/A"}]
[null,null,{"$error":"#N/A"}]
[null,null,{"$error":"#N/A"}]
[null,null,{"$error":"#N/A"}]
[null,null,{"$error":"#N/A"}]
[null,null,{"$error":"#N/A"}]
[null,null,{"$error":"#N/A"}]
[null,null,{"$error":"#N/A"}]
[null,null,{"$error":"#N/A"}]
[null,null,{"$error":"#N/A"}]
[null,null,{"$error":"#N/A"}]
[null,null,{"$error":"#N/A"}]
[null,null,{"$error":"#N/A"}]
[null,null,{"$error":"#N/A"}]
[null,null,{"$error":"#N/A"}]
[null,null,{"$error":"#N/A"}]
[null,null,{"$error":"#N/A"}]
[null,null,{"$error":"#N/A"}]
[null,null,{"$error":"#N/A"}]
[null,null,{"$error":"#N/A"}]
[null,null,{"$error":"#N/A"}]
[null,null,{"$error":"#N/A"}]
[null,null,{"$error":"#N/A"}]
[null,null,{"$error":"#N/A"}]
[null,null,{"$error":"#N/A"}]
[null,null,{"$error":"#N/A"}]
[null,null,{"$error":"#N/A"}]
[null,null,{"$error":"#N/A"}]
[null,null,{"$error":"#N/A"}]
[null,null,{"$error":"#N/A"}]
[null,null,{"$error":"#N/A"}]
[null,null,{"$error":"#N/A"}]
[null,null,{"$error":"#N/A"}]
[null,null,{"$error":"#N/A"}]
[null,null,{"$error":"#N/A"}]
[null,null,{"$error":"#N/A"}]
[null,null,{"$error":"#N/A"}]
[null,null,{"$error":"#N/A"}]
[null,null,{"$error":"#N/A"}]
[null,null,{"$error":"#N/A"}]
[null,null,{"$error":"#N/A"}]
[null,null,{"$error":"#N/A"}]
[null,null,{"$error":"#N/A"}]
[null,null,{"$error":"#N/A"}]
[null,null,{"$error":"#N/A"}]
[null,null,{"$error":"#N/A"}]
[null,null,{"$error":"#N/A"}]
[null,null,{"$error":"#N/A"}]
[null,null,{"$error":"#N/A"}]
[null,null,{"$error":"#N/A"}]
[null,null,{"$error":"#N/A"}]
[null,null,{"$error":"#N/A"}]
[null,null,{"$error":"#N/A"}]
[null,null,{"$error":"#N/A"}]
[null,null,{"$error":"#N/A"}]
[null,null,{"$error":"#N/A"}]
[null,null,{"$error":"#N/A"}]
[null,null,{"$error":"#N/A"}]
[null,null,{"$error":"#N/A"}]
[null,null,{"$error":"#N/A"}]
[null,null,{"$error":"#N/A"}]
[null,null,{"$error":"#N/A"}]
[null,null,{"$error":"#N/A"}]
[null,null,{"$f":"MATCH(B2256,BA$2:BA$13,0)","v":{"$error":"#N/A"}}]
[null,null,{"$error":"#N/A"}]
[null,null,{"$error":"#N/A"}]
[null,null,{"$error":"#N/A"}]
[null,null,{"$error":"#N/A"}]
[null,null,{"$error":"#N/A"}]
[null,null,{"$error":"#N/A"}]
[null,null,{"$error":"#N/A"}]
[null,null,{"$error":"#N/A"}]
[null,null,{"$error":"#N/A"}]
[null,null,{"$error":"#N/A"}]
[null,null,{"$error":"#N/A"}]
[null,null,{"$error":"#N/A"}]
[null,null,{"$error":"#N/A"}]
[null,null,{"$error":"#N/A"}]
[null,null,{"$error":"#N/A"}]
[null,null,{"$error":"#N/A"}]
[null,null,{"$error":"#N/A"}]
[null,null,{"$error":"#N/A"}]
[null,null,{"$error":"#N/A"}]
[null,null,{"$error":"#N/A"}]
[null,null,{"$error":"#N/A"}]
[null,null,{"$error":"#N/A"}]
[null,null,{"$error":"#N/A"}]
[null,null,{"$error":"#N/A"}]
[null,null,{"$error":"#N/A"}]
[null,null,{"$error":"#N/A"}]
[null,null,{"$error":"#N/A"}]
[null,null,{"$error":"#N/A"}]
[null,null,{"$error":"#N/A"}]
[null,null,{"$error":"#N/A"}]
[null,null,{"$error":"#N/A"}]
[null,null,{"$error":"#N/A"}]
[null,null,{"$error":"#N/A"}]
[null,null,{"$error":"#N/A"}]
[null,null,{"$error":"#N/A"}]
[null,null,{"$error":"#N/A"}]
[null,null,{"$error":"#N/A"}]
[null,null,{"$error":"#N/A"}]
[null,null,{"$error":"#N/A"}]
[null,null,{"$error":"#N/A"}]
[null,null,{"$error":"#N/A"}]
[null,null,{"$error":"#N/A"}]
[null,null,{"$error":"#N/A"}]
[null,null,{"$error":"#N/A"}]
[null,null,{"$error":"#N/A"}]
[null,null,{"$error":"#N/A"}]
[null,null,{"$error":"#N/A"}]
[null,null,{"$error":"#N/A"}]
[null,null,{"$error":"#N/A"}]
[null,null,{"$error":"#N/A"}]
[null,null,{"$error":"#N/A"}]
[null,null,{"$error":"#N/A"}]
[null,null,{"$error":"#N/A"}]
[null,null,{"$error":"#N/A"}]
[null,null,{"$error":"#N/A"}]
[null,null,{"$error":"#N/A"}]
[null,null,{"$error":"#N/A"}]
[null,null,{"$error":"#N/A"}]
[null,null,{"$error":"#N/A"}]
[null,null,{"$error":"#N/A"}]
[null,null,{"$error":"#N/A"}]
[null,null,{"$error":"#N/A"}]
[null,null,{"$error":"#N/A"}]
[null,null,{"$f":"MATCH(B2320,BA$2:BA$13,0)","v":{"$error":"#N/A"}}]
[null,null,{"$error":"#N/A"}]
[null,null,{"$error":"#N/A"}]
[null,null,{"$error":"#N/A"}]
[null,null,{"$error":"#N/A"}]
[null,null,{"$error":"#N/A"}]
[null,null,{"$error":"#N/A"}]
[null,null,{"$error":"#N/A"}]
[null,null,{"$error":"#N/A"}]
[null,null,{"$error":"#N/A"}]
[null,null,{"$error":"#N/A"}]
[null,null,{"$error":"#N/A"}]
[null,null,{"$error":"#N/A"}]
[null,null,{"$error":"#N/A"}]
[null,null,{"$error":"#N/A"}]
[null,null,{"$error":"#N/A"}]
[null,null,{"$error":"#N/A"}]
[null,null,{"$error":"#N/A"}]
[null,null,{"$error":"#N/A"}]
[null,null,{"$error":"#N/A"}]
[null,null,{"$error":"#N/A"}]
[null,null,{"$error":"#N/A"}]
[null,null,{"$error":"#N/A"}]
[null,null,{"$error":"#N/A"}]
[null,null,{"$error":"#N/A"}]
[null,null,{"$error":"#N/A"}]
[null,null,{"$error":"#N/A"}]
[null,null,{"$error":"#N/A"}]
[null,null,{"$error":"#N/A"}]
[null,null,{"$error":"#N/A"}]
[null,null,{"$error":"#N/A"}]
[null,null,{"$error":"#N/A"}]
[null,null,{"$error":"#N/A"}]
[null,null,{"$error":"#N/A"}]
[null,null,{"$error":"#N/A"}]
[null,null,{"$error":"#N/A"}]
[null,null,{"$error":"#N/A"}]
[null,null,{"$error":"#N/A"}]
[null,null,{"$error":"#N/A"}]
[null,null,{"$error":"#N/A"}]
[null,null,{"$error":"#N/A"}]
[null,null,{"$error":"#N/A"}]
[null,null,{"$error":"#N/A"}]
[null,null,{"$error":"#N/A"}]
[null,null,{"$error":"#N/A"}]
[null,null,{"$error":"#N/A"}]
[null,null,{"$error":"#N/A"}]
[null,null,{"$error":"#N/A"}]
[null,null,{"$error":"#N/A"}]
[null,null,{"$error":"#N/A"}]
[null,null,{"$error":"#N/A"}]
[null,null,{"$error":"#N/A"}]
[null,null,{"$error":"#N/A"}]
[null,null,{"$error":"#N/A"}]
[null,null,{"$error":"#N/A"}]
[null,null,{"$error":"#N/A"}]
[null,null,{"$error":"#N/A"}]
[null,null,{"$error":"#N/A"}]
[null,null,{"$error":"#N/A"}]
[null,null,{"$error":"#N/A"}]
[null,null,{"$error":"#N/A"}]
[null,null,{"$error":"#N/A"}]
[null,null,{"$error":"#N/A"}]
[null,null,{"$error":"#N/A"}]
[null,null,{"$f":"MATCH(B2384,BA$2:BA$13,0)","v":{"$error":"#N/A"}}]
[null,null,{"$error":"#N/A"}]
[null,null,{"$error":"#N/A"}]
[null,null,{"$error":"#N/A"}]
[null,null,{"$error":"#N/A"}]
[null,null,{"$error":"#N/A"}]
[null,null,{"$error":"#N/A"}]
[null,null,{"$error":"#N/A"}]
[null,null,{"$error":"#N/A"}]
[null,null,{"$error":"#N/A"}]
[null,null,{"$error":"#N/A"}]
[null,null,{"$error":"#N/A"}]
[null,null,{"$error":"#N/A"}]
[null,null,{"$error":"#N/A"}]
[null,null,{"$error":"#N/A"}]
[null,null,{"$error":"#N/A"}]
[null,null,{"$error":"#N/A"}]
[null,null,{"$error":"#N/A"}]
[null,null,{"$error":"#N/A"}]
[null,null,{"$error":"#N/A"}]
[null,null,{"$error":"#N/A"}]
[null,null,{"$error":"#N/A"}]
[null,null,{"$error":"#N/A"}]
[null,null,{"$error":"#N/A"}]
[null,null,{"$error":"#N/A"}]
[null,null,{"$error":"#N/A"}]
[null,null,{"$error":"#N/A"}]
[null,null,{"$error":"#N/A"}]
[null,null,{"$error":"#N/A"}]
[null,null,{"$error":"#N/A"}]
[null,null,{"$error":"#N/A"}]
[null,null,{"$error":"#N/A"}]
[null,null,{"$error":"#N/A"}]
[null,null,{"$error":"#N/A"}]
[null,null,{"$error":"#N/A"}]
[null,null,{"$error":"#N/A"}]
[null,null,{"$error":"#N/A"}]
[null,null,{"$error":"#N/A"}]
[null,null,{"$error":"#N/A"}]
[null,null,{"$error":"#N/A"}]
[null,null,{"$error":"#N/A"}]
[null,null,{"$error":"#N/A"}]
[null,null,{"$error":"#N/A"}]
[null,null,{"$error":"#N/A"}]
[null,null,{"$error":"#N/A"}]
[null,null,{"$error":"#N/A"}]
[null,null,{"$error":"#N/A"}]
[null,null,{"$error":"#N/A"}]
[null,null,{"$error":"#N/A"}]
[null,null,{"$error":"#N/A"}]
[null,null,{"$error":"#N/A"}]
[null,null,{"$error":"#N/A"}]
[null,null,{"$error":"#N/A"}]
[null,null,{"$error":"#N/A"}]
[null,null,{"$error":"#N/A"}]
[null,null,{"$error":"#N/A"}]
[null,null,{"$error":"#N/A"}]
[null,null,{"$error":"#N/A"}]
[null,null,{"$error":"#N/A"}]
[null,null,{"$error":"#N/A"}]
[null,null,{"$error":"#N/A"}]
[null,null,{"$error":"#N/A"}]
[null,null,{"$error":"#N/A"}]
[null,null,{"$error":"#N/A"}]
[null,null,{"$f":"MATCH(B2448,BA$2:BA$13,0)","v":{"$error":"#N/A"}}]
[null,null,{"$error":"#N/A"}]
[null,null,{"$error":"#N/A"}]
[null,null,{"$error":"#N/A"}]
[null,null,{"$error":"#N/A"}]
[null,null,{"$error":"#N/A"}]
[null,null,{"$error":"#N/A"}]
[null,null,{"$error":"#N/A"}]
[null,null,{"$error":"#N/A"}]
[null,null,{"$error":"#N/A"}]
[null,null,{"$error":"#N/A"}]
[null,null,{"$error":"#N/A"}]
[null,null,{"$error":"#N/A"}]
[null,null,{"$error":"#N/A"}]
[null,null,{"$error":"#N/A"}]
[null,null,{"$error":"#N/A"}]
[null,null,{"$error":"#N/A"}]
[null,null,{"$error":"#N/A"}]
[null,null,{"$error":"#N/A"}]
[null,null,{"$error":"#N/A"}]
[null,null,{"$error":"#N/A"}]
[null,null,{"$error":"#N/A"}]
[null,null,{"$error":"#N/A"}]
[null,null,{"$error":"#N/A"}]
[null,null,{"$error":"#N/A"}]
[null,null,{"$error":"#N/A"}]
[null,null,{"$error":"#N/A"}]
[null,null,{"$error":"#N/A"}]
[null,null,{"$error":"#N/A"}]
[null,null,{"$error":"#N/A"}]
[null,null,{"$error":"#N/A"}]
[null,null,{"$error":"#N/A"}]
[null,null,{"$error":"#N/A"}]
[null,null,{"$error":"#N/A"}]
[null,null,{"$error":"#N/A"}]
[null,null,{"$error":"#N/A"}]
[null,null,{"$error":"#N/A"}]
[null,null,{"$error":"#N/A"}]
[null,null,{"$error":"#N/A"}]
[null,null,{"$error":"#N/A"}]
[null,null,{"$error":"#N/A"}]
[null,null,{"$error":"#N/A"}]
[null,null,{"$error":"#N/A"}]
[null,null,{"$error":"#N/A"}]
[null,null,{"$error":"#N/A"}]
[null,null,{"$error":"#N/A"}]
[null,null,{"$error":"#N/A"}]
[null,null,{"$error":"#N/A"}]
[null,null,{"$error":"#N/A"}]
[null,null,{"$error":"#N/A"}]
[null,null,{"$error":"#N/A"}]
[null,null,{"$error":"#N/A"}]
[null,null,{"$error":"#N/A"}]
[null,null,{"$error":"#N/A"}]
[null,null,{"$error":"#N/A"}]
[null,null,{"$error":"#N/A"}]
[null,null,{"$error":"#N/A"}]
[null,null,{"$error":"#N/A"}]
[null,null,{"$error":"#N/A"}]
[null,null,{"$error":"#N/A"}]
[null,null,{"$error":"#N/A"}]
[null,null,{"$error":"#N/A"}]
[null,null,{"$error":"#N/A"}]
[null,null,{"$error":"#N/A"}]
[null,null,{"$f":"MATCH(B2512,BA$2:BA$13,0)","v":{"$error":"#N/A"}}]
[null,null,{"$error":"#N/A"}]
[null,null,{"$error":"#N/A"}]
[null,null,{"$error":"#N/A"}]
[null,null,{"$error":"#N/A"}]
[null,null,{"$error":"#N/A"}]
[null,null,{"$error":"#N/A"}]
[null,null,{"$error":"#N/A"}]
[null,null,{"$error":"#N/A"}]
[null,null,{"$error":"#N/A"}]
[null,null,{"$error":"#N/A"}]
[null,null,{"$error":"#N/A"}]
[null,null,{"$error":"#N/A"}]
[null,null,{"$error":"#N/A"}]
[null,null,{"$error":"#N/A"}]
[null,null,{"$error":"#N/A"}]
[null,null,{"$error":"#N/A"}]
[null,null,{"$error":"#N/A"}]
[null,null,{"$error":"#N/A"}]
[null,null,{"$error":"#N/A"}]
[null,null,{"$error":"#N/A"}]
[null,null,{"$error":"#N/A"}]
[null,null,{"$error":"#N/A"}]
[null,null,{"$error":"#N/A"}]
[null,null,{"$error":"#N/A"}]
[null,null,{"$error":"#N/A"}]
[null,null,{"$error":"#N/A"}]
[null,null,{"$error":"#N/A"}]
[null,null,{"$error":"#N/A"}]
[null,null,{"$error":"#N/A"}]
[null,null,{"$error":"#N/A"}]
[null,null,{"$error":"#N/A"}]
[null,null,{"$error":"#N/A"}]
[null,null,{"$error":"#N/A"}]
[null,null,{"$error":"#N/A"}]
[null,null,{"$error":"#N/A"}]
[null,null,{"$error":"#N/A"}]
[null,null,{"$error":"#N/A"}]
[null,null,{"$error":"#N/A"}]
[null,null,{"$error":"#N/A"}]
[null,null,{"$error":"#N/A"}]
[null,null,{"$error":"#N/A"}]
[null,null,{"$error":"#N/A"}]
[null,null,{"$error":"#N/A"}]
[null,null,{"$error":"#N/A"}]
[null,null,{"$error":"#N/A"}]
[null,null,{"$error":"#N/A"}]
[null,null,{"$error":"#N/A"}]
[null,null,{"$error":"#N/A"}]
[null,null,{"$error":"#N/A"}]
[null,null,{"$error":"#N/A"}]
[null,null,{"$error":"#N/A"}]
[null,null,{"$error":"#N/A"}]
[null,null,{"$error":"#N/A"}]
[null,null,{"$error":"#N/A"}]
[null,null,{"$error":"#N/A"}]
[null,null,{"$error":"#N/A"}]
[null,null,{"$error":"#N/A"}]
[null,null,{"$error":"#N/A"}]
[null,null,{"$error":"#N/A"}]
[null,null,{"$error":"#N/A"}]
[null,null,{"$error":"#N/A"}]
[null,null,{"$error":"#N/A"}]
[null,null,{"$error":"#N/A"}]
[null,null,{"$f":"MATCH(B2576,BA$2:BA$13,0)","v":{"$error":"#N/A"}}]
[null,null,{"$error":"#N/A"}]
[null,null,{"$error":"#N/A"}]
[null,null,{"$error":"#N/A"}]
[null,null,{"$error":"#N/A"}]
[null,null,{"$error":"#N/A"}]
[null,null,{"$error":"#N/A"}]
[null,null,{"$error":"#N/A"}]
[null,null,{"$error":"#N/A"}]
[null,null,{"$error":"#N/A"}]
[null,null,{"$error":"#N/A"}]
[null,null,{"$error":"#N/A"}]
[null,null,{"$error":"#N/A"}]
[null,null,{"$error":"#N/A"}]
[null,null,{"$error":"#N/A"}]
[null,null,{"$error":"#N/A"}]
[null,null,{"$error":"#N/A"}]
[null,null,{"$error":"#N/A"}]
[null,null,{"$error":"#N/A"}]
[null,null,{"$error":"#N/A"}]
[null,null,{"$error":"#N/A"}]
[null,null,{"$error":"#N/A"}]
[null,null,{"$error":"#N/A"}]
[null,null,{"$error":"#N/A"}]
[null,null,{"$error":"#N/A"}]
[null,null,{"$error":"#N/A"}]
[null,null,{"$error":"#N/A"}]
[null,null,{"$error":"#N/A"}]
[null,null,{"$error":"#N/A"}]
[null,null,{"$error":"#N/A"}]
[null,null,{"$error":"#N/A"}]
[null,null,{"$error":"#N/A"}]
[null,null,{"$error":"#N/A"}]
[null,null,{"$error":"#N/A"}]
[null,null,{"$error":"#N/A"}]
[null,null,{"$error":"#N/A"}]
[null,null,{"$error":"#N/A"}]
[null,null,{"$error":"#N/A"}]
[null,null,{"$error":"#N/A"}]
[null,null,{"$error":"#N/A"}]
[null,null,{"$error":"#N/A"}]
[null,null,{"$error":"#N/A"}]
[null,null,{"$error":"#N/A"}]
[null,null,{"$error":"#N/A"}]
[null,null,{"$error":"#N/A"}]
[null,null,{"$error":"#N/A"}]
[null,null,{"$error":"#N/A"}]
[null,null,{"$error":"#N/A"}]
[null,null,{"$error":"#N/A"}]
[null,null,{"$error":"#N/A"}]
[null,null,{"$error":"#N/A"}]
[null,null,{"$error":"#N/A"}]
[null,null,{"$error":"#N/A"}]
[null,null,{"$error":"#N/A"}]
[null,null,{"$error":"#N/A"}]
[null,null,{"$error":"#N/A"}]
[null,null,{"$error":"#N/A"}]
[null,null,{"$error":"#N/A"}]
[null,null,{"$error":"#N/A"}]
[null,null,{"$error":"#N/A"}]
[null,null,{"$error":"#N/A"}]
[null,null,{"$error":"#N/A"}]
[null,null,{"$error":"#N/A"}]
[null,null,{"$error":"#N/A"}]
[null,null,{"$f":"MATCH(B2640,BA$2:BA$13,0)","v":{"$error":"#N/A"}}]
[null,null,{"$error":"#N/A"}]
[null,null,{"$error":"#N/A"}]
[null,null,{"$error":"#N/A"}]
[null,null,{"$error":"#N/A"}]
[null,null,{"$error":"#N/A"}]
[null,null,{"$error":"#N/A"}]
[null,null,{"$error":"#N/A"}]
[null,null,{"$error":"#N/A"}]
[null,null,{"$error":"#N/A"}]
[null,null,{"$error":"#N/A"}]
[null,null,{"$error":"#N/A"}]
[null,null,{"$error":"#N/A"}]
[null,null,{"$error":"#N/A"}]
[null,null,{"$error":"#N/A"}]
[null,null,{"$error":"#N/A"}]
[null,null,{"$error":"#N/A"}]
[null,null,{"$error":"#N/A"}]
[null,null,{"$error":"#N/A"}]
[null,null,{"$error":"#N/A"}]
[null,null,{"$error":"#N/A"}]
[null,null,{"$error":"#N/A"}]
[null,null,{"$error":"#N/A"}]
[null,null,{"$error":"#N/A"}]
[null,null,{"$error":"#N/A"}]
[null,null,{"$error":"#N/A"}]
[null,null,{"$error":"#N/A"}]
[null,null,{"$error":"#N/A"}]
[null,null,{"$error":"#N/A"}]
[null,null,{"$error":"#N/A"}]
[null,null,{"$error":"#N/A"}]
[null,null,{"$error":"#N/A"}]
[null,null,{"$error":"#N/A"}]
[null,null,{"$error":"#N/A"}]
[null,null,{"$error":"#N/A"}]
[null,null,{"$error":"#N/A"}]
[null,null,{"$error":"#N/A"}]
[null,null,{"$error":"#N/A"}]
[null,null,{"$error":"#N/A"}]
[null,null,{"$error":"#N/A"}]
[null,null,{"$error":"#N/A"}]
[null,null,{"$error":"#N/A"}]
[null,null,{"$error":"#N/A"}]
[null,null,{"$error":"#N/A"}]
[null,null,{"$error":"#N/A"}]
[null,null,{"$error":"#N/A"}]
[null,null,{"$error":"#N/A"}]
[null,null,{"$error":"#N/A"}]
[null,null,{"$error":"#N/A"}]
[null,null,{"$error":"#N/A"}]
[null,null,{"$error":"#N/A"}]
[null,null,{"$error":"#N/A"}]
[null,null,{"$error":"#N/A"}]
[null,null,{"$error":"#N/A"}]
[null,null,{"$error":"#N/A"}]
[null,null,{"$error":"#N/A"}]
[null,null,{"$error":"#N/A"}]
[null,null,{"$error":"#N/A"}]
[null,null,{"$error":"#N/A"}]
[null,null,{"$error":"#N/A"}]
[null,null,{"$error":"#N/A"}]
[null,null,{"$error":"#N/A"}]
[null,null,{"$error":"#N/A"}]
[null,null,{"$error":"#N/A"}]
[null,null,{"$f":"MATCH(B2704,BA$2:BA$13,0)","v":{"$error":"#N/A"}}]
[null,null,{"$error":"#N/A"}]
[null,null,{"$error":"#N/A"}]
[null,null,{"$error":"#N/A"}]
[null,null,{"$error":"#N/A"}]
[null,null,{"$error":"#N/A"}]
[null,null,{"$error":"#N/A"}]
[null,null,{"$error":"#N/A"}]
[null,null,{"$error":"#N/A"}]
[null,null,{"$error":"#N/A"}]
[null,null,{"$error":"#N/A"}]
[null,null,{"$error":"#N/A"}]
[null,null,{"$error":"#N/A"}]
[null,null,{"$error":"#N/A"}]
[null,null,{"$error":"#N/A"}]
[null,null,{"$error":"#N/A"}]
[null,null,{"$error":"#N/A"}]
[null,null,{"$error":"#N/A"}]
[null,null,{"$error":"#N/A"}]
[null,null,{"$error":"#N/A"}]
[null,null,{"$error":"#N/A"}]
[null,null,{"$error":"#N/A"}]
[null,null,{"$error":"#N/A"}]
[null,null,{"$error":"#N/A"}]
[null,null,{"$error":"#N/A"}]
[null,null,{"$error":"#N/A"}]
[null,null,{"$error":"#N/A"}]
[null,null,{"$error":"#N/A"}]
[null,null,{"$error":"#N/A"}]
[null,null,{"$error":"#N/A"}]
[null,null,{"$error":"#N/A"}]
[null,null,{"$error":"#N/A"}]
[null,null,{"$error":"#N/A"}]
[null,null,{"$error":"#N/A"}]
[null,null,{"$error":"#N/A"}]
[null,null,{"$error":"#N/A"}]
[null,null,{"$error":"#N/A"}]
[null,null,{"$error":"#N/A"}]
[null,null,{"$error":"#N/A"}]
[null,null,{"$error":"#N/A"}]
[null,null,{"$error":"#N/A"}]
[null,null,{"$error":"#N/A"}]
[null,null,{"$error":"#N/A"}]
[null,null,{"$error":"#N/A"}]
[null,null,{"$error":"#N/A"}]
[null,null,{"$error":"#N/A"}]
[null,null,{"$error":"#N/A"}]
[null,null,{"$error":"#N/A"}]
[null,null,{"$error":"#N/A"}]
[null,null,{"$error":"#N/A"}]
[null,null,{"$error":"#N/A"}]
[null,null,{"$error":"#N/A"}]
[null,null,{"$error":"#N/A"}]
[null,null,{"$error":"#N/A"}]
[null,null,{"$error":"#N/A"}]
[null,null,{"$error":"#N/A"}]
[null,null,{"$error":"#N/A"}]
[null,null,{"$error":"#N/A"}]
[null,null,{"$error":"#N/A"}]
[null,null,{"$error":"#N/A"}]
[null,null,{"$error":"#N/A"}]
[null,null,{"$error":"#N/A"}]
[null,null,{"$error":"#N/A"}]
[null,null,{"$error":"#N/A"}]
[null,null,{"$f":"MATCH(B2768,BA$2:BA$13,0)","v":{"$error":"#N/A"}}]
[null,null,{"$error":"#N/A"}]
[null,null,{"$error":"#N/A"}]
[null,null,{"$error":"#N/A"}]
[null,null,{"$error":"#N/A"}]
[null,null,{"$error":"#N/A"}]
[null,null,{"$error":"#N/A"}]
[null,null,{"$error":"#N/A"}]
[null,null,{"$error":"#N/A"}]
[null,null,{"$error":"#N/A"}]
[null,null,{"$error":"#N/A"}]
[null,null,{"$error":"#N/A"}]
[null,null,{"$error":"#N/A"}]
[null,null,{"$error":"#N/A"}]
[null,null,{"$error":"#N/A"}]
[null,null,{"$error":"#N/A"}]
[null,null,{"$error":"#N/A"}]
[null,null,{"$error":"#N/A"}]
[null,null,{"$error":"#N/A"}]
[null,null,{"$error":"#N/A"}]
[null,null,{"$error":"#N/A"}]
[null,null,{"$error":"#N/A"}]
[null,null,{"$error":"#N/A"}]
[null,null,{"$error":"#N/A"}]
[null,null,{"$error":"#N/A"}]
[null,null,{"$error":"#N/A"}]
[null,null,{"$error":"#N/A"}]
[null,null,{"$error":"#N/A"}]
[null,null,{"$error":"#N/A"}]
[null,null,{"$error":"#N/A"}]
[null,null,{"$error":"#N/A"}]
[null,null,{"$error":"#N/A"}]
[null,null,{"$error":"#N/A"}]
[null,null,{"$error":"#N/A"}]
[null,null,{"$error":"#N/A"}]
[null,null,{"$error":"#N/A"}]
[null,null,{"$error":"#N/A"}]
[null,null,{"$error":"#N/A"}]
[null,null,{"$error":"#N/A"}]
[null,null,{"$error":"#N/A"}]
[null,null,{"$error":"#N/A"}]
[null,null,{"$error":"#N/A"}]
[null,null,{"$error":"#N/A"}]
[null,null,{"$error":"#N/A"}]
[null,null,{"$error":"#N/A"}]
[null,null,{"$error":"#N/A"}]
[null,null,{"$error":"#N/A"}]
[null,null,{"$error":"#N/A"}]
[null,null,{"$error":"#N/A"}]
[null,null,{"$error":"#N/A"}]
[null,null,{"$error":"#N/A"}]
[null,null,{"$error":"#N/A"}]
[null,null,{"$error":"#N/A"}]
[null,null,{"$error":"#N/A"}]
[null,null,{"$error":"#N/A"}]
[null,null,{"$error":"#N/A"}]
[null,null,{"$error":"#N/A"}]
[null,null,{"$error":"#N/A"}]
[null,null,{"$error":"#N/A"}]
[null,null,{"$error":"#N/A"}]
[null,null,{"$error":"#N/A"}]
[null,null,{"$error":"#N/A"}]
[null,null,{"$error":"#N/A"}]
[null,null,{"$error":"#N/A"}]
[null,null,{"$f":"MATCH(B2832,BA$2:BA$13,0)","v":{"$error":"#N/A"}}]
[null,null,{"$error":"#N/A"}]
[null,null,{"$error":"#N/A"}]
[null,null,{"$error":"#N/A"}]
[null,null,{"$error":"#N/A"}]
[null,null,{"$error":"#N/A"}]
[null,null,{"$error":"#N/A"}]
[null,null,{"$error":"#N/A"}]
[null,null,{"$error":"#N/A"}]
[null,null,{"$error":"#N/A"}]
[null,null,{"$error":"#N/A"}]
[null,null,{"$error":"#N/A"}]
[null,null,{"$error":"#N/A"}]
[null,null,{"$error":"#N/A"}]
[null,null,{"$error":"#N/A"}]
[null,null,{"$error":"#N/A"}]
[null,null,{"$error":"#N/A"}]
[null,null,{"$error":"#N/A"}]
[null,null,{"$error":"#N/A"}]
[null,null,{"$error":"#N/A"}]
[null,null,{"$error":"#N/A"}]
[null,null,{"$error":"#N/A"}]
[null,null,{"$error":"#N/A"}]
[null,null,{"$error":"#N/A"}]
[null,null,{"$error":"#N/A"}]
[null,null,{"$error":"#N/A"}]
[null,null,{"$error":"#N/A"}]
[null,null,{"$error":"#N/A"}]
[null,null,{"$error":"#N/A"}]
[null,null,{"$error":"#N/A"}]
[null,null,{"$error":"#N/A"}]
[null,null,{"$error":"#N/A"}]
[null,null,{"$error":"#N/A"}]
[null,null,{"$error":"#N/A"}]
[null,null,{"$error":"#N/A"}]
[null,null,{"$error":"#N/A"}]
[null,null,{"$error":"#N/A"}]
[null,null,{"$error":"#N/A"}]
[null,null,{"$error":"#N/A"}]
[null,null,{"$error":"#N/A"}]
[null,null,{"$error":"#N/A"}]
[null,null,{"$error":"#N/A"}]
[null,null,{"$error":"#N/A"}]
[null,null,{"$error":"#N/A"}]
[null,null,{"$error":"#N/A"}]
[null,null,{"$error":"#N/A"}]
[null,null,{"$error":"#N/A"}]
[null,null,{"$error":"#N/A"}]
[null,null,{"$error":"#N/A"}]
[null,null,{"$error":"#N/A"}]
[null,null,{"$error":"#N/A"}]
[null,null,{"$error":"#N/A"}]
[null,null,{"$error":"#N/A"}]
[null,null,{"$error":"#N/A"}]
[null,null,{"$error":"#N/A"}]
[null,null,{"$error":"#N/A"}]
[null,null,{"$error":"#N/A"}]
[null,null,{"$error":"#N/A"}]
[null,null,{"$error":"#N/A"}]
[null,null,{"$error":"#N/A"}]
[null,null,{"$error":"#N/A"}]
[null,null,{"$error":"#N/A"}]
[null,null,{"$error":"#N/A"}]
[null,null,{"$error":"#N/A"}]
[null,null,{"$f":"MATCH(B2896,BA$2:BA$13,0)","v":{"$error":"#N/A"}}]
[null,null,{"$error":"#N/A"}]
[null,null,{"$error":"#N/A"}]
[null,null,{"$error":"#N/A"}]
[null,null,{"$error":"#N/A"}]
[null,null,{"$error":"#N/A"}]
[null,null,{"$error":"#N/A"}]
[null,null,{"$error":"#N/A"}]
[null,null,{"$error":"#N/A"}]
[null,null,{"$error":"#N/A"}]
[null,null,{"$error":"#N/A"}]
[null,null,{"$error":"#N/A"}]
[null,null,{"$error":"#N/A"}]
[null,null,{"$error":"#N/A"}]
[null,null,{"$error":"#N/A"}]
[null,null,{"$error":"#N/A"}]
[null,null,{"$error":"#N/A"}]
[null,null,{"$error":"#N/A"}]
[null,null,{"$error":"#N/A"}]
[null,null,{"$error":"#N/A"}]
[null,null,{"$error":"#N/A"}]
[null,null,{"$error":"#N/A"}]
[null,null,{"$error":"#N/A"}]
[null,null,{"$error":"#N/A"}]
[null,null,{"$error":"#N/A"}]
[null,null,{"$error":"#N/A"}]
[null,null,{"$error":"#N/A"}]
[null,null,{"$error":"#N/A"}]
[null,null,{"$error":"#N/A"}]
[null,null,{"$error":"#N/A"}]
[null,null,{"$error":"#N/A"}]
[null,null,{"$error":"#N/A"}]
[null,null,{"$error":"#N/A"}]
[null,null,{"$error":"#N/A"}]
[null,null,{"$error":"#N/A"}]
[null,null,{"$error":"#N/A"}]
[null,null,{"$error":"#N/A"}]
[null,null,{"$error":"#N/A"}]
[null,null,{"$error":"#N/A"}]
[null,null,{"$error":"#N/A"}]
[null,null,{"$error":"#N/A"}]
[null,null,{"$error":"#N/A"}]
[null,null,{"$error":"#N/A"}]
[null,null,{"$error":"#N/A"}]
[null,null,{"$error":"#N/A"}]
[null,null,{"$error":"#N/A"}]
[null,null,{"$error":"#N/A"}]
[null,null,{"$error":"#N/A"}]
[null,null,{"$error":"#N/A"}]
[null,null,{"$error":"#N/A"}]
[null,null,{"$error":"#N/A"}]
[null,null,{"$error":"#N/A"}]
[null,null,{"$error":"#N/A"}]
[null,null,{"$error":"#N/A"}]
[null,null,{"$error":"#N/A"}]
[null,null,{"$error":"#N/A"}]
[null,null,{"$error":"#N/A"}]
[null,null,{"$error":"#N/A"}]
[null,null,{"$error":"#N/A"}]
[null,null,{"$error":"#N/A"}]
[null,null,{"$error":"#N/A"}]
[null,null,{"$error":"#N/A"}]
[null,null,{"$error":"#N/A"}]
[null,null,{"$error":"#N/A"}]
[null,null,{"$f":"MATCH(B2960,BA$2:BA$13,0)","v":{"$error":"#N/A"}}]
[null,null,{"$error":"#N/A"}]
[null,null,{"$error":"#N/A"}]
[null,null,{"$error":"#N/A"}]
[null,null,{"$error":"#N/A"}]
[null,null,{"$error":"#N/A"}]
[null,null,{"$error":"#N/A"}]
[null,null,{"$error":"#N/A"}]
[null,null,{"$error":"#N/A"}]
[null,null,{"$error":"#N/A"}]
[null,null,{"$error":"#N/A"}]
[null,null,{"$error":"#N/A"}]
[null,null,{"$error":"#N/A"}]
[null,null,{"$error":"#N/A"}]
[null,null,{"$error":"#N/A"}]
[null,null,{"$error":"#N/A"}]
[null,null,{"$error":"#N/A"}]
[null,null,{"$error":"#N/A"}]
[null,null,{"$error":"#N/A"}]
[null,null,{"$error":"#N/A"}]
[null,null,{"$error":"#N/A"}]
[null,null,{"$error":"#N/A"}]
[null,null,{"$error":"#N/A"}]
[null,null,{"$error":"#N/A"}]
[null,null,{"$error":"#N/A"}]
[null,null,{"$error":"#N/A"}]
[null,null,{"$error":"#N/A"}]
[null,null,{"$error":"#N/A"}]
[null,null,{"$error":"#N/A"}]
[null,null,{"$error":"#N/A"}]
[null,null,{"$error":"#N/A"}]
[null,null,{"$error":"#N/A"}]
[null,null,{"$error":"#N/A"}]
[null,null,{"$error":"#N/A"}]
[null,null,{"$error":"#N/A"}]
[null,null,{"$error":"#N/A"}]
[null,null,{"$error":"#N/A"}]
[null,null,{"$error":"#N/A"}]
[null,null,{"$error":"#N/A"}]
[null,null,{"$error":"#N/A"}]
[null,null,{"$error":"#N/A"}]
[null,null,{"$error":"#N/A"}]
[null,null,{"$error":"#N/A"}]
[null,null,{"$error":"#N/A"}]
[null,null,{"$error":"#N/A"}]

{"sheet":"مكتب مدير الإدارة","index":1,"n_rows":4,"n_cols":44,"rows_kept":4,"cut":false,"hidden":false,"merged":[[0,3,0,4],[0,5,0,7],[0,20,0,22],[0,38,0,43]]}
[null,null,null,null,null,"تاريخ الميلاد",null,null,"تاريخ الميلاد",{"$f":"60*365.25","v":21915},null,null,null,null,null,null,null,null,null,{"$f":"TODAY()","v":"2020-11-28"},"سنوات الخبرة",null,null,null,null,null,null,null,null,null,null,null,null,null,null,null,null,null,"المؤهل الأعلى"]
["الرقم التسلسلي","المرحلة","كود الموظف","الرقم القومي","اسم الموظف","\" يوم \"","\" شهر \"","\" سنة \"","تاريخ الميلاد","تاريخ المعاش","محافظة الميلاد","النوع","الديانة","الجنسية","الحالة الاجتماعية","محافظة العنوان","العنوان","رقم التليفون","المجموعة النوعية","تاريخ التعيين","\" يوم \"","\" شهر \"","\" سنة \"","الموقف من العمل","تاريخ استلام العمل","\" العجز \"","رقم القرار","تاريخ القرار","الدرجة المالية","رقم القرار","تاريخ القرار","مادة التدريس","الوظيفة على الكادر","نوع المؤهل","اسم المؤهل","جهة الحصول على المؤهل","تقدير المؤهل","تاريخ الحصول عليه","\" نوع المؤهل \"","\" اسم المؤهل \"","\" جهة الحصول عليه \"","\" التقدير \"","\" تاريخ الحصول \"","\" الزيادة \""]
["الرقم التسلسلي",{"$f":"B1&\" \"&B2","v":" المرحلة"},"كود الموظف",{"$f":"D1&\" \"&D2","v":" الرقم القومي"},{"$f":"D1&\" \"&E2","v":" اسم الموظف"},{"$f":"F1&\" \"&F2","v":"تاريخ الميلاد \" يوم \""},{"$f":"F1&\" \"&G2","v":"تاريخ الميلاد \" شهر \""},{"$f":"F1&\" \"&H2","v":"تاريخ الميلاد \" سنة \""},{"$f":"I2","v":"تاريخ الميلاد"},{"$f":"J2","v":"تاريخ المعاش"},{"$f":"K2","v":"محافظة الميلاد"},"النوع","الديانة","الجنسية","الحالة الاجتماعية","محافظة العنوان",{"$f":"P1&\" \"&Q2","v":" العنوان"},{"$f":"R1&\" \"&R2","v":" رقم التليفون"},{"$f":"S1&\" \"&S2","v":" المجموعة النوعية"},{"$f":"T2","v":"تاريخ التعيين"},{"$f":"U1&\" \"&U2","v":"سنوات الخبرة \" يوم \""},{"$f":"U1&\" \"&V2","v":"سنوات الخبرة \" شهر \""},{"$f":"U1&\" \"&W2","v":"سنوات الخبرة \" سنة \""},{"$f":"X1&\" \"&X2","v":" الموقف من العمل"},{"$f":"X1&\" \"&Y2","v":" تاريخ استلام العمل"},{"$f":"Z1&\" \"&Z2","v":" \" العجز \""},{"$f":"Z1&\" \"&AA2","v":" رقم القرار"},{"$f":"AB1&\" \"&AB2","v":" تاريخ القرار"},{"$f":"AB1&\" \"&AC2","v":" الدرجة المالية"},{"$f":"AD1&\" \"&AD2","v":" رقم القرار"},{"$f":"AD1&\" \"&AE2","v":" تاريخ القرار"},{"$f":"AF1&\" \"&AF2","v":" مادة التدريس"},{"$f":"AF1&\" \"&AG2","v":" الوظيفة على الكادر"},{"$f":"AH1&\" \"&AH2","v":" نوع المؤهل"},{"$f":"AH1&\" \"&AI2","v":" اسم المؤهل"},{"$f":"AJ1&\" \"&AJ2","v":" جهة الحصول على المؤهل"},{"$f":"AJ1&\" \"&AK2","v":" تقدير المؤهل"},{"$f":"AL1&\" \"&AL2","v":" تاريخ الحصول عليه"},{"$f":"AM1&\" \"&AM2","v":"المؤهل الأعلى \" نوع المؤهل \""},{"$f":"AM1&\" \"&AN2","v":"المؤهل الأعلى \" اسم المؤهل \""},{"$f":"AM1&\" \"&AO2","v":"المؤهل الأعلى \" جهة الحصول عليه \""},{"$f":"AM1&\" \"&AP2","v":"المؤهل الأعلى \" التقدير \""},{"$f":"AM1&\" \"&AQ2","v":"المؤهل الأعلى \" تاريخ الحصول \""},{"$f":"AM1&\" \"&AR2","v":"المؤهل الأعلى \" الزيادة \""}]
[1,"ابتدائي",123456,27108131600318,"محمد محمد الدسوقي 1",{"$f":"RIGHT(LEFT(D4,7),2)","v":"13"},{"$f":"RIGHT(LEFT(D4,5),2)","v":"08"},{"$f":"IF(D4=\"\",\"\",IF(ISODD(MID(D4,1,1)),MID(D4,2,2)+2000,MID(D4,2,2)+1900))","v":1971},{"$f":"IF(D4=\"\",\"\",DATE(H4,G4,F4))","v":"1971-08-13"},{"$f":"IF(D4=\"\",\"\",($J$1+I4)-1)","v":"2031-08-12"},{"$f":"Kh_Date_Sex_Province($D4,3)","v":"الغربية"},{"$f":"IF(D4=\"\",\"\",IF(ISODD(MID(D4,13,1)),\"ذكر\",\"أنثى\"))","v":"ذكر"},"مسلم","مصري","متزوج + 3",{"$f":"IF(E4=\"\",\"\",\"الغربية\")","v":"الغربية"},"محلة منوف مركز طنطا","01000111000","المجموعة النوعية لوظائف كادر المعلم","1996-12-28",{"$f":"IF(T4=\"\",\"\",DATEDIF(T4,$T$1,\"md\"))","v":0},{"$f":"IF(T4=\"\",\"\",DATEDIF(T4,$T$1,\"ym\"))","v":11},{"$f":"IF(T4=\"\",\"\",DATEDIF(T4,$T$1,\"y\"))","v":23},"منتدب داخل الوزارة",null,"معلم خبير","5109","2018-10-18","ــــــــــ","ــــــــــ","ــــــــــ","اللغة العربية","معلم فصل ابتدائي","عليا","بكالوريوس تربية","جامعة طنطا","مقبول",null,"بدون","بدون","بدون","بدون","بدون","بدون"]

{"sheet":"شئون الطلبة والامتحانات","index":2,"n_rows":4,"n_cols":44,"rows_kept":4,"cut":false,"hidden":false,"merged":[[0,3,0,4],[0,5,0,7],[0,20,0,22],[0,38,0,43]]}
[null,null,null,null,null,"تاريخ الميلاد",null,null,"تاريخ الميلاد",{"$f":"60*365.25","v":21915},null,null,null,null,null,null,null,null,null,{"$f":"TODAY()","v":"2020-11-28"},"سنوات الخبرة",null,null,null,null,null,null,null,null,null,null,null,null,null,null,null,null,null,"المؤهل الأعلى"]
["الرقم التسلسلي","المرحلة","كود الموظف","الرقم القومي","اسم الموظف","\" يوم \"","\" شهر \"","\" سنة \"","تاريخ الميلاد","تاريخ المعاش","محافظة الميلاد","النوع","الديانة","الجنسية","الحالة الاجتماعية","محافظة العنوان","العنوان","رقم التليفون","المجموعة النوعية","تاريخ التعيين","\" يوم \"","\" شهر \"","\" سنة \"","الموقف من العمل","تاريخ استلام العمل","\" العجز \"","رقم القرار","تاريخ القرار","الدرجة المالية","رقم القرار","تاريخ القرار","مادة التدريس","الوظيفة على الكادر","نوع المؤهل","اسم المؤهل","جهة الحصول على المؤهل","تقدير المؤهل","تاريخ الحصول عليه","\" نوع المؤهل \"","\" اسم المؤهل \"","\" جهة الحصول عليه \"","\" التقدير \"","\" تاريخ الحصول \"","\" الزيادة \""]
["الرقم التسلسلي",27108131600318,"محمد محمد الدسوقي 1",{"$f":"RIGHT(LEFT(B3,7),2)","v":"13"},{"$f":"RIGHT(LEFT(B3,5),2)","v":"08"},{"$f":"IF(B3=\"\",\"\",IF(ISODD(MID(B3,1,1)),MID(B3,2,2)+2000,MID(B3,2,2)+1900))","v":1971},{"$f":"IF(B3=\"\",\"\",DATE(F3,E3,D3))","v":"1971-08-13"},{"$f":"IF(B3=\"\",\"\",($J$1+G3)-1)","v":"2031-08-12"},{"$f":"Kh_Date_Sex_Province($D3,3)","v":""},{"$f":"IF(B3=\"\",\"\",IF(ISODD(MID(B3,13,1)),\"ذكر\",\"أنثى\"))","v":"ذكر"},"مسلم","مصري","متزوج + 3",{"$f":"IF(C3=\"\",\"\",\"الغربية\")","v":"الغربية"},"محلة منوف مركز طنطا","01000111000","المجموعة النوعية لوظائف كادر المعلم","1996-12-28",{"$f":"IF(R3=\"\",\"\",DATEDIF(R3,$T$1,\"md\"))","v":0},{"$f":"IF(R3=\"\",\"\",DATEDIF(R3,$T$1,\"ym\"))","v":11},{"$f":"IF(R3=\"\",\"\",DATEDIF(R3,$T$1,\"y\"))","v":23},"منتدب داخل الوزارة",null,"معلم خبير","5109","2018-10-18","ــــــــــ","ــــــــــ","ــــــــــ","اللغة العربية","معلم فصل ابتدائي","عليا","بكالوريوس تربية","جامعة طنطا","مقبول",null,"بدون",{"$f":"AL1&\" \"&AL2","v":" تاريخ الحصول عليه"},{"$f":"AM1&\" \"&AM2","v":"المؤهل الأعلى \" نوع المؤهل \""},{"$f":"AM1&\" \"&AN2","v":"المؤهل الأعلى \" اسم المؤهل \""},{"$f":"AM1&\" \"&AO2","v":"المؤهل الأعلى \" جهة الحصول عليه \""},{"$f":"AM1&\" \"&AP2","v":"المؤهل الأعلى \" التقدير \""},{"$f":"AM1&\" \"&AQ2","v":"المؤهل الأعلى \" تاريخ الحصول \""},{"$f":"AM1&\" \"&AR2","v":"المؤهل الأعلى \" الزيادة \""}]
[1]

{"sheet":"الشئون الإدارية","index":3,"n_rows":4,"n_cols":44,"rows_kept":4,"cut":false,"hidden":false,"merged":[[0,3,0,4],[0,5,0,7],[0,20,0,22],[0,38,0,43]]}
[null,null,null,null,null,"تاريخ الميلاد",null,null,"تاريخ الميلاد",{"$f":"60*365.25","v":21915},null,null,null,null,null,null,null,null,null,{"$f":"TODAY()","v":"2020-11-28"},"سنوات الخبرة",null,null,null,null,null,null,null,null,null,null,null,null,null,null,null,null,null,"المؤهل الأعلى"]
["الرقم التسلسلي","المرحلة","كود الموظف","الرقم القومي","اسم الموظف","\" يوم \"","\" شهر \"","\" سنة \"","تاريخ الميلاد","تاريخ المعاش","محافظة الميلاد","النوع","الديانة","الجنسية","الحالة الاجتماعية","محافظة العنوان","العنوان","رقم التليفون","المجموعة النوعية","تاريخ التعيين","\" يوم \"","\" شهر \"","\" سنة \"","الموقف من العمل","تاريخ استلام العمل","\" العجز \"","رقم القرار","تاريخ القرار","الدرجة المالية","رقم القرار","تاريخ القرار","مادة التدريس","الوظيفة على الكادر","نوع المؤهل","اسم المؤهل","جهة الحصول على المؤهل","تقدير المؤهل","تاريخ الحصول عليه","\" نوع المؤهل \"","\" اسم المؤهل \"","\" جهة الحصول عليه \"","\" التقدير \"","\" تاريخ الحصول \"","\" الزيادة \""]
["الرقم التسلسلي",{"$f":"B1&\" \"&B2","v":" المرحلة"},"كود الموظف",{"$f":"D1&\" \"&D2","v":" الرقم القومي"},{"$f":"D1&\" \"&E2","v":" اسم الموظف"},{"$f":"F1&\" \"&F2","v":"تاريخ الميلاد \" يوم \""},{"$f":"F1&\" \"&G2","v":"تاريخ الميلاد \" شهر \""},{"$f":"F1&\" \"&H2","v":"تاريخ الميلاد \" سنة \""},{"$f":"I2","v":"تاريخ الميلاد"},{"$f":"J2","v":"تاريخ المعاش"},{"$f":"K2","v":"محافظة الميلاد"},"النوع","الديانة","الجنسية","الحالة الاجتماعية","محافظة العنوان",{"$f":"P1&\" \"&Q2","v":" العنوان"},{"$f":"R1&\" \"&R2","v":" رقم التليفون"},{"$f":"S1&\" \"&S2","v":" المجموعة النوعية"},{"$f":"T2","v":"تاريخ التعيين"},{"$f":"U1&\" \"&U2","v":"سنوات الخبرة \" يوم \""},{"$f":"U1&\" \"&V2","v":"سنوات الخبرة \" شهر \""},{"$f":"U1&\" \"&W2","v":"سنوات الخبرة \" سنة \""},{"$f":"X1&\" \"&X2","v":" الموقف من العمل"},{"$f":"X1&\" \"&Y2","v":" تاريخ استلام العمل"},{"$f":"Z1&\" \"&Z2","v":" \" العجز \""},{"$f":"Z1&\" \"&AA2","v":" رقم القرار"},{"$f":"AB1&\" \"&AB2","v":" تاريخ القرار"},{"$f":"AB1&\" \"&AC2","v":" الدرجة المالية"},{"$f":"AD1&\" \"&AD2","v":" رقم القرار"},{"$f":"AD1&\" \"&AE2","v":" تاريخ القرار"},{"$f":"AF1&\" \"&AF2","v":" مادة التدريس"},{"$f":"AF1&\" \"&AG2","v":" الوظيفة على الكادر"},{"$f":"AH1&\" \"&AH2","v":" نوع المؤهل"},{"$f":"AH1&\" \"&AI2","v":" اسم المؤهل"},{"$f":"AJ1&\" \"&AJ2","v":" جهة الحصول على المؤهل"},{"$f":"AJ1&\" \"&AK2","v":" تقدير المؤهل"},{"$f":"AL1&\" \"&AL2","v":" تاريخ الحصول عليه"},{"$f":"AM1&\" \"&AM2","v":"المؤهل الأعلى \" نوع المؤهل \""},{"$f":"AM1&\" \"&AN2","v":"المؤهل الأعلى \" اسم المؤهل \""},{"$f":"AM1&\" \"&AO2","v":"المؤهل الأعلى \" جهة الحصول عليه \""},{"$f":"AM1&\" \"&AP2","v":"المؤهل الأعلى \" التقدير \""},{"$f":"AM1&\" \"&AQ2","v":"المؤهل الأعلى \" تاريخ الحصول \""},{"$f":"AM1&\" \"&AR2","v":"المؤهل الأعلى \" الزيادة \""}]
[1]